Workbook

Sheet SF60
A1: TEAM | B1: CHI
A3: Row Labels | B3: 5v5 SF/60 | C3: 5v4 SF/60 | D3: 4v4 SF/60 | F3: 5v5 SF/60 | G3: 5v4 SF/60 | H3: 4v4 SF/60 | I3: 5v5 SF/60 | J3: 5v4 SF/60 | K3: 4v4 SF/60
A4: 12 | B4: 38.2 | C4: 52.7 | D4: 32
A5: 13 | B5: 37.8 | C5: 52.6 | D5: 34.4
A6: 14 | B6: 38.1 | C6: 51.4 | D6: 35.3
A7: 15 | B7: 38.1 | C7: 51.3 | D7: 35.3
A8: 16 | B8: 38.1 | C8: 52.4 | D8: 32.2
A9: 17 | B9: 37.6 | C9: 51.3 | D9: 30.1
A10: 18 | B10: 38 | C10: 52.4 | D10: 30.1
A11: 19 | B11: 37.5 | C11: 51.4 | D11: 29.7
A12: 24 | B12: 35.9 | C12: 52.4 | D12: 27.5
A13: 25 | B13: 35.9 | C13: 52.5 | D13: 27 | F13: =AVERAGE(B4:B13) -> 37.52 | G13: =AVERAGE(C4:C13) -> 52.04 | H13: =AVERAGE(D4:D13) -> 31.36 | I13: 29.75002533 | J13: 49.44229626 | K13: 28.21130954
A14: 26 | B14: 35.7 | C14: 53.2 | D14: 28.3 | F14: 37.27 | G14: 52.09 | H14: 30.99 | I14: 29.66538533 | J14: 50.40189626 | K14: 29.62298954
A15: 27 | B15: 35.6 | C15: 52.7 | D15: 28.3 | F15: 37.05 | G15: 52.1 | H15: 30.38 | I15: 29.45413533 | J15: 50.29877126 | K15: 29.50111454
A16: 28 | B16: 35.5 | C16: 52.9 | D16: 30 | F16: 36.79 | G16: 52.25 | H16: 29.85 | I16: 29.3498365 | J16: 49.90816953 | K16: 29.81523488
A17: 29 | B17: 35 | C17: 52.3 | D17: 29.4 | F17: 36.48 | G17: 52.35 | H17: 29.26 | I17: 29.25156727 | J17: 51.05715554 | K17: 31.21123139
A18: 30 | B18: 34.6 | C18: 52.4 | D18: 29.4 | F18: 36.13 | G18: 52.35 | H18: 28.98 | I18: 29.29806727 | J18: 51.30158411 | K18: 31.25137424
A19: 31 | B19: 34.5 | C19: 52.1 | D19: 29.4 | F19: 35.82 | G19: 52.43 | H19: 28.91 | I19: 29.33695768 | J19: 51.24916494 | K19: 31.21494411
A20: 32 | B20: 34.7 | C20: 52.3 | D20: 29.4 | F20: 35.49 | G20: 52.42 | H20: 28.84 | I20: 29.32332584 | J20: 51.22915747 | K20: 31.34538938
A21: 36 | B21: 34.9 | C21: 52.3 | D21: 30 | F21: 35.23 | G21: 52.51 | H21: 28.87 | I21: 29.30655149 | J21: 51.24936239 | K21: 31.40201908
A22: 37 | B22: 35.1 | C22: 51.8 | D22: 31.7 | F22: 35.15 | G22: 52.45 | H22: 29.29 | I22: 29.26507611 | J22: 51.13127867 | K22: 31.35650184
A23: 38 | B23: 35 | C23: 51.5 | D23: 33.8 | F23: 35.06 | G23: 52.35 | H23: 29.97 | I23: 29.19572031 | J23: 50.97023285 | K23: 31.2165261
A24: 39 | B24: 34.9 | C24: 52.1 | D24: 34.8 | F24: 34.98 | G24: 52.24 | H24: 30.62 | I24: 29.15590085 | J24: 50.97320042 | K24: 31.51322448
A25: 42 | B25: 34.6 | C25: 53 | D25: 37 | F25: 34.88 | G25: 52.27 | H25: 31.49 | I25: 29.29773419 | J25: 51.16057542 | K25: 31.96184948
A26: 43 | B26: 34.6 | C26: 52.9 | D26: 37 | F26: 34.79 | G26: 52.27 | H26: 32.19 | I26: 29.35351223 | J26: 51.56718122 | K26: 32.10358208
A27: 44 | B27: 34.5 | C27: 53.3 | D27: 37.4 | F27: 34.74 | G27: 52.37 | H27: 32.99 | I27: 29.36669405 | J27: 50.6279388 | K27: 30.89146087
A28: 45 | B28: 34.7 | C28: 53.2 | D28: 37.4 | F28: 34.75 | G28: 52.45 | H28: 33.79 | I28: 29.29127739 | J28: 50.43454594 | K28: 30.99187754
A29: 46 | B29: 35.1 | C29: 53.7 | D29: 37.4 | F29: 34.81 | G29: 52.61 | H29: 34.59 | I29: 29.18713453 | J29: 50.08046022 | K29: 30.94853468
A30: 47 | B30: 34.8 | C30: 53.7 | D30: 36.6 | F30: 34.82 | G30: 52.75 | H30: 35.31 | I30: 29.17046786 | J30: 50.092238 | K30: 31.12903468
A31: 48 | B31: 34.6 | C31: 53.5 | D31: 36.6 | F31: 34.79 | G31: 52.87 | H31: 35.97 | I31: 29.15078262 | J31: 50.3520187 | K31: 31.29583034
A32: 49 | B32: 34.7 | C32: 53 | D32: 36.6 | F32: 34.75 | G32: 52.99 | H32: 36.46 | I32: 29.13884232 | J32: 50.4520187 | K32: 31.24806915
A33: 50 | B33: 34.5 | C33: 53 | D33: 38.5 | F33: 34.7 | G33: 53.14 | H33: 36.93 | I33: 29.10782076 | J33: 50.43495132 | K33: 31.32964866
A34: 51 | B34: 34.4 | C34: 52.8 | D34: 37.6 | F34: 34.65 | G34: 53.21 | H34: 37.21 | I34: 29.16920329 | J34: 50.5082299 | K34: 31.61711644
A35: 52 | B35: 34 | C35: 52.8 | D35: 37.7 | F35: 34.59 | G35: 53.19 | H35: 37.28 | I35: 28.9883326 | J35: 50.68208335 | K35: 31.32424575
A36: 53 | B36: 33.8 | C36: 53.3 | D36: 37.7 | F36: 34.51 | G36: 53.23 | H36: 37.35 | I36: 28.98407185 | J36: 50.29741937 | K36: 31.32891645
A37: 54 | B37: 33.9 | C37: 52.4 | D37: 38.4 | F37: 34.45 | G37: 53.14 | H37: 37.45 | I37: 29.04854961 | J37: 50.30277398 | K37: 31.40873592
A38: 55 | B38: 34 | C38: 53 | D38: 37.9 | F38: 34.38 | G38: 53.12 | H38: 37.5 | I38: 29.04976338 | J38: 50.28720204 | K38: 31.46479959
A39: 56 | B39: 34 | C39: 52.9 | D39: 37.9 | F39: 34.27 | G39: 53.04 | H39: 37.55 | I39: 29.06866485 | J39: 50.63531534 | K39: 31.65490796
A40: 57 | B40: 34 | C40: 52.6 | D40: 37.9 | F40: 34.19 | G40: 52.93 | H40: 37.68 | I40: 29.03329448 | J40: 50.63114867 | K40: 31.48861166
A41: 58 | B41: 33.8 | C41: 53 | D41: 37.3 | F41: 34.11 | G41: 52.88 | H41: 37.75 | I41: 29.03115108 | J41: 50.41162159 | K41: 31.41778786
A42: 59 | B42: 33.7 | C42: 52.3 | D42: 39.3 | F42: 34.01 | G42: 52.81 | H42: 38.02 | I42: 28.99120421 | J42: 50.2362434 | K42: 31.39504058
A43: 60 | B43: 33.7 | C43: 52.9 | D43: 37.9 | F43: 33.93 | G43: 52.8 | H43: 37.96 | I43: 29.00216586 | J43: 50.35820019 | K43: 31.32476061
A44: 61 | B44: 33.6 | C44: 52.6 | D44: 37.7 | F44: 33.85 | G44: 52.78 | H44: 37.97 | I44: 28.94557065 | J44: 50.30169829 | K44: 31.09727511
A45: 62 | B45: 33.5 | C45: 53.2 | D45: 37.7 | F45: =AVERAGE(B36:B45) -> 33.8 | G45: =AVERAGE(C36:C45) -> 52.82 | H45: =AVERAGE(D36:D45) -> 37.97 | I45: 29.05471766 | J45: 50.1695159 | K45: 31.34129054
A46: 63 | B46: 33.4 | C46: 53.2 | D46: 37.7 | F46: 33.76 | G46: 52.81 | H46: 37.97 | I46: 29.05460616 | J46: 50.53577764 | K46: 31.34547188
A47: 64 | B47: 33.5 | C47: 52.8 | D47: 37.2 | F47: 33.72 | G47: 52.85 | H47: 37.85 | I47: 28.95220082 | J47: 50.42011229 | K47: 31.131826
A48: 65 | B48: 33.4 | C48: 52.1 | D48: 37.6 | F48: 33.66 | G48: 52.76 | H48: 37.82 | I48: 28.95482477 | J48: 50.40747308 | K48: 31.1922379
A49: 66 | B49: 33.5 | C49: 53 | D49: 37.6 | F49: 33.61 | G49: 52.77 | H49: 37.79 | I49: 28.94066615 | J49: 50.44751217 | K49: 31.15100572
A50: 67 | B50: 33.4 | C50: 52.7 | D50: 37.6 | F50: 33.55 | G50: 52.78 | H50: 37.76 | I50: 28.93827181 | J50: 50.51610694 | K50: 31.19467457
A51: 68 | B51: 33.4 | C51: 52.6 | D51: 37.6 | F51: 33.51 | G51: 52.74 | H51: 37.79 | I51: 28.93217399 | J51: 50.45572831 | K51: 31.22588652
A52: 69 | B52: 33.4 | C52: 52.5 | D52: 37.6 | F52: 33.48 | G52: 52.76 | H52: 37.62 | I52: 28.96734654 | J52: 50.70007791 | K52: 31.28012994
A53: 70 | B53: 33.4 | C53: 52.4 | D53: 37.6 | F53: 33.45 | G53: 52.71 | H53: 37.59 | I53: 28.99094427 | J53: 50.6461633 | K53: 31.42049426
A54: 71 | B54: 33.3 | C54: 52.4 | D54: 37.6 | F54: 33.42 | G54: 52.69 | H54: 37.58 | I54: 28.99459367 | J54: 50.61079631 | K54: 31.42190633
A55: 72 | B55: 33.3 | C55: 52.3 | D55: 37.6 | F55: 33.4 | G55: 52.6 | H55: 37.57 | I55: 29.00635307 | J55: 50.75130383 | K55: 31.44165445
A56: 73 | B56: 33.3 | C56: 52 | D56: 37.6 | F56: 33.39 | G56: 52.48 | H56: 37.56 | I56: 29.00114594 | J56: 50.80178229 | K56: 31.38824517
A57: 74 | B57: 33.2 | C57: 52 | D57: 37.6 | F57: 33.36 | G57: 52.4 | H57: 37.6 | I57: 29.02720318 | J57: 50.82288538 | K57: 31.5537606
F58: 33.35555556 | G58: 52.43333333 | H58: 37.6 | I58: 29.02477171 | J58: 50.81993581 | K58: 31.48436092
F59: 33.3375 | G59: 52.3625 | H59: 37.6 | I59: 29.09039046 | J59: 50.8542879 | K59: 31.53912759
F60: 33.32857143 | G60: 52.31428571 | H60: 37.6 | I60: 29.07798275 | J60: 50.83630615 | K60: 31.52635274
F61: 33.31666667 | G61: 52.26666667 | H61: 37.6 | I61: 29.08653275 | J61: 50.96173115 | K61: 31.48762774
F62: 33.3 | G62: 52.22 | H62: 37.6 | I62: 29.09299862 | J62: 50.86492392 | K62: 31.56272614
F63: 33.275 | G63: 52.175 | H63: 37.6 | I63: 29.09227678 | J63: 50.83056899 | K63: 31.42103322
F64: 33.26666667 | G64: 52.1 | H64: 37.6 | I64: 29.07247861 | J64: 50.95017381 | K64: 31.45976795
F65: 33.25 | G65: 52 | H65: 37.6 | I65: 29.11111598 | J65: 50.900976 | K65: 31.44024048
F66: 33.2 | G66: 52 | H66: 37.6 | I66: 29.12482002 | J66: 50.94590247 | K66: 31.47103092
I67: 29.12432822 | J67: 50.99803362 | K67: 31.54906371
I68: 29.10239924 | J68: 51.01243135 | K68: 31.5425495
I69: 29.04284716 | J69: 51.10054593 | K69: 31.64671617
I70: 28.98551957 | J70: 51.0600718 | K70: 31.61628513
I71: 28.96871957 | J71: 51.2622718 | K71: 32.05988513
I72: 28.94538624 | J72: 51.5172718 | K72: 32.4510518

Sheet SA60
A1: TEAM | B1: NYI
B3: 5v5 SA/60 | C3: 4v4 SA/60 | D3: 4v5 SA/60 | F3: 5v5 SA/60 | G3: 4v4 SA/60 | H3: 4v5 SA/60 | I3: 5v5 SA/60 | J3: 4v4 SA/60 | K3: 4v5 SA/60
A4: 11 | B4: 27.5 | C4: 62.2 | D4: 66.8
A5: 12 | B5: 27.8 | C5: 57.6 | D5: 68.5
A6: 13 | B6: 27.9 | C6: 57.5 | D6: 63
A7: 14 | B7: 26.8 | C7: 57.5 | D7: 62.1
A8: 15 | B8: 26.4 | C8: 54.7 | D8: 62.8
A9: 16 | B9: 26.5 | C9: 60.3 | D9: 61.2
A10: 17 | B10: 27 | C10: 59.9 | D10: 59.2
A11: 18 | B11: 27.1 | C11: 60 | D11: 57.9
A12: 24 | B12: 26.9 | C12: 44 | D12: 59.4
A13: 25 | B13: 26.5 | C13: 40.4 | D13: 59.7 | F13: =AVERAGE(B4:B13) -> 27.04 | G13: =AVERAGE(C4:C13) -> 55.41 | H13: =AVERAGE(D4:D13) -> 62.06 | I13: 28.8067633 | J13: 28.78590216 | K13: 51.92037404
A14: 26 | B14: 26.2 | C14: 40.4 | D14: 59.1 | F14: 26.91 | G14: 53.23 | H14: 61.29 | I14: 28.9546033 | J14: 29.92726216 | K14: 50.20237404
A15: 27 | B15: 26.6 | C15: 39 | D15: 61.3 | F15: 26.79 | G15: 51.37 | H15: 60.57 | I15: 29.2852283 | J15: 30.14851216 | K15: 50.55404071
A16: 28 | B16: 26.8 | C16: 39 | D16: 60.4 | F16: 26.68 | G16: 49.52 | H16: 60.31 | I16: 29.25393304 | J16: 29.65104148 | K16: 50.2132197
A17: 29 | B17: 27.1 | C17: 39.6 | D17: 60.4 | F17: 26.71 | G17: 47.73 | H17: 60.14 | I17: 29.41312885 | J17: 30.14709043 | K17: 50.39416375
A18: 30 | B18: 27 | C18: 39.6 | D18: 60.4 | F18: 26.77 | G18: 46.22 | H18: 59.9 | I18: 29.4247479 | J18: 30.42713805 | K18: 50.4627828
A19: 31 | B19: 27 | C19: 38.5 | D19: 60.1 | F19: 26.82 | G19: 44.04 | H19: 59.79 | I19: 29.42304927 | J19: 30.51969969 | K19: 50.37286773
A20: 32 | B20: 26.8 | C20: 38.5 | D20: 58.4 | F20: 26.8 | G20: 41.9 | H20: 59.71 | I20: 29.47033533 | J20: 30.79147581 | K20: 50.27063888
A21: 35 | B21: 26.6 | C21: 37.9 | D21: 54.5 | F21: 26.75 | G21: 39.69 | H21: 59.37 | I21: 29.42831267 | J21: 30.95391072 | K21: 50.15302316
A22: 36 | B22: 26.6 | C22: 37 | D22: 54.6 | F22: 26.72 | G22: 38.99 | H22: 58.89 | I22: 29.49277999 | J22: 31.30185033 | K22: 50.15469068
A23: 37 | B23: 26.5 | C23: 37 | D23: 54.7 | F23: 26.72 | G23: 38.65 | H23: 58.39 | I23: 29.42249428 | J23: 30.95999319 | K23: 50.08171494
A24: 39 | B24: 26.2 | C24: 37 | D24: 53.1 | F24: 26.72 | G24: 38.31 | H24: 57.79 | I24: 29.47830293 | J24: 31.18809265 | K24: 50.23890413
A25: 42 | B25: 25.7 | C25: 37 | D25: 51.9 | F25: 26.63 | G25: 38.11 | H25: 56.85 | I25: 29.27238626 | J25: 31.25238432 | K25: 50.13298746
A26: 43 | B26: 25.8 | C26: 37 | D26: 51.7 | F26: 26.53 | G26: 37.91 | H26: 55.98 | I26: 29.38303345 | J26: 31.8599538 | K26: 50.48824614
A27: 44 | B27: 25.6 | C27: 36.8 | D27: 53.4 | F27: 26.38 | G27: 37.63 | H27: 55.28 | I27: 29.35363951 | J27: 31.92813562 | K27: 50.24521583
A28: 45 | B28: 25.8 | C28: 36.8 | D28: 54.1 | F28: 26.26 | G28: 37.35 | H28: 54.65 | I28: 29.25244903 | J28: 31.90087372 | K28: 50.01033488
A29: 46 | B29: 25.9 | C29: 36.8 | D29: 54 | F29: 26.15 | G29: 37.18 | H29: 54.04 | I29: 29.18502046 | J29: 31.88644514 | K29: 50.06664917
A30: 47 | B30: 26.3 | C30: 36.6 | D30: 54 | F30: 26.1 | G30: 36.99 | H30: 53.6 | I30: 29.16468713 | J30: 31.79222292 | K30: 50.2179825
A31: 48 | B31: 26.4 | C31: 36.6 | D31: 54.3 | F31: 26.08 | G31: 36.86 | H31: 53.58 | I31: 29.13663501 | J31: 31.90486998 | K31: 50.33860943
A32: 49 | B32: 26.2 | C32: 36.1 | D32: 54.5 | F32: 26.04 | G32: 36.77 | H32: 53.57 | I32: 29.10529173 | J32: 32.07860132 | K32: 50.19025123
A33: 50 | B33: 26.3 | C33: 36.1 | D33: 54.5 | F33: 26.02 | G33: 36.68 | H33: 53.55 | I33: 29.10331329 | J33: 32.01781696 | K33: 50.34992508
A34: 51 | B34: 26.1 | C34: 35.4 | D34: 54.3 | F34: 26.01 | G34: 36.52 | H34: 53.67 | I34: 29.01243388 | J34: 31.96497288 | K34: 50.42873589
A35: 52 | B35: 26.3 | C35: 35.4 | D35: 54.3 | F35: 26.07 | G35: 36.36 | H35: 53.91 | I35: 29.09433474 | J35: 32.22420133 | K35: 50.33953762
A36: 53 | B36: 26 | C36: 34.8 | D36: 53.3 | F36: 26.09 | G36: 36.14 | H36: 54.07 | I36: 29.02923393 | J36: 31.8993559 | K36: 50.38113036
A37: 54 | B37: 26.2 | C37: 34.8 | D37: 54 | F37: 26.15 | G37: 35.94 | H37: 54.13 | I37: 28.9047594 | J37: 31.8106325 | K37: 50.36073706
A38: 55 | B38: 26.4 | C38: 34.6 | D38: 53.4 | F38: 26.21 | G38: 35.72 | H38: 54.06 | I38: 28.9697801 | J38: 31.83145548 | K38: 50.53147723
A39: 56 | B39: 26.5 | C39: 34.6 | D39: 53.9 | F39: 26.27 | G39: 35.5 | H39: 54.05 | I39: 29.00693281 | J39: 31.91740129 | K39: 50.47041811
A40: 57 | B40: 26.8 | C40: 34.4 | D40: 53.7 | F40: 26.32 | G40: 35.28 | H40: 54.02 | I40: 28.98443281 | J40: 31.90240129 | K40: 50.40245515
A41: 58 | B41: 26.8 | C41: 34.7 | D41: 54.2 | F41: 26.36 | G41: 35.09 | H41: 54.01 | I41: 28.9570949 | J41: 31.79732883 | K41: 50.23736743
A42: 59 | B42: 26.9 | C42: 34.6 | D42: 53.9 | F42: 26.43 | G42: 34.94 | H42: 53.95 | I42: 28.95551382 | J42: 31.71190763 | K42: 50.34392954
A43: 60 | B43: 26.9 | C43: 33.9 | D43: 54.2 | F43: 26.49 | G43: 34.72 | H43: 53.92 | I43: 28.93245539 | J43: 31.86148462 | K43: 50.17532942
A44: 61 | B44: 27.1 | C44: 33.3 | D44: 54 | F44: 26.59 | G44: 34.51 | H44: 53.89 | I44: 28.99280092 | J44: 32.02798399 | K44: 50.16552614
A45: 62 | B45: 27.2 | C45: 34.4 | D45: 53 | F45: =AVERAGE(B36:B45) -> 26.68 | G45: =AVERAGE(C36:C45) -> 34.41 | H45: =AVERAGE(D36:D45) -> 53.76 | I45: 28.91294611 | J45: 31.68948581 | K45: 50.29765862
A46: 63 | B46: 27.4 | C46: 34.4 | D46: 52.6 | F46: 26.82 | G46: 34.37 | H46: 53.69 | I46: 28.94716853 | J46: 31.80430095 | K46: 50.17393503
A47: 64 | B47: 27.2 | C47: 32.7 | D47: 52.6 | F47: 26.92 | G47: 34.16 | H47: 53.55 | I47: 28.99562868 | J47: 31.83488876 | K47: 50.2030443
A48: 65 | B48: 27.1 | C48: 31.8 | D48: 52.4 | F48: 26.99 | G48: 33.88 | H48: 53.45 | I48: 28.95312677 | J48: 31.80964848 | K48: 50.21412744
A49: 66 | B49: 27.1 | C49: 31.4 | D49: 51.4 | F49: 27.05 | G49: 33.56 | H49: 53.2 | I49: 28.97020263 | J49: 31.81139791 | K49: 50.25453894
A50: 67 | B50: 27.1 | C50: 31.4 | D50: 51.5 | F50: 27.08 | G50: 33.26 | H50: 52.98 | I50: 28.97692812 | J50: 31.83762013 | K50: 50.21873719
A51: 68 | B51: 27.2 | C51: 31.3 | D51: 51 | F51: 27.12 | G51: 32.92 | H51: 52.66 | I51: 29.00678138 | J51: 31.94619259 | K51: 50.33827886
A52: 69 | B52: 27.3 | C52: 31.3 | D52: 50.9 | F52: 27.16 | G52: 32.59 | H52: 52.36 | I52: 28.99289942 | J52: 31.86859815 | K52: 50.38527906
A53: 70 | B53: 27.3 | C53: 31.3 | D53: 50.5 | F53: 27.2 | G53: 32.33 | H53: 51.99 | I53: 28.98445729 | J53: 31.85330972 | K53: 50.45051626
A54: 71 | B54: 27.3 | C54: 31.5 | D54: 50.6 | F54: 27.22 | G54: 32.15 | H54: 51.65 | I54: 28.97656981 | J54: 31.72860406 | K54: 50.54675135
A55: 72 | B55: 27.4 | C55: 31.5 | D55: 50.4 | F55: 27.24 | G55: 31.86 | H55: 51.39 | I55: 28.97272018 | J55: 31.79428451 | K55: 50.57663857
A56: 73 | B56: 27.4 | C56: 31.5 | D56: 50.4 | F56: 27.24 | G56: 31.57 | H56: 51.17 | I56: 28.98591198 | J56: 31.88582966 | K56: 50.5628254
A57: 74 | B57: 27.4 | C57: 31.5 | D57: 50.6 | F57: 27.26 | G57: 31.45 | H57: 50.97 | I57: 28.98191643 | J57: 31.91527673 | K57: 50.61333943
A58: 75 | B58: 27.5 | C58: 32.6 | D58: 50.9 | F58: 27.3 | G58: 31.53 | H58: 50.82 | I58: 29.03859406 | J58: 31.98681456 | K58: 50.75200719
A59: 76 | B59: 27.4 | C59: 32.2 | D59: 50.5 | F59: 27.33 | G59: 31.61 | H59: 50.73 | I59: 29.00791906 | J59: 31.9748604 | K59: 50.81912803
F60: 27.35555556 | G60: 31.63333333 | H60: 50.64444444 | I60: 29.04148093 | J60: 32.07172246 | K60: 50.93151342
F61: 27.375 | G61: 31.675 | H61: 50.6 | I61: 29.04070593 | J61: 31.99662246 | K61: 50.91623842
F62: 27.38571429 | G62: 31.72857143 | H62: 50.55714286 | I62: 29.06157942 | J62: 32.02536945 | K62: 50.90944726
F63: 27.4 | G63: 31.8 | H63: 50.56666667 | I63: 29.04924243 | J63: 32.06897663 | K63: 50.90678524
F64: 27.42 | G64: 31.86 | H64: 50.56 | I64: 29.08088083 | J64: 32.19161232 | K64: 50.88698029
F65: 27.425 | G65: 31.95 | H65: 50.6 | I65: 29.08877094 | J65: 32.11578814 | K65: 50.92125502
F66: 27.43333333 | G66: 32.1 | H66: 50.66666667 | I66: 29.09000256 | J66: 32.0302091 | K66: 50.95394803
F67: 27.45 | G67: 32.4 | H67: 50.7 | I67: 29.08770748 | J67: 32.08496319 | K67: 50.97165295
F68: 27.4 | G68: 32.2 | H68: 50.5 | I68: 29.10517338 | J68: 32.14132967 | K68: 50.92199954
I69: 29.15538172 | J69: 32.31801717 | K69: 50.91147871
I70: 29.19301103 | J70: 32.2259051 | K70: 50.87785802
I71: 29.11741103 | J71: 31.8775051 | K71: 50.52025802
I72: 29.01991103 | J72: 31.4355051 | K72: 50.09259135

Sheet GF60
A1: TEAM | B1: DAL
A3: Row Labels | B3: 5v5 GF/60 | C3: 5v4 GF/60 | D3: 4v4 GF/60 | G3: 5v5 GF/60 | H3: 5v4 GF/60 | I3: 4v4 GF/60 | J3: 5v5 GF/60 | K3: 5v4 GF/60 | L3: 4v4 GF/60
A4: 11 | B4: 2.9 | C4: 7 | D4: 0
A5: 12 | B5: 2.8 | C5: 6.4 | D5: 0
A6: 13 | B6: 2.7 | C6: 6.2 | D6: 0
A7: 14 | B7: 2.7 | C7: 6.5 | D7: 0
A8: 15 | B8: 2.7 | C8: 6.8 | D8: 0
A9: 16 | B9: 2.7 | C9: 6.3 | D9: 0
A10: 17 | B10: 2.6 | C10: 6 | D10: 0
A11: 18 | B11: 2.6 | C11: 6 | D11: 0
A12: 19 | B12: 2.6 | C12: 5.8 | D12: 1.8
A13: 20 | B13: 2.6 | C13: 5.6 | D13: 1.8 | G13: =AVERAGE(B4:B13) -> 2.69 | H13: =AVERAGE(C4:C13) -> 6.26 | I13: 0.36 | J13: 2.29543147 | K13: 6.234323365 | L13: 1.544128012
A14: 24 | B14: 2.8 | C14: 5.4 | D14: 1.5 | G14: =AVERAGE(B5:B14) -> 2.68 | H14: =AVERAGE(C5:C14) -> 6.1 | I14: =AVERAGE(D5:D14) -> 0.51 | J14: 2.38727147 | K14: 6.422163365 | L14: 1.741968012
A15: 25 | B15: 2.8 | C15: 5.1 | D15: 3 | G15: 2.68 | H15: 5.97 | I15: 0.81 | J15: 2.375813137 | K15: 6.343413365 | L15: 1.808843012
A16: 26 | B16: 2.8 | C16: 5.4 | D16: 3 | G16: 2.69 | H16: 5.89 | I16: 1.11 | J16: 2.3706933 | K16: 6.264983992 | L16: 2.037899616
A17: 27 | B17: 2.7 | C17: 5.5 | D17: 4.2 | G17: 2.69 | H17: 5.79 | I17: 1.53 | J17: 2.349644349 | K17: 6.417518957 | L17: 2.183144371
A18: 28 | B18: 2.7 | C18: 5.6 | D18: 4.2 | G18: 2.69 | H18: 5.67 | I18: 1.95 | J18: 2.358191968 | K18: 6.476661814 | L18: 2.206739609
A19: 29 | B19: 2.7 | C19: 5.5 | D19: 4.2 | G19: 2.69 | H19: 5.59 | I19: 2.37 | J19: 2.366693338 | K19: 6.475659075 | L19: 2.196249199
A20: 30 | B20: 2.7 | C20: 5.3 | D20: 4.2 | G20: 2.7 | H20: 5.52 | I20: 2.79 | J20: 2.368118711 | K20: 6.458773502 | L20: 2.205445716
A21: 31 | B21: 2.7 | C21: 5.3 | D21: 4 | G21: 2.71 | H21: 5.45 | I21: 3.19 | J21: 2.369090264 | K21: 6.449619693 | L21: 2.227142919
A22: 34 | B22: 2.7 | C22: 5.7 | D22: 3.2 | G22: 2.72 | H22: 5.44 | I22: 3.33 | J22: 2.365163347 | K22: 6.400913226 | L22: 2.289347414
A23: 35 | B23: 2.7 | C23: 5.8 | D23: 3.2 | G23: 2.73 | H23: 5.46 | I23: 3.47 | J23: 2.363007012 | K23: 6.405657161 | L23: 2.346228816
A24: 36 | B24: 2.8 | C24: 6.1 | D24: 3.2 | G24: 2.73 | H24: 5.53 | I24: 3.64 | J24: 2.373329174 | K24: 6.390925269 | L24: 2.405686113
A25: 38 | B25: 2.9 | C25: 6.2 | D25: 3 | G25: 2.74 | H25: 5.64 | I25: 3.64 | J25: 2.382287508 | K25: 6.393633602 | L25: 2.45835278
A26: 41 | B26: 2.9 | C26: 5.5 | D26: 3 | G26: 2.75 | H26: 5.65 | I26: 3.64 | J26: 2.368700573 | K26: 6.483152775 | L26: 2.320909079
A27: 42 | B27: 3 | C27: 5.7 | D27: 3 | G27: 2.78 | H27: 5.67 | I27: 3.52 | J27: 2.389761179 | K27: 6.328455805 | L27: 2.218333322
A28: 43 | B28: 3 | C28: 5.4 | D28: 2.9 | G28: 2.81 | H28: 5.65 | I28: 3.39 | J28: 2.381130227 | K28: 6.268634376 | L28: 2.275059512
A29: 44 | B29: 3 | C29: 5.4 | D29: 2.8 | G29: 2.84 | H29: 5.64 | I29: 3.25 | J29: 2.38178737 | K29: 6.280748662 | L29: 2.401945226
A30: 45 | B30: 3 | C30: 5.6 | D30: 2.8 | G30: 2.87 | H30: 5.67 | I30: 3.11 | J30: 2.387509592 | K30: 6.300304218 | L30: 2.44177856
A31: 46 | B31: 3 | C31: 5.4 | D31: 2.8 | G31: 2.9 | H31: 5.68 | I31: 2.99 | J31: 2.386903297 | K31: 6.309006488 | L31: 2.452758952
A32: 47 | B32: 3 | C32: 5.5 | D32: 2.8 | G32: 2.93 | H32: 5.66 | I32: 2.95 | J32: 2.384515237 | K32: 6.325424398 | L32: 2.455594773
A33: 48 | B33: 3 | C33: 5.8 | D33: 2.7 | G33: 2.96 | H33: 5.66 | I33: 2.9 | J33: 2.385728175 | K33: 6.34152952 | L33: 2.512581296
A34: 49 | B34: 2.9 | C34: 6.3 | D34: 2.6 | G34: 2.97 | H34: 5.68 | I34: 2.84 | J34: 2.384335244 | K34: 6.374421412 | L34: 2.461437845
A35: 50 | B35: 2.9 | C35: 6.4 | D35: 2.5 | G35: 2.97 | H35: 5.7 | I35: 2.79 | J35: 2.371059382 | K35: 6.412848136 | L35: 2.5167525
A36: 51 | B36: 2.9 | C36: 6.2 | D36: 2.4 | G36: 2.97 | H36: 5.77 | I36: 2.73 | J36: 2.386765027 | K36: 6.344252706 | L36: 2.54159793
A37: 52 | B37: 2.9 | C37: 6.3 | D37: 2.4 | G37: 2.96 | H37: 5.83 | I37: 2.67 | J37: 2.394331113 | K37: 6.360477722 | L37: 2.555295544
A38: 53 | B38: 2.9 | C38: 6.3 | D38: 3.1 | G38: 2.95 | H38: 5.92 | I38: 2.69 | J38: 2.400436186 | K38: 6.377214264 | L38: 2.545836435
A39: 54 | B39: 2.9 | C39: 6.2 | D39: 3.1 | G39: 2.94 | H39: 6 | I39: 2.72 | J39: 2.395510077 | K39: 6.34901722 | L39: 2.495102444
A40: 55 | B40: 2.8 | C40: 6 | D40: 3 | G40: 2.92 | H40: 6.04 | I40: 2.74 | J40: 2.393658226 | K40: 6.357720924 | L40: 2.479546889
A41: 56 | B41: 2.8 | C41: 6 | D41: 3.6 | G41: 2.9 | H41: 6.1 | I41: 2.82 | J41: 2.39500834 | K41: 6.373266309 | L41: 2.491720802
A42: 57 | B42: 2.8 | C42: 6.1 | D42: 3.6 | G42: 2.88 | H42: 6.16 | I42: 2.9 | J42: 2.397080184 | K42: 6.359001194 | L42: 2.467812378
A43: 58 | B43: 2.8 | C43: 6.2 | D43: 3.6 | G43: 2.86 | H43: 6.2 | I43: 2.99 | J43: 2.396374159 | K43: 6.368264736 | L43: 2.431558574
A44: 59 | B44: 2.8 | C44: 6.1 | D44: 3.5 | G44: 2.85 | H44: 6.18 | I44: 3.08 | J44: 2.397244272 | K44: 6.351281129 | L44: 2.476880138
A45: 60 | B45: 2.8 | C45: 6 | D45: 3.3 | G45: 2.84 | H45: 6.14 | I45: 3.16 | J45: 2.408941187 | K45: 6.365518879 | L45: 2.439874693
A46: 61 | B46: 2.8 | C46: 6.1 | D46: 3.3 | G46: 2.83 | H46: 6.13 | I46: 3.25 | J46: 2.403609614 | K46: 6.404600452 | L46: 2.429050162
A47: 62 | B47: 2.8 | C47: 5.9 | D47: 3.8 | G47: 2.82 | H47: 6.09 | I47: 3.39 | J47: 2.391716358 | K47: 6.397294285 | L47: 2.443922142
A48: 63 | B48: 2.8 | C48: 5.8 | D48: 3.6 | G48: 2.81 | H48: 6.04 | I48: 3.44 | J48: 2.392212162 | K48: 6.421832805 | L48: 2.452244034
A49: 64 | B49: 2.8 | C49: 6.1 | D49: 3.6 | G49: 2.8 | H49: 6.03 | I49: 3.49 | J49: 2.393614461 | K49: 6.447515564 | L49: 2.463758976
A50: 65 | B50: 2.8 | C50: 6 | D50: 3.6 | G50: 2.8 | H50: 6.03 | I50: 3.55 | J50: 2.391714679 | K50: 6.451413168 | L50: 2.489726297
A51: 67 | B51: 2.8 | C51: 6.3 | D51: 3.5 | G51: 2.8 | H51: 6.06 | I51: 3.54 | J51: 2.393794389 | K51: 6.425378747 | L51: 2.50234405
A52: 68 | B52: 2.7 | C52: 6.1 | D52: 3.5 | G52: 2.79 | H52: 6.06 | I52: 3.53 | J52: 2.392030044 | K52: 6.440165351 | L52: 2.52686927
A53: 69 | B53: 2.7 | C53: 6 | D53: 3.4 | G53: 2.78 | H53: 6.04 | I53: 3.51 | J53: 2.396329854 | K53: 6.426704251 | L53: 2.550943274
A54: 70 | B54: 2.7 | C54: 6.2 | D54: 3.4 | G54: 2.77 | H54: 6.05 | I54: 3.5 | J54: 2.400372328 | K54: 6.425301494 | L54: 2.556399682
A55: 71 | B55: 2.8 | C55: 6.3 | D55: 3.4 | G55: 2.77 | H55: 6.08 | I55: 3.51 | J55: 2.400665561 | K55: 6.433797734 | L55: 2.567715471
A56: 72 | B56: 2.7 | C56: 6.3 | D56: 3.7 | G56: 2.76 | H56: 6.1 | I56: 3.55 | J56: 2.39836233 | K56: 6.410659789 | L56: 2.588552257
A57: 73 | B57: 2.7 | C57: 6.2 | D57: 3.7 | G57: 2.75 | H57: 6.13 | I57: 3.54 | J57: 2.402299535 | K57: 6.390759817 | L57: 2.597729806
A58: 74 | B58: 2.7 | C58: 6.2 | D58: 4 | G58: 2.74 | H58: 6.17 | I58: 3.58 | J58: 2.400386157 | K58: 6.369663325 | L58: 2.567014346
A59: 75 | B59: 2.7 | C59: 6.2 | D59: 4 | G59: 2.73 | H59: 6.18 | I59: 3.62 | J59: 2.407146574 | K59: 6.356275825 | L59: 2.572385179
A60: 76 | B60: 2.8 | C60: 6.1 | D60: 3.9 | G60: 2.73 | H60: 6.19 | I60: 3.65 | J60: 2.405917365 | K60: 6.341107468 | L60: 2.556973414
A61: 77 | B61: 2.7 | C61: 6.2 | D61: 4.3 | G61: 2.72 | H61: 6.18 | I61: 3.73 | J61: 2.404617365 | K61: 6.365582468 | L61: 2.562648414
G62: 2.722222222 | H62: 6.188888889 | I62: 3.755555556 | J62: 2.408613349 | K62: 6.33568287 | L62: 2.573772912
G63: 2.725 | H63: 6.2125 | I63: 3.8 | J63: 2.401700089 | K63: 6.338969012 | L63: 2.547842703
G64: 2.728571429 | H64: 6.214285714 | I64: 3.857142857 | J64: 2.391839166 | K64: 6.334489704 | L64: 2.529567601
G65: 2.716666667 | H65: 6.2 | I65: 3.933333333 | J65: 2.393894111 | K65: 6.323357835 | L65: 2.536490678
G66: 2.72 | H66: 6.18 | I66: 3.98 | J66: 2.392570582 | K66: 6.345747541 | L66: 2.54517634
G67: 2.725 | H67: 6.175 | I67: 4.05 | J67: 2.388636156 | K67: 6.348534427 | L67: 2.554684537
G68: 2.733333333 | H68: 6.166666667 | I68: 4.066666667 | J68: 2.386016837 | K68: 6.349943518 | L68: 2.573170332
G69: 2.75 | H69: 6.15 | I69: 4.1 | J69: 2.373256421 | K69: 6.338797684 | L69: 2.589066165
G70: 2.7 | H70: 6.2 | I70: 4.3 | J70: 2.372265041 | K70: 6.309142512 | L70: 2.682816165
J71: 2.382065041 | K71: 6.179542512 | L71: 2.999016165
J72: 2.393731708 | K72: 6.087875845 | L72: 3.332349499
J73: 2.393788527 | K73: 6.049805553 | L73: 3.415604904
J74: 2.398235973 | K74: 6.014613337 | L74: 3.544234622
J75: 2.396885068 | K75: 5.976481176 | L75: 3.669235172
J76: 2.40053258 | K76: 5.892353039 | L76: 3.822180618
J77: 2.41080303 | K77: 5.811151515 | L77: 4.079075758
G78: =AVERAGE(B69:B78) ->  | H78: =AVERAGE(C69:C78) ->  | I78: =AVERAGE(D69:D78) ->  | J78: 2.423958333 | K78: 5.666666667 | L78: 4.445208333
J79: 2.454166667 | K79: 5.466666667 | L79: 5.0125
J80: 2.5 | K80: 5.2 | L80: 5.8
J81: 2.5 | K81: 5.2 | L81: 5.8

Sheet GA60
A1: TEAM | B1: DAL
A3: Row Labels | B3: 5v5 GA/60 | C3: 4v5 GA/60 | D3: 4v4 GA/60 | F3: 5v5 GA/60 | G3: 4v5 GA/60 | H3: 4v4 GA/60 | I3: 5v5 GA/60 | J3: 4v5 GA/60 | K3: 4v4 GA/60
A4: 11 | B4: 2.9 | C4: 6.9 | D4: 8
A5: 12 | B5: 2.9 | C5: 6.3 | D5: 7.3
A6: 13 | B6: 2.7 | C6: 7.6 | D6: 7.3
A7: 14 | B7: 2.8 | C7: 8.3 | D7: 9
A8: 15 | B8: 2.9 | C8: 7.2 | D8: 8.7
A9: 16 | B9: 2.7 | C9: 6.8 | D9: 8.2
A10: 17 | B10: 2.7 | C10: 6.7 | D10: 8.2
A11: 18 | B11: 2.9 | C11: 6.8 | D11: 8.2
A12: 19 | B12: 3 | C12: 7.2 | D12: 7.4
A13: 20 | B13: 2.9 | C13: 7.5 | D13: 7.4 | F13: =AVERAGE(B4:B13) -> 2.84 | G13: =AVERAGE(C4:C13) -> 7.13 | H13: 7.97 | I13: 2.174240601 | J13: 6.41601634 | K13: 1.650579196
A14: 24 | B14: 3 | C14: 7.1 | D14: 7.6 | F14: =AVERAGE(B5:B14) -> 2.85 | G14: =AVERAGE(C5:C14) -> 7.15 | H14: =AVERAGE(D5:D14) -> 7.93 | I14: 2.317760601 | J14: 6.42097634 | K14: 1.850659196
A15: 25 | B15: 3.1 | C15: 7.1 | D15: 7.4 | F15: 2.87 | G15: 7.23 | H15: 7.94 | I15: 2.378593934 | J15: 6.478893007 | K15: 2.024200863
A16: 26 | B16: 3.2 | C16: 7.2 | D16: 7.4 | F16: 2.92 | G16: 7.19 | H16: 7.95 | I16: 2.352566397 | J16: 6.348612538 | K16: 1.949504279
A17: 27 | B17: 3.1 | C17: 7 | D17: 7.1 | F17: 2.95 | G17: 7.06 | H17: 7.76 | I17: 2.349891572 | J17: 6.280255895 | K17: 1.794172111
A18: 28 | B18: 3.1 | C18: 7.2 | D18: 7.1 | F18: 2.97 | G18: 7.06 | H18: 7.6 | I18: 2.364201096 | J18: 6.301613037 | K18: 1.733076873
A19: 29 | B19: 3.1 | C19: 7.5 | D19: 7.1 | F19: 3.01 | G19: 7.13 | H19: 7.49 | I19: 2.365129863 | J19: 6.265207558 | K19: 1.725646736
A20: 30 | B20: 3 | C20: 7.1 | D20: 7.1 | F20: 3.04 | G20: 7.17 | H20: 7.38 | I20: 2.375348768 | J20: 6.273662782 | K20: 1.776858179
A21: 31 | B21: 2.9 | C21: 6.8 | D21: 6.7 | F21: 3.04 | G21: 7.17 | H21: 7.23 | I21: 2.384806338 | J21: 6.27425825 | K21: 1.836361554
A22: 34 | B22: 3 | C22: 7.4 | D22: 5.3 | F22: 3.04 | G22: 7.19 | H22: 7.02 | I22: 2.400359607 | J22: 6.299890433 | K22: 1.925939526
A23: 35 | B23: 2.9 | C23: 7.6 | D23: 5.3 | F23: 3.04 | G23: 7.2 | H23: 6.81 | I23: 2.38667497 | J23: 6.271442994 | K23: 2.033926049
A24: 36 | B24: 2.9 | C24: 7.3 | D24: 5.3 | F24: 3.03 | G24: 7.22 | H24: 6.58 | I24: 2.392749565 | J24: 6.273510021 | K24: 2.086954157
A25: 38 | B25: 2.8 | C25: 7.5 | D25: 6.1 | F25: 3 | G25: 7.26 | H25: 6.45 | I25: 2.366582898 | J25: 6.281301688 | K25: 2.044287491
A26: 41 | B26: 2.9 | C26: 7.1 | D26: 7 | F26: 2.97 | G26: 7.25 | H26: 6.41 | I26: 2.392630778 | J26: 6.316775415 | K26: 2.233433362
A27: 42 | B27: 2.9 | C27: 7.5 | D27: 7 | F27: 2.95 | G27: 7.3 | H27: 6.4 | I27: 2.38444896 | J27: 6.335260263 | K27: 2.465100029
A28: 43 | B28: 2.8 | C28: 7.4 | D28: 6.8 | F28: 2.92 | G28: 7.32 | H28: 6.37 | I28: 2.374091817 | J28: 6.304962644 | K28: 2.603909553
A29: 44 | B29: 2.9 | C29: 7.3 | D29: 6.6 | F29: 2.9 | G29: 7.3 | H29: 6.32 | I29: 2.380920389 | J29: 6.331019787 | K29: 2.56185241
A30: 45 | B30: 2.9 | C30: 7.4 | D30: 6.6 | F30: 2.89 | G30: 7.33 | H30: 6.27 | I30: 2.3805315 | J30: 6.356797565 | K30: 2.60085241
A31: 46 | B31: 2.9 | C31: 7.4 | D31: 6.6 | F31: 2.89 | G31: 7.39 | H31: 6.26 | I31: 2.372371025 | J31: 6.345169598 | K31: 2.622188839
A32: 47 | B32: 2.9 | C32: 7.5 | D32: 6.6 | F32: 2.88 | G32: 7.4 | H32: 6.39 | I32: 2.376400876 | J32: 6.320244225 | K32: 2.584576899
A33: 48 | B33: 2.9 | C33: 7.5 | D33: 6.4 | F33: 2.88 | G33: 7.39 | H33: 6.5 | I33: 2.372255323 | J33: 6.356899211 | K33: 2.574514904
A34: 49 | B34: 2.9 | C34: 7.4 | D34: 6.2 | F34: 2.88 | G34: 7.4 | H34: 6.59 | I34: 2.359737652 | J34: 6.288179877 | K34: 2.569714488
A35: 50 | B35: 2.8 | C35: 7.3 | D35: 5.7 | F35: 2.88 | G35: 7.38 | H35: 6.55 | I35: 2.373030755 | J35: 6.339339359 | K35: 2.622287764
A36: 51 | B36: 2.9 | C36: 7.4 | D36: 5.6 | F36: 2.88 | G36: 7.41 | H36: 6.41 | I36: 2.361794196 | J36: 6.322175381 | K36: 2.49894771
A37: 52 | B37: 2.9 | C37: 7.5 | D37: 5.6 | F37: 2.88 | G37: 7.41 | H37: 6.27 | I37: 2.372123016 | J37: 6.330615097 | K37: 2.524360347
A38: 53 | B38: 2.9 | C38: 7.6 | D38: 5.5 | F38: 2.89 | G38: 7.43 | H38: 6.14 | I38: 2.385917012 | J38: 6.368345428 | K38: 2.488283743
A39: 54 | B39: 2.8 | C39: 7.3 | D39: 5.4 | F39: 2.88 | G39: 7.43 | H39: 6.02 | I39: 2.376178096 | J39: 6.339867596 | K39: 2.583278817
A40: 55 | B40: 2.8 | C40: 7.2 | D40: 5.2 | F40: 2.87 | G40: 7.41 | H40: 5.88 | I40: 2.376641059 | J40: 6.352182411 | K40: 2.558371409
A41: 56 | B41: 2.8 | C41: 7.2 | D41: 5 | F41: 2.86 | G41: 7.39 | H41: 5.72 | I41: 2.382766154 | J41: 6.364485996 | K41: 2.541506421
A42: 57 | B42: 2.8 | C42: 7 | D42: 5 | F42: 2.85 | G42: 7.34 | H42: 5.56 | I42: 2.384147383 | J42: 6.408055437 | K42: 2.550089775
A43: 58 | B43: 2.9 | C43: 6.9 | D43: 5 | F43: 2.85 | G43: 7.28 | H43: 5.42 | I43: 2.390961139 | J43: 6.375699989 | K43: 2.535999696
A44: 59 | B44: 2.9 | C44: 7.1 | D44: 4.9 | F44: 2.85 | G44: 7.25 | H44: 5.29 | I44: 2.404539953 | J44: 6.444277543 | K44: 2.546872332
A45: 60 | B45: 2.9 | C45: 6.9 | D45: 4.6 | F45: 2.86 | G45: 7.21 | H45: 5.18 | I45: 2.393773166 | J45: 6.402322007 | K45: 2.497239845
A46: 61 | B46: 2.9 | C46: 6.9 | D46: 4.6 | F46: 2.86 | G46: 7.16 | H46: 5.08 | I46: 2.39778725 | J46: 6.413055576 | K46: 2.540317897
A47: 62 | B47: 2.9 | C47: 6.8 | D47: 4.4 | F47: 2.86 | G47: 7.09 | H47: 4.96 | I47: 2.402835934 | J47: 6.433711904 | K47: 2.530588362
A48: 63 | B48: 2.9 | C48: 6.7 | D48: 4.2 | F48: 2.86 | G48: 7 | H48: 4.83 | I48: 2.39646675 | J48: 6.440264155 | K48: 2.542091032
A49: 64 | B49: 2.9 | C49: 6.7 | D49: 4.2 | F49: 2.87 | G49: 6.94 | H49: 4.71 | I49: 2.398243762 | J49: 6.437084844 | K49: 2.545686434
A50: 65 | B50: 2.9 | C50: 6.6 | D50: 4.2 | F50: 2.88 | G50: 6.88 | H50: 4.61 | I50: 2.396444197 | J50: 6.410080487 | K50: 2.558485998
A51: 67 | B51: 2.9 | C51: 6.4 | D51: 4.1 | F51: 2.89 | G51: 6.8 | H51: 4.52 | I51: 2.3990384 | J51: 6.421647516 | K51: 2.567043969
A52: 68 | B52: 2.9 | C52: 6.6 | D52: 4.6 | F52: 2.9 | G52: 6.76 | H52: 4.48 | I52: 2.398223616 | J52: 6.402401039 | K52: 2.585775846
A53: 69 | B53: 2.9 | C53: 6.6 | D53: 4.5 | F53: 2.9 | G53: 6.73 | H53: 4.43 | I53: 2.390950371 | J53: 6.394530071 | K53: 2.604827079
A54: 70 | B54: 2.8 | C54: 6.5 | D54: 4.5 | F54: 2.89 | G54: 6.67 | H54: 4.39 | I54: 2.391544633 | J54: 6.378213007 | K54: 2.598033115
A55: 71 | B55: 2.8 | C55: 6.6 | D55: 4.5 | F55: 2.88 | G55: 6.64 | H55: 4.38 | I55: 2.395232603 | J55: 6.372276916 | K55: 2.611645897
A56: 72 | B56: 2.8 | C56: 6.5 | D56: 4.3 | F56: 2.87 | G56: 6.6 | H56: 4.35 | I56: 2.399012636 | J56: 6.373430603 | K56: 2.629732061
A57: 73 | B57: 2.9 | C57: 6.5 | D57: 4.3 | F57: 2.87 | G57: 6.57 | H57: 4.34 | I57: 2.39676479 | J57: 6.378815432 | K57: 2.641652039
A58: 74 | B58: 2.8 | C58: 6.7 | D58: 4 | F58: 2.86 | G58: 6.57 | H58: 4.32 | I58: 2.401616763 | J58: 6.372077494 | K58: 2.636136688
A59: 75 | B59: 2.9 | C59: 6.8 | D59: 4 | F59: 2.86 | G59: 6.58 | H59: 4.3 | I59: 2.401806347 | J59: 6.372314994 | K59: 2.635434605
A60: 76 | B60: 2.9 | C60: 6.7 | D60: 4.4 | F60: 2.86 | G60: 6.59 | H60: 4.32 | I60: 2.403209998 | J60: 6.383795724 | K60: 2.638720609
A61: 77 | B61: 2.9 | C61: 6.7 | D61: 4.3 | F61: 2.86 | G61: 6.62 | H61: 4.34 | I61: 2.395609998 | J61: 6.364970724 | K61: 2.605020609
F62: 2.855555556 | G62: 6.622222222 | H62: 4.311111111 | I62: 2.391023652 | J62: 6.3472398 | K62: 2.598986472
F63: 2.85 | G63: 6.625 | H63: 4.2875 | I63: 2.395183174 | J63: 6.344629631 | K63: 2.605905715
F64: 2.857142857 | G64: 6.642857143 | H64: 4.257142857 | I64: 2.391843622 | J64: 6.353912195 | K64: 2.614116366
F65: 2.866666667 | G65: 6.65 | H65: 4.216666667 | I65: 2.385821644 | J65: 6.354846261 | K65: 2.583764718
F66: 2.88 | G66: 6.68 | H66: 4.2 | I66: 2.377402526 | J66: 6.350250673 | K66: 2.564683835
F67: 2.875 | G67: 6.725 | H67: 4.175 | I67: 2.373140231 | J67: 6.356316247 | K67: 2.57484777
F68: 2.9 | G68: 6.733333333 | H68: 4.233333333 | I68: 2.372986822 | J68: 6.362878747 | K68: 2.60622277
F69: 2.9 | G69: 6.7 | H69: 4.35 | I69: 2.373663905 | J69: 6.389107913 | K69: 2.637524853
F70: 2.9 | G70: 6.7 | H70: 4.3 | I70: 2.382069078 | J70: 6.415788948 | K70: 2.604680025
I71: 2.398669078 | J71: 6.438988948 | K71: 2.453880025
I72: 2.400002411 | J72: 6.487322281 | K72: 2.263046692
I73: 2.401132622 | J73: 6.493258279 | K73: 2.210729846
I74: 2.40388614 | J74: 6.505102131 | K74: 2.161324808
I75: 2.410595149 | J75: 6.535721116 | K75: 2.117118462
I76: 2.421736008 | J76: 6.559382969 | K76: 2.060596539
I77: 2.431984848 | J77: 6.576833333 | K77: 1.915666667
F78: =AVERAGE(B69:B78) ->  | G78: =AVERAGE(C69:C78) ->  | H78: =AVERAGE(D69:D78) ->  | I78: 2.442708333 | J78: 6.621041667 | K78: 1.689583333
I79: 2.4625 | J79: 6.629166667 | K79: 1.325
I80: 2.45 | J80: 6.6 | K80: 0.8
I81: 2.4 | J81: 6.6 | K81: 0.8

Sheet Sh%
A1: TEAM | B1: DET
A3: Row Labels | B3: 5v5 Sh% | C3: 4v4 Sh% | D3: 5v4 Sh% | F3: 5v5 Sh% | G3: 4v4 Sh% | H3: 5v4 Sh% | I3: 5v5 Sh% | J3: 4v4 Sh% | K3: 5v4 Sh%
A4: 11 | B4: 914 | C4: 800 | D4: 896
A5: 12 | B5: 919 | C5: 800 | D5: 904
A6: 13 | B6: 921 | C6: 833 | D6: 897
A7: 14 | B7: 920 | C7: 846 | D7: 877
A8: 15 | B8: 919 | C8: 875 | D8: 863
A9: 16 | B9: 916 | C9: 882 | D9: 868
A10: 17 | B10: 919 | C10: 909 | D10: 866
A11: 18 | B11: 917 | C11: 909 | D11: 863
A12: 19 | B12: 914 | C12: 909 | D12: 860
A13: 24 | B13: 909 | C13: 929 | D13: 854 | F13: =(AVERAGE(B4:B13))/100 -> 9.168 | G13: =(AVERAGE(C4:C13))/100 -> 8.692 | H13: =(AVERAGE(D4:D13))/100 -> 8.748 | I13: 9.230233214 | J13: 9.431410506 | K13: 8.737190764
A14: 25 | B14: 911 | C14: 929 | D14: 853 | F14: =(AVERAGE(B5:B14))/100 -> 9.165 | G14: =(AVERAGE(C5:C14))/100 -> 8.821 | H14: =(AVERAGE(D5:D14))/100 -> 8.705 | I14: 9.196041214 | J14: 9.353986506 | K14: 8.720006764
A15: 26 | B15: 908 | C15: 929 | D15: 847 | F15: 9.154 | G15: 8.95 | H15: 8.648 | I15: 9.193374548 | J15: 9.325069839 | K15: 8.732110931
A16: 27 | B16: 908 | C16: 929 | D16: 849 | F16: 9.141 | G16: 9.046 | H16: 8.6 | I16: 9.191390866 | J16: 9.26378784 | K16: 8.731785586
A17: 28 | B17: 905 | C17: 929 | D17: 856 | F17: 9.126 | G17: 9.129 | H17: 8.579 | I17: 9.197670586 | J17: 9.259576302 | K17: 8.734040831
A18: 29 | B18: 909 | C18: 933 | D18: 860 | F18: 9.116 | G18: 9.187 | H18: 8.576 | I18: 9.196008681 | J18: 9.258200111 | K18: 8.730209879
A19: 30 | B19: 911 | C19: 941 | D19: 856 | F19: 9.111 | G19: 9.246 | H19: 8.564 | I19: 9.194458818 | J19: 9.266659015 | K19: 8.72845207
A20: 31 | B20: 914 | C20: 946 | D20: 852 | F20: 9.106 | G20: 9.283 | H20: 8.55 | I20: 9.1938225 | J20: 9.272909513 | K20: 8.732010279
A21: 32 | B21: 916 | C21: 949 | D21: 855 | F21: 9.105 | G21: 9.323 | H21: 8.542 | I21: 9.192747042 | J21: 9.2691031 | K21: 8.734035352
A22: 33 | B22: 917 | C22: 949 | D22: 855 | F22: 9.108 | G22: 9.363 | H22: 8.537 | I22: 9.192891492 | J22: 9.252329211 | K22: 8.739672511
A23: 36 | B23: 920 | C23: 932 | D23: 841 | F23: 9.119 | G23: 9.366 | H23: 8.524 | I23: 9.19167532 | J23: 9.234126516 | K23: 8.734924532
A24: 37 | B24: 921 | C24: 932 | D24: 842 | F24: 9.129 | G24: 9.369 | H24: 8.513 | I24: 9.187786239 | J24: 9.226550516 | K24: 8.73794637
A25: 38 | B25: 920 | C25: 932 | D25: 844 | F25: 9.141 | G25: 9.372 | H25: 8.51 | I25: 9.188994572 | J25: 9.218925516 | K25: 8.742925537
A26: 39 | B26: 921 | C26: 936 | D26: 848 | F26: 9.154 | G26: 9.379 | H26: 8.509 | I26: 9.196225856 | J26: 9.270349334 | K26: 8.741870759
A27: 42 | B27: 923 | C27: 936 | D27: 839 | F27: 9.172 | G27: 9.386 | H27: 8.492 | I27: 9.188074341 | J27: 9.274819031 | K27: 8.749188941
A28: 43 | B28: 924 | C28: 936 | D28: 838 | F28: 9.187 | G28: 9.389 | H28: 8.47 | I28: 9.188633865 | J28: 9.260277364 | K28: 8.75323656
A29: 44 | B29: 924 | C29: 906 | D29: 838 | F29: 9.2 | G29: 9.354 | H29: 8.452 | I29: 9.186156722 | J29: 9.218263078 | K29: 8.737190846
A30: 45 | B30: 923 | C30: 906 | D30: 832 | F30: 9.209 | G30: 9.314 | H30: 8.432 | I30: 9.184112277 | J30: 9.212163078 | K30: 8.733463068
A31: 46 | B31: 921 | C31: 891 | D31: 825 | F31: 9.214 | G31: 9.256 | H31: 8.402 | I31: 9.183702835 | J31: 9.21618088 | K31: 8.739548723
A32: 47 | B32: 920 | C32: 897 | D32: 823 | F32: 9.217 | G32: 9.204 | H32: 8.37 | I32: 9.183598357 | J32: 9.216240582 | K32: 8.739175589
A33: 48 | B33: 918 | C33: 897 | D33: 824 | F33: 9.215 | G33: 9.169 | H33: 8.353 | I33: 9.182201322 | J33: 9.20214139 | K33: 8.734829228
A34: 49 | B34: 919 | C34: 897 | D34: 826 | F34: 9.213 | G34: 9.134 | H34: 8.337 | I34: 9.183897788 | J34: 9.227464467 | K34: 8.73099139
A35: 50 | B35: 918 | C35: 897 | D35: 821 | F35: 9.211 | G35: 9.099 | H35: 8.314 | I35: 9.182522788 | J35: 9.204632571 | K35: 8.728293114
A36: 51 | B36: 918 | C36: 897 | D36: 819 | F36: 9.208 | G36: 9.06 | H36: 8.285 | I36: 9.176704239 | J36: 9.19993163 | K36: 8.729491367
A37: 52 | B37: 917 | C37: 898 | D37: 822 | F37: 9.202 | G37: 9.022 | H37: 8.268 | I37: 9.176165232 | J37: 9.197036401 | K37: 8.726030051
A38: 53 | B38: 919 | C38: 898 | D38: 819 | F38: 9.197 | G38: 8.984 | H38: 8.249 | I38: 9.17445457 | J38: 9.201184693 | K38: 8.723421356
A39: 54 | B39: 919 | C39: 902 | D39: 817 | F39: 9.192 | G39: 8.98 | H39: 8.228 | I39: 9.17557723 | J39: 9.224819668 | K39: 8.742841553
A40: 55 | B40: 919 | C40: 906 | D40: 817 | F40: 9.188 | G40: 8.98 | H40: 8.213 | I40: 9.174966119 | J40: 9.225717817 | K40: 8.740906368
A41: 57 | B41: 920 | C41: 913 | D41: 821 | F41: 9.187 | G41: 9.002 | H41: 8.209 | I41: 9.174353609 | J41: 9.221678915 | K41: 8.73125038
A42: 58 | B42: 920 | C42: 914 | D42: 823 | F42: 9.187 | G42: 9.019 | H42: 8.209 | I42: 9.173485661 | J42: 9.228606818 | K42: 8.728816279
A43: 59 | B43: 919 | C43: 905 | D43: 821 | F43: 9.188 | G43: 9.027 | H43: 8.206 | I43: 9.174280853 | J43: 9.238901401 | K43: 8.731770935
A44: 60 | B44: 920 | C44: 905 | D44: 822 | F44: 9.189 | G44: 9.035 | H44: 8.202 | I44: 9.17291137 | J44: 9.219332422 | K44: 8.733098804
A45: 61 | B45: 921 | C45: 905 | D45: 820 | F45: 9.192 | G45: 9.043 | H45: 8.201 | I45: 9.172292948 | J45: 9.235999845 | K45: 8.726468133
A46: 62 | B46: 921 | C46: 905 | D46: 822 | F46: 9.195 | G46: 9.051 | H46: 8.204 | I46: 9.174227808 | J46: 9.239711993 | K46: 8.729876877
A47: 63 | B47: 920 | C47: 905 | D47: 821 | F47: 9.198 | G47: 9.058 | H47: 8.203 | I47: 9.174913707 | J47: 9.230646 | K47: 8.72770414
A48: 64 | B48: 922 | C48: 908 | D48: 822 | F48: 9.201 | G48: 9.068 | H48: 8.206 | I48: 9.174774119 | J48: 9.229041881 | K48: 8.722172484
A49: 65 | B49: 922 | C49: 908 | D49: 823 | F49: 9.204 | G49: 9.074 | H49: 8.212 | I49: 9.173975269 | J49: 9.223681191 | K49: 8.718078002
A50: 66 | B50: 921 | C50: 896 | D50: 826 | F50: 9.206 | G50: 9.064 | H50: 8.221 | I50: 9.174346511 | J50: 9.216423239 | K50: 8.719258612
A51: 67 | B51: 921 | C51: 896 | D51: 827 | F51: 9.207 | G51: 9.047 | H51: 8.227 | I51: 9.173541257 | J51: 9.212225956 | K51: 8.722776003
A52: 68 | B52: 922 | C52: 896 | D52: 829 | F52: 9.209 | G52: 9.029 | H52: 8.233 | I52: 9.174570867 | J52: 9.204605372 | K52: 8.725971837
A53: 69 | B53: 923 | C53: 899 | D53: 832 | F53: 9.213 | G53: 9.023 | H53: 8.244 | I53: 9.173386996 | J53: 9.200248636 | K53: 8.726984551
A54: 70 | B54: 922 | C54: 899 | D54: 834 | F54: 9.215 | G54: 9.017 | H54: 8.256 | I54: 9.172300185 | J54: 9.198176356 | K54: 8.725633954
A55: 71 | B55: 921 | C55: 899 | D55: 836 | F55: 9.215 | G55: 9.011 | H55: 8.272 | I55: 9.172932892 | J55: 9.194058687 | K55: 8.726827188
A56: 72 | B56: 919 | C56: 900 | D56: 838 | F56: 9.213 | G56: 9.006 | H56: 8.288 | I56: 9.173093621 | J56: 9.184328156 | K56: 8.733338787
A57: 73 | B57: 919 | C57: 900 | D57: 837 | F57: 9.212 | G57: 9.001 | H57: 8.304 | I57: 9.17298498 | J57: 9.183704928 | K57: 8.737745566
A58: 74 | B58: 919 | C58: 901 | D58: 837 | F58: 9.209 | G58: 8.994 | H58: 8.319 | I58: 9.173902195 | J58: 9.191834862 | K58: 8.741823417
A59: 75 | B59: 919 | C59: 901 | D59: 838 | F59: 9.206 | G59: 8.987 | H59: 8.334 | I59: 9.174110528 | J59: 9.190871737 | K59: 8.744336542
A60: 76 | B60: 920 | C60: 902 | D60: 837 | F60: 9.205 | G60: 8.993 | H60: 8.345 | I60: 9.174524727 | J60: 9.194562001 | K60: 8.746860274
F61: 9.204444444 | G61: 8.996666667 | H61: 8.353333333 | I61: 9.175497227 | J61: 9.190484501 | K61: 8.745660274
F62: =(AVERAGE(B53:B62))/100 -> 9.2025 | G62: =(AVERAGE(C53:C62))/100 -> 9.00125 | H62: =(AVERAGE(D53:D62))/100 -> 8.36125 | I62: 9.174511685 | J62: 9.187817231 | K62: 8.749633367
F63: 9.198571429 | G63: 9.002857143 | H63: 8.367142857 | I63: 9.176728634 | J63: 9.192108358 | K63: 8.747103157
F64: 9.195 | G64: 9.005 | H64: 8.371666667 | I64: 9.179360588 | J64: 9.198799674 | K64: 8.751678123
F65: 9.192 | G65: 9.008 | H65: 8.374 | I65: 9.179300148 | J65: 9.196226048 | K65: 8.752763838
F66: 9.1925 | G66: 9.01 | H66: 8.3725 | I66: 9.18057956 | J66: 9.195353805 | K66: 8.748978911
F67: 9.193333333 | G67: 9.013333333 | H67: 8.373333333 | I67: 9.181595953 | J67: 9.1946161 | K67: 8.749142846
F68: 9.195 | G68: 9.015 | H68: 8.375 | I68: 9.181482885 | J68: 9.188668941 | K68: 8.749332618
F69: 9.2 | G69: 9.02 | H69: 8.37 | I69: 9.183641218 | J69: 9.187272066 | K69: 8.754679493
I70: 9.181619667 | J70: 9.161108273 | K70: 8.758438114
I71: 9.176959667 | J71: 9.082948273 | K71: 8.787338114
I72: 9.170559667 | J72: 8.99796494 | K72: 8.810304781

Sheet GF
A1: Date | B1: Rk | C1: Team | D1: GP | E1: 5 on 5 | F1: 5 on 4 | G1: 5 on 3 | H1: 4 on 4 | I1: 4 on 3 | J1: 3 on 3 | K1: 3 on 4 | L1: 3 on 5 | M1: 4 on 5 | N1: EN | O1: PS | P1: Total | Q1: GF/G | S1: Team | T1: L.A
A2: 2014-10-08 | B2: 11 | C2: ANA | D2: 0 | E2: 0 | F2: 0 | G2: 0 | H2: 0 | I2: 0 | J2: 0 | K2: 0 | L2: 0 | M2: 0 | N2: 0 | O2: 0 | P2: 0 | Q2: 0
A3: 2014-10-08 | B3: 30 | C3: ARI | D3: 0 | E3: 0 | F3: 0 | G3: 0 | H3: 0 | I3: 0 | J3: 0 | K3: 0 | L3: 0 | M3: 0 | N3: 0 | O3: 0 | P3: 0 | Q3: 0 | T3: 5v5 | U3: 5v4 | V3: 5v3 | W3: 4v4 | X3: 4v3 | Z3: 5v5 | AA3: 5v4 | AB3: 5v3 | AC3: 4v4 | AD3: 4v3
A4: 2014-10-08 | B4: 5 | C4: BOS | D4: 1 | E4: 1 | F4: 1 | G4: 0 | H4: 0 | I4: 0 | J4: 0 | K4: 0 | L4: 0 | M4: 0 | N4: 0 | O4: 0 | P4: 2 | Q4: 2 | S4: 1 | T4: 0 | U4: 0 | V4: 0 | W4: 0 | X4: 0
A5: 2014-10-08 | B5: 22 | C5: BUF | D5: 0 | E5: 0 | F5: 0 | G5: 0 | H5: 0 | I5: 0 | J5: 0 | K5: 0 | L5: 0 | M5: 0 | N5: 0 | O5: 0 | P5: 0 | Q5: 0 | S5: 2 | T5: 2 | U5: 0 | V5: 0 | W5: 0 | X5: 0
A6: 2014-10-08 | B6: 24 | C6: CAR | D6: 0 | E6: 0 | F6: 0 | G6: 0 | H6: 0 | I6: 0 | J6: 0 | K6: 0 | L6: 0 | M6: 0 | N6: 0 | O6: 0 | P6: 0 | Q6: 0 | S6: 3 | T6: 6 | U6: 0 | V6: 0 | W6: 0 | X6: 0
A7: 2014-10-08 | B7: 14 | C7: CBJ | D7: 0 | E7: 0 | F7: 0 | G7: 0 | H7: 0 | I7: 0 | J7: 0 | K7: 0 | L7: 0 | M7: 0 | N7: 0 | O7: 0 | P7: 0 | Q7: 0 | S7: 4 | T7: 10 | U7: 1 | V7: 0 | W7: 0 | X7: 0
A8: 2014-10-08 | B8: 6 | C8: CGY | D8: 1 | E8: 2 | F8: 0 | G8: 0 | H8: 0 | I8: 0 | J8: 0 | K8: 0 | L8: 0 | M8: 0 | N8: 0 | O8: 0 | P8: 2 | Q8: 2 | S8: 5 | T8: 10 | U8: 1 | V8: 0 | W8: 0 | X8: 0 | Z8: =AVERAGE(T4:T8) -> 5.6 | AA8: =AVERAGE(U4:U8) -> 0.4 | AB8: =AVERAGE(V4:V8) -> 0 | AC8: =AVERAGE(W4:W8) -> 0 | AD8: =AVERAGE(X4:X8) -> 0
A9: 2014-10-08 | B9: 28 | C9: CHI | D9: 0 | E9: 0 | F9: 0 | G9: 0 | H9: 0 | I9: 0 | J9: 0 | K9: 0 | L9: 0 | M9: 0 | N9: 0 | O9: 0 | P9: 0 | Q9: 0 | S9: 6 | T9: 11 | U9: 2 | V9: 0 | W9: 0 | X9: 0 | Z9: =AVERAGE(T5:T9) -> 7.8 | AA9: =AVERAGE(U5:U9) -> 0.8 | AB9: =AVERAGE(V5:V9) -> 0 | AC9: =AVERAGE(W5:W9) -> 0 | AD9: =AVERAGE(X5:X9) -> 0
A10: 2014-10-08 | B10: 10 | C10: COL | D10: 0 | E10: 0 | F10: 0 | G10: 0 | H10: 0 | I10: 0 | J10: 0 | K10: 0 | L10: 0 | M10: 0 | N10: 0 | O10: 0 | P10: 0 | Q10: 0 | S10: 7 | T10: 11 | U10: 4 | V10: 0 | W10: 0 | X10: 0 | Z10: =AVERAGE(T6:T10) -> 9.6 | AA10: =AVERAGE(U6:U10) -> 1.6 | AB10: =AVERAGE(V6:V10) -> 0 | AC10: =AVERAGE(W6:W10) -> 0 | AD10: =AVERAGE(X6:X10) -> 0
A11: 2014-10-08 | B11: 12 | C11: DAL | D11: 0 | E11: 0 | F11: 0 | G11: 0 | H11: 0 | I11: 0 | J11: 0 | K11: 0 | L11: 0 | M11: 0 | N11: 0 | O11: 0 | P11: 0 | Q11: 0 | S11: 8 | T11: 15 | U11: 4 | V11: 1 | W11: 0 | X11: 0 | Z11: =AVERAGE(T7:T11) -> 11.4 | AA11: =AVERAGE(U7:U11) -> 2.4 | AB11: =AVERAGE(V7:V11) -> 0.2 | AC11: =AVERAGE(W7:W11) -> 0 | AD11: =AVERAGE(X7:X11) -> 0
A12: 2014-10-08 | B12: 29 | C12: DET | D12: 0 | E12: 0 | F12: 0 | G12: 0 | H12: 0 | I12: 0 | J12: 0 | K12: 0 | L12: 0 | M12: 0 | N12: 0 | O12: 0 | P12: 0 | Q12: 0 | S12: 9 | T12: 16 | U12: 4 | V12: 1 | W12: 0 | X12: 0 | Z12: =AVERAGE(T8:T12) -> 12.6 | AA12: =AVERAGE(U8:U12) -> 3 | AB12: =AVERAGE(V8:V12) -> 0.4 | AC12: =AVERAGE(W8:W12) -> 0 | AD12: =AVERAGE(X8:X12) -> 0
A13: 2014-10-08 | B13: 9 | C13: EDM | D13: 0 | E13: 0 | F13: 0 | G13: 0 | H13: 0 | I13: 0 | J13: 0 | K13: 0 | L13: 0 | M13: 0 | N13: 0 | O13: 0 | P13: 0 | Q13: 0 | S13: 10 | T13: 16 | U13: 4 | V13: 1 | W13: 0 | X13: 0 | Z13: =AVERAGE(T9:T13) -> 13.8 | AA13: =AVERAGE(U9:U13) -> 3.6 | AB13: =AVERAGE(V9:V13) -> 0.6 | AC13: =AVERAGE(W9:W13) -> 0 | AD13: =AVERAGE(X9:X13) -> 0
A14: 2014-10-08 | B14: 25 | C14: FLA | D14: 0 | E14: 0 | F14: 0 | G14: 0 | H14: 0 | I14: 0 | J14: 0 | K14: 0 | L14: 0 | M14: 0 | N14: 0 | O14: 0 | P14: 0 | Q14: 0 | S14: 11 | T14: 17 | U14: 4 | V14: 1 | W14: 0 | X14: 0 | Z14: =AVERAGE(T10:T14) -> 15 | AA14: =AVERAGE(U10:U14) -> 4 | AB14: =AVERAGE(V10:V14) -> 0.8 | AC14: =AVERAGE(W10:W14) -> 0 | AD14: =AVERAGE(X10:X14) -> 0
A15: 2014-10-08 | B15: 13 | C15: L.A | D15: 1 | E15: 0 | F15: 0 | G15: 0 | H15: 0 | I15: 0 | J15: 0 | K15: 0 | L15: 0 | M15: 0 | N15: 0 | O15: 0 | P15: 0 | Q15: 0 | S15: 12 | T15: 18 | U15: 5 | V15: 1 | W15: 0 | X15: 0 | Z15: =AVERAGE(T11:T15) -> 16.4 | AA15: =AVERAGE(U11:U15) -> 4.2 | AB15: =AVERAGE(V11:V15) -> 1 | AC15: =AVERAGE(W11:W15) -> 0 | AD15: =AVERAGE(X11:X15) -> 0
A16: 2014-10-08 | B16: 15 | C16: MIN | D16: 0 | E16: 0 | F16: 0 | G16: 0 | H16: 0 | I16: 0 | J16: 0 | K16: 0 | L16: 0 | M16: 0 | N16: 0 | O16: 0 | P16: 0 | Q16: 0 | S16: 13 | T16: 20 | U16: 5 | V16: 1 | W16: 0 | X16: 0 | Z16: =AVERAGE(T12:T16) -> 17.4 | AA16: =AVERAGE(U12:U16) -> 4.4 | AB16: =AVERAGE(V12:V16) -> 1 | AC16: =AVERAGE(W12:W16) -> 0 | AD16: =AVERAGE(X12:X16) -> 0
A17: 2014-10-08 | B17: 2 | C17: MTL | D17: 1 | E17: 4 | F17: 0 | G17: 0 | H17: 0 | I17: 0 | J17: 0 | K17: 0 | L17: 0 | M17: 0 | N17: 0 | O17: 0 | P17: 4 | Q17: 4 | S17: 14 | T17: 21 | U17: 5 | V17: 1 | W17: 0 | X17: 0 | Z17: =AVERAGE(T13:T17) -> 18.4 | AA17: =AVERAGE(U13:U17) -> 4.6 | AB17: =AVERAGE(V13:V17) -> 1 | AC17: =AVERAGE(W13:W17) -> 0 | AD17: =AVERAGE(X13:X17) -> 0
A18: 2014-10-08 | B18: 8 | C18: N.J | D18: 0 | E18: 0 | F18: 0 | G18: 0 | H18: 0 | I18: 0 | J18: 0 | K18: 0 | L18: 0 | M18: 0 | N18: 0 | O18: 0 | P18: 0 | Q18: 0 | S18: 15 | T18: 26 | U18: 5 | V18: 1 | W18: 0 | X18: 0 | Z18: =AVERAGE(T14:T18) -> 20.4 | AA18: =AVERAGE(U14:U18) -> 4.8 | AB18: =AVERAGE(V14:V18) -> 1 | AC18: =AVERAGE(W14:W18) -> 0 | AD18: =AVERAGE(X14:X18) -> 0
A19: 2014-10-08 | B19: 18 | C19: NSH | D19: 0 | E19: 0 | F19: 0 | G19: 0 | H19: 0 | I19: 0 | J19: 0 | K19: 0 | L19: 0 | M19: 0 | N19: 0 | O19: 0 | P19: 0 | Q19: 0 | S19: 16 | T19: 30 | U19: 5 | V19: 1 | W19: 0 | X19: 0 | Z19: =AVERAGE(T15:T19) -> 23 | AA19: =AVERAGE(U15:U19) -> 5 | AB19: =AVERAGE(V15:V19) -> 1 | AC19: =AVERAGE(W15:W19) -> 0 | AD19: =AVERAGE(X15:X19) -> 0
A20: 2014-10-08 | B20: 19 | C20: NYI | D20: 0 | E20: 0 | F20: 0 | G20: 0 | H20: 0 | I20: 0 | J20: 0 | K20: 0 | L20: 0 | M20: 0 | N20: 0 | O20: 0 | P20: 0 | Q20: 0 | S20: 17 | T20: 30 | U20: 5 | V20: 1 | W20: 0 | X20: 0 | Z20: =AVERAGE(T16:T20) -> 25.4 | AA20: =AVERAGE(U16:U20) -> 5 | AB20: =AVERAGE(V16:V20) -> 1 | AC20: =AVERAGE(W16:W20) -> 0 | AD20: =AVERAGE(X16:X20) -> 0
A21: 2014-10-08 | B21: 20 | C21: NYR | D21: 0 | E21: 0 | F21: 0 | G21: 0 | H21: 0 | I21: 0 | J21: 0 | K21: 0 | L21: 0 | M21: 0 | N21: 0 | O21: 0 | P21: 0 | Q21: 0 | S21: 18 | T21: 30 | U21: 6 | V21: 1 | W21: 0 | X21: 1 | Z21: =AVERAGE(T17:T21) -> 27.4 | AA21: =AVERAGE(U17:U21) -> 5.2 | AB21: =AVERAGE(V17:V21) -> 1 | AC21: =AVERAGE(W17:W21) -> 0 | AD21: =AVERAGE(X17:X21) -> 0.2
A22: 2014-10-08 | B22: 23 | C22: OTT | D22: 0 | E22: 0 | F22: 0 | G22: 0 | H22: 0 | I22: 0 | J22: 0 | K22: 0 | L22: 0 | M22: 0 | N22: 0 | O22: 0 | P22: 0 | Q22: 0 | S22: 19 | T22: 32 | U22: 9 | V22: 1 | W22: 0 | X22: 1 | Z22: =AVERAGE(T18:T22) -> 29.6 | AA22: =AVERAGE(U18:U22) -> 6 | AB22: =AVERAGE(V18:V22) -> 1 | AC22: =AVERAGE(W18:W22) -> 0 | AD22: =AVERAGE(X18:X22) -> 0.4
A23: 2014-10-08 | B23: 7 | C23: PHI | D23: 1 | E23: 1 | F23: 0 | G23: 0 | H23: 0 | I23: 0 | J23: 0 | K23: 0 | L23: 0 | M23: 0 | N23: 0 | O23: 0 | P23: 1 | Q23: 1 | S23: 20 | T23: 34 | U23: 10 | V23: 1 | W23: 0 | X23: 1 | Z23: =AVERAGE(T19:T23) -> 31.2 | AA23: =AVERAGE(U19:U23) -> 7 | AB23: =AVERAGE(V19:V23) -> 1 | AC23: =AVERAGE(W19:W23) -> 0 | AD23: =AVERAGE(X19:X23) -> 0.6
A24: 2014-10-08 | B24: 21 | C24: PIT | D24: 0 | E24: 0 | F24: 0 | G24: 0 | H24: 0 | I24: 0 | J24: 0 | K24: 0 | L24: 0 | M24: 0 | N24: 0 | O24: 0 | P24: 0 | Q24: 0 | S24: 21 | T24: 37 | U24: 11 | V24: 1 | W24: 0 | X24: 1 | Z24: =AVERAGE(T20:T24) -> 32.6 | AA24: =AVERAGE(U20:U24) -> 8.2 | AB24: =AVERAGE(V20:V24) -> 1 | AC24: =AVERAGE(W20:W24) -> 0 | AD24: =AVERAGE(X20:X24) -> 0.8
A25: 2014-10-08 | B25: 3 | C25: S.J | D25: 1 | E25: 3 | F25: 1 | G25: 0 | H25: 0 | I25: 0 | J25: 0 | K25: 0 | L25: 0 | M25: 0 | N25: 0 | O25: 0 | P25: 4 | Q25: 4 | S25: 22 | T25: 40 | U25: 11 | V25: 1 | W25: 0 | X25: 1 | Z25: =AVERAGE(T21:T25) -> 34.6 | AA25: =AVERAGE(U21:U25) -> 9.4 | AB25: =AVERAGE(V21:V25) -> 1 | AC25: =AVERAGE(W21:W25) -> 0 | AD25: =AVERAGE(X21:X25) -> 1
A26: 2014-10-08 | B26: 17 | C26: STL | D26: 0 | E26: 0 | F26: 0 | G26: 0 | H26: 0 | I26: 0 | J26: 0 | K26: 0 | L26: 0 | M26: 0 | N26: 0 | O26: 0 | P26: 0 | Q26: 0 | S26: 23 | T26: 44 | U26: 11 | V26: 1 | W26: 0 | X26: 1 | Z26: =AVERAGE(T22:T26) -> 37.4 | AA26: =AVERAGE(U22:U26) -> 10.4 | AB26: =AVERAGE(V22:V26) -> 1 | AC26: =AVERAGE(W22:W26) -> 0 | AD26: =AVERAGE(X22:X26) -> 1
A27: 2014-10-08 | B27: 26 | C27: T.B | D27: 0 | E27: 0 | F27: 0 | G27: 0 | H27: 0 | I27: 0 | J27: 0 | K27: 0 | L27: 0 | M27: 0 | N27: 0 | O27: 0 | P27: 0 | Q27: 0 | S27: 24 | T27: 45 | U27: 11 | V27: 1 | W27: 0 | X27: 1 | Z27: =AVERAGE(T23:T27) -> 40 | AA27: =AVERAGE(U23:U27) -> 10.8 | AB27: =AVERAGE(V23:V27) -> 1 | AC27: =AVERAGE(W23:W27) -> 0 | AD27: =AVERAGE(X23:X27) -> 1
A28: 2014-10-08 | B28: 4 | C28: TOR | D28: 1 | E28: 2 | F28: 1 | G28: 0 | H28: 0 | I28: 0 | J28: 0 | K28: 0 | L28: 0 | M28: 0 | N28: 0 | O28: 0 | P28: 3 | Q28: 3 | S28: 25 | T28: 46 | U28: 11 | V28: 1 | W28: 0 | X28: 1 | Z28: =AVERAGE(T24:T28) -> 42.4 | AA28: =AVERAGE(U24:U28) -> 11 | AB28: =AVERAGE(V24:V28) -> 1 | AC28: =AVERAGE(W24:W28) -> 0 | AD28: =AVERAGE(X24:X28) -> 1
A29: 2014-10-08 | B29: 1 | C29: VAN | D29: 1 | E29: 2 | F29: 1 | G29: 0 | H29: 0 | I29: 0 | J29: 0 | K29: 0 | L29: 0 | M29: 0 | N29: 1 | O29: 0 | P29: 4 | Q29: 4 | S29: 26 | T29: 48 | U29: 13 | V29: 1 | W29: 0 | X29: 1 | Z29: =AVERAGE(T25:T29) -> 44.6 | AA29: =AVERAGE(U25:U29) -> 11.4 | AB29: =AVERAGE(V25:V29) -> 1 | AC29: =AVERAGE(W25:W29) -> 0 | AD29: =AVERAGE(X25:X29) -> 1
A30: 2014-10-08 | B30: 16 | C30: WPG | D30: 0 | E30: 0 | F30: 0 | G30: 0 | H30: 0 | I30: 0 | J30: 0 | K30: 0 | L30: 0 | M30: 0 | N30: 0 | O30: 0 | P30: 0 | Q30: 0 | S30: 27 | T30: 49 | U30: 13 | V30: 1 | W30: 0 | X30: 1 | Z30: =AVERAGE(T26:T30) -> 46.4 | AA30: =AVERAGE(U26:U30) -> 11.8 | AB30: =AVERAGE(V26:V30) -> 1 | AC30: =AVERAGE(W26:W30) -> 0 | AD30: =AVERAGE(X26:X30) -> 1
A31: 2014-10-08 | B31: 27 | C31: WSH | D31: 0 | E31: 0 | F31: 0 | G31: 0 | H31: 0 | I31: 0 | J31: 0 | K31: 0 | L31: 0 | M31: 0 | N31: 0 | O31: 0 | P31: 0 | Q31: 0 | S31: 28 | T31: 49 | U31: 13 | V31: 1 | W31: 0 | X31: 1 | Z31: =AVERAGE(T27:T31) -> 47.4 | AA31: =AVERAGE(U27:U31) -> 12.2 | AB31: =AVERAGE(V27:V31) -> 1 | AC31: =AVERAGE(W27:W31) -> 0 | AD31: =AVERAGE(X27:X31) -> 1
A32: 2014-10-09 | B32: 6 | C32: ANA | D32: 1 | E32: 1 | F32: 3 | G32: 0 | H32: 0 | I32: 0 | J32: 0 | K32: 0 | L32: 0 | M32: 0 | N32: 0 | O32: 0 | P32: 4 | Q32: 4 | S32: 29 | T32: 52 | U32: 14 | V32: 1 | W32: 0 | X32: 1 | Z32: =AVERAGE(T28:T32) -> 48.8 | AA32: =AVERAGE(U28:U32) -> 12.8 | AB32: =AVERAGE(V28:V32) -> 1 | AC32: =AVERAGE(W28:W32) -> 0 | AD32: =AVERAGE(X28:X32) -> 1
A33: 2014-10-09 | B33: 21 | C33: ARI | D33: 1 | E33: 2 | F33: 0 | G33: 0 | H33: 0 | I33: 0 | J33: 0 | K33: 0 | L33: 0 | M33: 0 | N33: 0 | O33: 0 | P33: 2 | Q33: 2 | S33: 30 | T33: 54 | U33: 14 | V33: 1 | W33: 0 | X33: 1 | Z33: =AVERAGE(T29:T33) -> 50.4 | AA33: =AVERAGE(U29:U33) -> 13.4 | AB33: =AVERAGE(V29:V33) -> 1 | AC33: =AVERAGE(W29:W33) -> 0 | AD33: =AVERAGE(X29:X33) -> 1
A34: 2014-10-09 | B34: 24 | C34: BOS | D34: 2 | E34: 2 | F34: 1 | G34: 0 | H34: 0 | I34: 0 | J34: 0 | K34: 0 | L34: 0 | M34: 0 | N34: 0 | O34: 0 | P34: 3 | Q34: 1.5 | S34: 31 | T34: 57 | U34: 14 | V34: 1 | W34: 0 | X34: 1 | Z34: =AVERAGE(T30:T34) -> 52.2 | AA34: =AVERAGE(U30:U34) -> 13.6 | AB34: =AVERAGE(V30:V34) -> 1 | AC34: =AVERAGE(W30:W34) -> 0 | AD34: =AVERAGE(X30:X34) -> 1
A35: 2014-10-09 | B35: 26 | C35: BUF | D35: 1 | E35: 1 | F35: 0 | G35: 0 | H35: 0 | I35: 0 | J35: 0 | K35: 0 | L35: 0 | M35: 0 | N35: 0 | O35: 0 | P35: 1 | Q35: 1 | S35: 32 | T35: 58 | U35: 15 | V35: 1 | W35: 0 | X35: 1 | Z35: =AVERAGE(T31:T35) -> 54 | AA35: =AVERAGE(U31:U35) -> 14 | AB35: =AVERAGE(V31:V35) -> 1 | AC35: =AVERAGE(W31:W35) -> 0 | AD35: =AVERAGE(X31:X35) -> 1
A36: 2014-10-09 | B36: 27 | C36: CAR | D36: 0 | E36: 0 | F36: 0 | G36: 0 | H36: 0 | I36: 0 | J36: 0 | K36: 0 | L36: 0 | M36: 0 | N36: 0 | O36: 0 | P36: 0 | Q36: 0 | S36: 33 | T36: 60 | U36: 18 | V36: 1 | W36: 1 | X36: 1 | Z36: =AVERAGE(T32:T36) -> 56.2 | AA36: =AVERAGE(U32:U36) -> 15 | AB36: =AVERAGE(V32:V36) -> 1 | AC36: =AVERAGE(W32:W36) -> 0.2 | AD36: =AVERAGE(X32:X36) -> 1
A37: 2014-10-09 | B37: 13 | C37: CBJ | D37: 1 | E37: 2 | F37: 1 | G37: 0 | H37: 0 | I37: 0 | J37: 0 | K37: 0 | L37: 0 | M37: 0 | N37: 0 | O37: 0 | P37: 3 | Q37: 3 | S37: 34 | T37: 62 | U37: 20 | V37: 1 | W37: 1 | X37: 1 | Z37: =AVERAGE(T33:T37) -> 58.2 | AA37: =AVERAGE(U33:U37) -> 16.2 | AB37: =AVERAGE(V33:V37) -> 1 | AC37: =AVERAGE(W33:W37) -> 0.4 | AD37: =AVERAGE(X33:X37) -> 1
A38: 2014-10-09 | B38: 8 | C38: CGY | D38: 2 | E38: 6 | F38: 1 | G38: 0 | H38: 0 | I38: 0 | J38: 0 | K38: 0 | L38: 0 | M38: 0 | N38: 0 | O38: 0 | P38: 7 | Q38: 3.5 | S38: 35 | T38: 63 | U38: 22 | V38: 1 | W38: 1 | X38: 1 | Z38: =AVERAGE(T34:T38) -> 60 | AA38: =AVERAGE(U34:U38) -> 17.8 | AB38: =AVERAGE(V34:V38) -> 1 | AC38: =AVERAGE(W34:W38) -> 0.6 | AD38: =AVERAGE(X34:X38) -> 1
A39: 2014-10-09 | B39: 23 | C39: CHI | D39: 1 | E39: 1 | F39: 1 | G39: 0 | H39: 0 | I39: 0 | J39: 0 | K39: 0 | L39: 0 | M39: 0 | N39: 0 | O39: 0 | P39: 2 | Q39: 2 | S39: 36 | T39: 64 | U39: 24 | V39: 1 | W39: 1 | X39: 1 | Z39: =AVERAGE(T35:T39) -> 61.4 | AA39: =AVERAGE(U35:U39) -> 19.8 | AB39: =AVERAGE(V35:V39) -> 1 | AC39: =AVERAGE(W35:W39) -> 0.8 | AD39: =AVERAGE(X35:X39) -> 1
A40: 2014-10-09 | B40: 28 | C40: COL | D40: 1 | E40: 0 | F40: 0 | G40: 0 | H40: 0 | I40: 0 | J40: 0 | K40: 0 | L40: 0 | M40: 0 | N40: 0 | O40: 0 | P40: 0 | Q40: 0 | S40: 37 | T40: 65 | U40: 24 | V40: 1 | W40: 1 | X40: 1 | Z40: =AVERAGE(T36:T40) -> 62.8 | AA40: =AVERAGE(U36:U40) -> 21.6 | AB40: =AVERAGE(V36:V40) -> 1 | AC40: =AVERAGE(W36:W40) -> 1 | AD40: =AVERAGE(X36:X40) -> 1
A41: 2014-10-09 | B41: 16 | C41: DAL | D41: 1 | E41: 1 | F41: 1 | G41: 0 | H41: 0 | I41: 0 | J41: 0 | K41: 0 | L41: 0 | M41: 0 | N41: 0 | O41: 0 | P41: 2 | Q41: 2 | S41: 38 | T41: 66 | U41: 25 | V41: 1 | W41: 1 | X41: 1 | Z41: =AVERAGE(T37:T41) -> 64 | AA41: =AVERAGE(U37:U41) -> 23 | AB41: =AVERAGE(V37:V41) -> 1 | AC41: =AVERAGE(W37:W41) -> 1 | AD41: =AVERAGE(X37:X41) -> 1
A42: 2014-10-09 | B42: 19 | C42: DET | D42: 1 | E42: 1 | F42: 1 | G42: 0 | H42: 0 | I42: 0 | J42: 0 | K42: 0 | L42: 0 | M42: 0 | N42: 0 | O42: 0 | P42: 2 | Q42: 2 | S42: 39 | T42: 68 | U42: 26 | V42: 1 | W42: 1 | X42: 1 | Z42: =AVERAGE(T38:T42) -> 65.2 | AA42: =AVERAGE(U38:U42) -> 24.2 | AB42: =AVERAGE(V38:V42) -> 1 | AC42: =AVERAGE(W38:W42) -> 1 | AD42: =AVERAGE(X38:X42) -> 1
A43: 2014-10-09 | B43: 17 | C43: EDM | D43: 1 | E43: 0 | F43: 1 | G43: 1 | H43: 0 | I43: 0 | J43: 0 | K43: 0 | L43: 0 | M43: 0 | N43: 0 | O43: 0 | P43: 2 | Q43: 2 | S43: 40 | T43: 72 | U43: 26 | V43: 1 | W43: 3 | X43: 1 | Z43: =AVERAGE(T39:T43) -> 67 | AA43: =AVERAGE(U39:U43) -> 25 | AB43: =AVERAGE(V39:V43) -> 1 | AC43: =AVERAGE(W39:W43) -> 1.4 | AD43: =AVERAGE(X39:X43) -> 1
A44: 2014-10-09 | B44: 22 | C44: FLA | D44: 1 | E44: 2 | F44: 0 | G44: 0 | H44: 0 | I44: 0 | J44: 0 | K44: 0 | L44: 0 | M44: 0 | N44: 0 | O44: 0 | P44: 2 | Q44: 2 | S44: 41 | T44: 75 | U44: 26 | V44: 1 | W44: 3 | X44: 1 | Z44: =AVERAGE(T40:T44) -> 69.2 | AA44: =AVERAGE(U40:U44) -> 25.4 | AB44: =AVERAGE(V40:V44) -> 1 | AC44: =AVERAGE(W40:W44) -> 1.8 | AD44: =AVERAGE(X40:X44) -> 1
A45: 2014-10-09 | B45: 30 | C45: L.A | D45: 1 | E45: 0 | F45: 0 | G45: 0 | H45: 0 | I45: 0 | J45: 0 | K45: 0 | L45: 0 | M45: 0 | N45: 0 | O45: 0 | P45: 0 | Q45: 0 | S45: 42 | T45: 77 | U45: 27 | V45: 2 | W45: 3 | X45: 1 | Z45: =AVERAGE(T41:T45) -> 71.6 | AA45: =AVERAGE(U41:U45) -> 26 | AB45: =AVERAGE(V41:V45) -> 1.2 | AC45: =AVERAGE(W41:W45) -> 2.2 | AD45: =AVERAGE(X41:X45) -> 1
A46: 2014-10-09 | B46: 4 | C46: MIN | D46: 1 | E46: 4 | F46: 0 | G46: 0 | H46: 1 | I46: 0 | J46: 0 | K46: 0 | L46: 0 | M46: 0 | N46: 0 | O46: 0 | P46: 5 | Q46: 5 | S46: 43 | T46: 78 | U46: 27 | V46: 2 | W46: 3 | X46: 1 | Z46: =AVERAGE(T42:T46) -> 74 | AA46: =AVERAGE(U42:U46) -> 26.4 | AB46: =AVERAGE(V42:V46) -> 1.4 | AC46: =AVERAGE(W42:W46) -> 2.6 | AD46: =AVERAGE(X42:X46) -> 1
A47: 2014-10-09 | B47: 15 | C47: MTL | D47: 2 | E47: 5 | F47: 0 | G47: 0 | H47: 0 | I47: 0 | J47: 0 | K47: 0 | L47: 0 | M47: 0 | N47: 0 | O47: 0 | P47: 5 | Q47: 2.5 | S47: 44 | T47: 81 | U47: 27 | V47: 2 | W47: 3 | X47: 1 | Z47: =AVERAGE(T43:T47) -> 76.6 | AA47: =AVERAGE(U43:U47) -> 26.6 | AB47: =AVERAGE(V43:V47) -> 1.6 | AC47: =AVERAGE(W43:W47) -> 3 | AD47: =AVERAGE(X43:X47) -> 1
A48: 2014-10-09 | B48: 1 | C48: N.J | D48: 1 | E48: 5 | F48: 0 | G48: 0 | H48: 0 | I48: 0 | J48: 0 | K48: 0 | L48: 0 | M48: 0 | N48: 1 | O48: 0 | P48: 6 | Q48: 6 | S48: 45 | T48: 82 | U48: 28 | V48: 2 | W48: 3 | X48: 1 | Z48: =AVERAGE(T44:T48) -> 78.6 | AA48: =AVERAGE(U44:U48) -> 27 | AB48: =AVERAGE(V44:V48) -> 1.8 | AC48: =AVERAGE(W44:W48) -> 3 | AD48: =AVERAGE(X44:X48) -> 1
A49: 2014-10-09 | B49: 9 | C49: NSH | D49: 1 | E49: 2 | F49: 1 | G49: 0 | H49: 0 | I49: 0 | J49: 0 | K49: 0 | L49: 0 | M49: 0 | N49: 0 | O49: 0 | P49: 3 | Q49: 3 | S49: 46 | T49: 83 | U49: 28 | V49: 2 | W49: 3 | X49: 1 | Z49: =AVERAGE(T45:T49) -> 80.2 | AA49: =AVERAGE(U45:U49) -> 27.4 | AB49: =AVERAGE(V45:V49) -> 2 | AC49: =AVERAGE(W45:W49) -> 3 | AD49: =AVERAGE(X45:X49) -> 1
A50: 2014-10-09 | B50: 29 | C50: NYI | D50: 0 | E50: 0 | F50: 0 | G50: 0 | H50: 0 | I50: 0 | J50: 0 | K50: 0 | L50: 0 | M50: 0 | N50: 0 | O50: 0 | P50: 0 | Q50: 0 | S50: 47 | T50: 84 | U50: 29 | V50: 2 | W50: 3 | X50: 1 | Z50: =AVERAGE(T46:T50) -> 81.6 | AA50: =AVERAGE(U46:U50) -> 27.8 | AB50: =AVERAGE(V46:V50) -> 2 | AC50: =AVERAGE(W46:W50) -> 3 | AD50: =AVERAGE(X46:X50) -> 1
A51: 2014-10-09 | B51: 10 | C51: NYR | D51: 1 | E51: 3 | F51: 0 | G51: 0 | H51: 0 | I51: 0 | J51: 0 | K51: 0 | L51: 0 | M51: 0 | N51: 0 | O51: 0 | P51: 3 | Q51: 3 | S51: 48 | T51: 87 | U51: 30 | V51: 2 | W51: 3 | X51: 1 | Z51: =AVERAGE(T47:T51) -> 83.4 | AA51: =AVERAGE(U47:U51) -> 28.4 | AB51: =AVERAGE(V47:V51) -> 2 | AC51: =AVERAGE(W47:W51) -> 3 | AD51: =AVERAGE(X47:X51) -> 1
A52: 2014-10-09 | B52: 20 | C52: OTT | D52: 1 | E52: 1 | F52: 1 | G52: 0 | H52: 0 | I52: 0 | J52: 0 | K52: 0 | L52: 0 | M52: 0 | N52: 0 | O52: 0 | P52: 2 | Q52: 2 | S52: 49 | T52: 88 | U52: 30 | V52: 2 | W52: 3 | X52: 1 | Z52: =AVERAGE(T48:T52) -> 84.8 | AA52: =AVERAGE(U48:U52) -> 29 | AB52: =AVERAGE(V48:V52) -> 2 | AC52: =AVERAGE(W48:W52) -> 3 | AD52: =AVERAGE(X48:X52) -> 1
A53: 2014-10-09 | B53: 14 | C53: PHI | D53: 2 | E53: 3 | F53: 2 | G53: 0 | H53: 0 | I53: 0 | J53: 0 | K53: 0 | L53: 0 | M53: 0 | N53: 0 | O53: 0 | P53: 5 | Q53: 2.5 | S53: 50 | T53: 88 | U53: 30 | V53: 2 | W53: 3 | X53: 1 | Z53: =AVERAGE(T49:T53) -> 86 | AA53: =AVERAGE(U49:U53) -> 29.4 | AB53: =AVERAGE(V49:V53) -> 2 | AC53: =AVERAGE(W49:W53) -> 3 | AD53: =AVERAGE(X49:X53) -> 1
A54: 2014-10-09 | B54: 3 | C54: PIT | D54: 1 | E54: 4 | F54: 1 | G54: 0 | H54: 0 | I54: 0 | J54: 0 | K54: 0 | L54: 0 | M54: 1 | N54: 0 | O54: 0 | P54: 6 | Q54: 6 | S54: 51 | T54: 89 | U54: 31 | V54: 2 | W54: 3 | X54: 1 | Z54: =AVERAGE(T50:T54) -> 87.2 | AA54: =AVERAGE(U50:U54) -> 30 | AB54: =AVERAGE(V50:V54) -> 2 | AC54: =AVERAGE(W50:W54) -> 3 | AD54: =AVERAGE(X50:X54) -> 1
A55: 2014-10-09 | B55: 7 | C55: S.J | D55: 1 | E55: 3 | F55: 1 | G55: 0 | H55: 0 | I55: 0 | J55: 0 | K55: 0 | L55: 0 | M55: 0 | N55: 0 | O55: 0 | P55: 4 | Q55: 4 | S55: 52 | T55: 93 | U55: 31 | V55: 2 | W55: 3 | X55: 1 | Z55: =AVERAGE(T51:T55) -> 89 | AA55: =AVERAGE(U51:U55) -> 30.4 | AB55: =AVERAGE(V51:V55) -> 2 | AC55: =AVERAGE(W51:W55) -> 3 | AD55: =AVERAGE(X51:X55) -> 1
A56: 2014-10-09 | B56: 18 | C56: STL | D56: 1 | E56: 2 | F56: 0 | G56: 0 | H56: 0 | I56: 0 | J56: 0 | K56: 0 | L56: 0 | M56: 0 | N56: 0 | O56: 0 | P56: 2 | Q56: 2 | S56: 53 | T56: 97 | U56: 31 | V56: 2 | W56: 3 | X56: 1 | Z56: =AVERAGE(T52:T56) -> 91 | AA56: =AVERAGE(U52:U56) -> 30.6 | AB56: =AVERAGE(V52:V56) -> 2 | AC56: =AVERAGE(W52:W56) -> 3 | AD56: =AVERAGE(X52:X56) -> 1
A57: 2014-10-09 | B57: 11 | C57: T.B | D57: 1 | E57: 0 | F57: 1 | G57: 1 | H57: 0 | I57: 1 | J57: 0 | K57: 0 | L57: 0 | M57: 0 | N57: 0 | O57: 0 | P57: 3 | Q57: 3 | S57: 54 | T57: 102 | U57: 31 | V57: 2 | W57: 3 | X57: 1 | Z57: =AVERAGE(T53:T57) -> 93.8 | AA57: =AVERAGE(U53:U57) -> 30.8 | AB57: =AVERAGE(V53:V57) -> 2 | AC57: =AVERAGE(W53:W57) -> 3 | AD57: =AVERAGE(X53:X57) -> 1
A58: 2014-10-09 | B58: 12 | C58: TOR | D58: 1 | E58: 2 | F58: 1 | G58: 0 | H58: 0 | I58: 0 | J58: 0 | K58: 0 | L58: 0 | M58: 0 | N58: 0 | O58: 0 | P58: 3 | Q58: 3 | S58: 55 | T58: 105 | U58: 31 | V58: 2 | W58: 3 | X58: 1 | Z58: =AVERAGE(T54:T58) -> 97.2 | AA58: =AVERAGE(U54:U58) -> 31 | AB58: =AVERAGE(V54:V58) -> 2 | AC58: =AVERAGE(W54:W58) -> 3 | AD58: =AVERAGE(X54:X58) -> 1
A59: 2014-10-09 | B59: 5 | C59: VAN | D59: 1 | E59: 2 | F59: 1 | G59: 0 | H59: 0 | I59: 0 | J59: 0 | K59: 0 | L59: 0 | M59: 0 | N59: 1 | O59: 0 | P59: 4 | Q59: 4 | S59: 56 | T59: 108 | U59: 31 | V59: 2 | W59: 3 | X59: 1 | Z59: =AVERAGE(T55:T59) -> 101 | AA59: =AVERAGE(U55:U59) -> 31 | AB59: =AVERAGE(V55:V59) -> 2 | AC59: =AVERAGE(W55:W59) -> 3 | AD59: =AVERAGE(X55:X59) -> 1
A60: 2014-10-09 | B60: 2 | C60: WPG | D60: 1 | E60: 5 | F60: 0 | G60: 0 | H60: 0 | I60: 0 | J60: 0 | K60: 0 | L60: 0 | M60: 1 | N60: 0 | O60: 0 | P60: 6 | Q60: 6 | S60: 57 | T60: 111 | U60: 31 | V60: 2 | W60: 3 | X60: 1 | Z60: =AVERAGE(T56:T60) -> 104.6 | AA60: =AVERAGE(U56:U60) -> 31 | AB60: =AVERAGE(V56:V60) -> 2 | AC60: =AVERAGE(W56:W60) -> 3 | AD60: =AVERAGE(X56:X60) -> 1
A61: 2014-10-09 | B61: 25 | C61: WSH | D61: 1 | E61: 1 | F61: 0 | G61: 0 | H61: 0 | I61: 0 | J61: 0 | K61: 0 | L61: 0 | M61: 0 | N61: 0 | O61: 0 | P61: 1 | Q61: 1 | S61: 58 | T61: 113 | U61: 31 | V61: 2 | W61: 3 | X61: 1 | Z61: =AVERAGE(T57:T61) -> 107.8 | AA61: =AVERAGE(U57:U61) -> 31 | AB61: =AVERAGE(V57:V61) -> 2 | AC61: =AVERAGE(W57:W61) -> 3 | AD61: =AVERAGE(X57:X61) -> 1
A62: 2014-10-10 | B62: 7 | C62: ANA | D62: 1 | E62: 1 | F62: 3 | G62: 0 | H62: 0 | I62: 0 | J62: 0 | K62: 0 | L62: 0 | M62: 0 | N62: 0 | O62: 0 | P62: 4 | Q62: 4 | S62: 59 | T62: 113 | U62: 32 | V62: 2 | W62: 3 | X62: 1 | Z62: =AVERAGE(T58:T62) -> 110 | AA62: =AVERAGE(U58:U62) -> 31.2 | AB62: =AVERAGE(V58:V62) -> 2 | AC62: =AVERAGE(W58:W62) -> 3 | AD62: =AVERAGE(X58:X62) -> 1
A63: 2014-10-10 | B63: 20 | C63: ARI | D63: 1 | E63: 2 | F63: 0 | G63: 0 | H63: 0 | I63: 0 | J63: 0 | K63: 0 | L63: 0 | M63: 0 | N63: 0 | O63: 0 | P63: 2 | Q63: 2 | S63: 60 | T63: 113 | U63: 32 | V63: 2 | W63: 3 | X63: 1 | Z63: =AVERAGE(T59:T63) -> 111.6 | AA63: =AVERAGE(U59:U63) -> 31.4 | AB63: =AVERAGE(V59:V63) -> 2 | AC63: =AVERAGE(W59:W63) -> 3 | AD63: =AVERAGE(X59:X63) -> 1
A64: 2014-10-10 | B64: 26 | C64: BOS | D64: 2 | E64: 2 | F64: 1 | G64: 0 | H64: 0 | I64: 0 | J64: 0 | K64: 0 | L64: 0 | M64: 0 | N64: 0 | O64: 0 | P64: 3 | Q64: 1.5 | S64: 61 | T64: 115 | U64: 32 | V64: 2 | W64: 3 | X64: 1 | Z64: =AVERAGE(T60:T64) -> 113 | AA64: =AVERAGE(U60:U64) -> 31.6 | AB64: =AVERAGE(V60:V64) -> 2 | AC64: =AVERAGE(W60:W64) -> 3 | AD64: =AVERAGE(X60:X64) -> 1
A65: 2014-10-10 | B65: 28 | C65: BUF | D65: 1 | E65: 1 | F65: 0 | G65: 0 | H65: 0 | I65: 0 | J65: 0 | K65: 0 | L65: 0 | M65: 0 | N65: 0 | O65: 0 | P65: 1 | Q65: 1 | S65: 62 | T65: 117 | U65: 32 | V65: 2 | W65: 3 | X65: 1 | Z65: =AVERAGE(T61:T65) -> 114.2 | AA65: =AVERAGE(U61:U65) -> 31.8 | AB65: =AVERAGE(V61:V65) -> 2 | AC65: =AVERAGE(W61:W65) -> 3 | AD65: =AVERAGE(X61:X65) -> 1
A66: 2014-10-10 | B66: 15 | C66: CAR | D66: 1 | E66: 1 | F66: 2 | G66: 0 | H66: 0 | I66: 0 | J66: 0 | K66: 0 | L66: 0 | M66: 0 | N66: 0 | O66: 0 | P66: 3 | Q66: 3 | S66: 63 | T66: 121 | U66: 32 | V66: 2 | W66: 3 | X66: 1 | Z66: =AVERAGE(T62:T66) -> 115.8 | AA66: =AVERAGE(U62:U66) -> 32 | AB66: =AVERAGE(V62:V66) -> 2 | AC66: =AVERAGE(W62:W66) -> 3 | AD66: =AVERAGE(X62:X66) -> 1
A67: 2014-10-10 | B67: 10 | C67: CBJ | D67: 1 | E67: 2 | F67: 1 | G67: 0 | H67: 0 | I67: 0 | J67: 0 | K67: 0 | L67: 0 | M67: 0 | N67: 0 | O67: 0 | P67: 3 | Q67: 3 | S67: 64 | T67: 122 | U67: 34 | V67: 2 | W67: 3 | X67: 1 | Z67: =AVERAGE(T63:T67) -> 117.6 | AA67: =AVERAGE(U63:U67) -> 32.4 | AB67: =AVERAGE(V63:V67) -> 2 | AC67: =AVERAGE(W63:W67) -> 3 | AD67: =AVERAGE(X63:X67) -> 1
A68: 2014-10-10 | B68: 9 | C68: CGY | D68: 2 | E68: 6 | F68: 1 | G68: 0 | H68: 0 | I68: 0 | J68: 0 | K68: 0 | L68: 0 | M68: 0 | N68: 0 | O68: 0 | P68: 7 | Q68: 3.5 | S68: 65 | T68: 122 | U68: 34 | V68: 2 | W68: 3 | X68: 1 | Z68: =AVERAGE(T64:T68) -> 119.4 | AA68: =AVERAGE(U64:U68) -> 32.8 | AB68: =AVERAGE(V64:V68) -> 2 | AC68: =AVERAGE(W64:W68) -> 3 | AD68: =AVERAGE(X64:X68) -> 1
A69: 2014-10-10 | B69: 23 | C69: CHI | D69: 1 | E69: 1 | F69: 1 | G69: 0 | H69: 0 | I69: 0 | J69: 0 | K69: 0 | L69: 0 | M69: 0 | N69: 0 | O69: 0 | P69: 2 | Q69: 2 | S69: 66 | T69: 126 | U69: 35 | V69: 2 | W69: 3 | X69: 1 | Z69: =AVERAGE(T65:T69) -> 121.6 | AA69: =AVERAGE(U65:U69) -> 33.4 | AB69: =AVERAGE(V65:V69) -> 2 | AC69: =AVERAGE(W65:W69) -> 3 | AD69: =AVERAGE(X65:X69) -> 1
A70: 2014-10-10 | B70: 30 | C70: COL | D70: 1 | E70: 0 | F70: 0 | G70: 0 | H70: 0 | I70: 0 | J70: 0 | K70: 0 | L70: 0 | M70: 0 | N70: 0 | O70: 0 | P70: 0 | Q70: 0 | S70: 67 | T70: 128 | U70: 36 | V70: 2 | W70: 3 | X70: 1 | Z70: =AVERAGE(T66:T70) -> 123.8 | AA70: =AVERAGE(U66:U70) -> 34.2 | AB70: =AVERAGE(V66:V70) -> 2 | AC70: =AVERAGE(W66:W70) -> 3 | AD70: =AVERAGE(X66:X70) -> 1
A71: 2014-10-10 | B71: 18 | C71: DAL | D71: 1 | E71: 1 | F71: 1 | G71: 0 | H71: 0 | I71: 0 | J71: 0 | K71: 0 | L71: 0 | M71: 0 | N71: 0 | O71: 0 | P71: 2 | Q71: 2 | S71: 68 | T71: 128 | U71: 37 | V71: 2 | W71: 3 | X71: 1 | Z71: =AVERAGE(T67:T71) -> 125.2 | AA71: =AVERAGE(U67:U71) -> 35.2 | AB71: =AVERAGE(V67:V71) -> 2 | AC71: =AVERAGE(W67:W71) -> 3 | AD71: =AVERAGE(X67:X71) -> 1
A72: 2014-10-10 | B72: 22 | C72: DET | D72: 1 | E72: 1 | F72: 1 | G72: 0 | H72: 0 | I72: 0 | J72: 0 | K72: 0 | L72: 0 | M72: 0 | N72: 0 | O72: 0 | P72: 2 | Q72: 2 | S72: 69 | T72: 129 | U72: 37 | V72: 2 | W72: 3 | X72: 1 | Z72: =AVERAGE(T68:T72) -> 126.6 | AA72: =AVERAGE(U68:U72) -> 35.8 | AB72: =AVERAGE(V68:V72) -> 2 | AC72: =AVERAGE(W68:W72) -> 3 | AD72: =AVERAGE(X68:X72) -> 1
A73: 2014-10-10 | B73: 19 | C73: EDM | D73: 1 | E73: 0 | F73: 1 | G73: 1 | H73: 0 | I73: 0 | J73: 0 | K73: 0 | L73: 0 | M73: 0 | N73: 0 | O73: 0 | P73: 2 | Q73: 2 | S73: 70 | T73: 130 | U73: 38 | V73: 2 | W73: 3 | X73: 1 | Z73: =AVERAGE(T69:T73) -> 128.2 | AA73: =AVERAGE(U69:U73) -> 36.6 | AB73: =AVERAGE(V69:V73) -> 2 | AC73: =AVERAGE(W69:W73) -> 3 | AD73: =AVERAGE(X69:X73) -> 1
A74: 2014-10-10 | B74: 24 | C74: FLA | D74: 1 | E74: 2 | F74: 0 | G74: 0 | H74: 0 | I74: 0 | J74: 0 | K74: 0 | L74: 0 | M74: 0 | N74: 0 | O74: 0 | P74: 2 | Q74: 2 | S74: 71 | T74: 130 | U74: 39 | V74: 2 | W74: 3 | X74: 1 | Z74: =AVERAGE(T70:T74) -> 129 | AA74: =AVERAGE(U70:U74) -> 37.4 | AB74: =AVERAGE(V70:V74) -> 2 | AC74: =AVERAGE(W70:W74) -> 3 | AD74: =AVERAGE(X70:X74) -> 1
A75: 2014-10-10 | B75: 29 | C75: L.A | D75: 1 | E75: 0 | F75: 0 | G75: 0 | H75: 0 | I75: 0 | J75: 0 | K75: 0 | L75: 0 | M75: 0 | N75: 0 | O75: 0 | P75: 0 | Q75: 0 | S75: 72 | T75: 132 | U75: 39 | V75: 3 | W75: 3 | X75: 1 | Z75: =AVERAGE(T71:T75) -> 129.8 | AA75: =AVERAGE(U71:U75) -> 38 | AB75: =AVERAGE(V71:V75) -> 2.2 | AC75: =AVERAGE(W71:W75) -> 3 | AD75: =AVERAGE(X71:X75) -> 1
A76: 2014-10-10 | B76: 5 | C76: MIN | D76: 1 | E76: 4 | F76: 0 | G76: 0 | H76: 1 | I76: 0 | J76: 0 | K76: 0 | L76: 0 | M76: 0 | N76: 0 | O76: 0 | P76: 5 | Q76: 5 | S76: 73 | T76: 136 | U76: 39 | V76: 3 | W76: 3 | X76: 1 | Z76: =AVERAGE(T72:T76) -> 131.4 | AA76: =AVERAGE(U72:U76) -> 38.4 | AB76: =AVERAGE(V72:V76) -> 2.4 | AC76: =AVERAGE(W72:W76) -> 3 | AD76: =AVERAGE(X72:X76) -> 1
A77: 2014-10-10 | B77: 16 | C77: MTL | D77: 2 | E77: 5 | F77: 0 | G77: 0 | H77: 0 | I77: 0 | J77: 0 | K77: 0 | L77: 0 | M77: 0 | N77: 0 | O77: 0 | P77: 5 | Q77: 2.5 | S77: 74 | T77: 138 | U77: 39 | V77: 3 | W77: 3 | X77: 1 | Z77: =AVERAGE(T73:T77) -> 133.2 | AA77: =AVERAGE(U73:U77) -> 38.8 | AB77: =AVERAGE(V73:V77) -> 2.6 | AC77: =AVERAGE(W73:W77) -> 3 | AD77: =AVERAGE(X73:X77) -> 1
A78: 2014-10-10 | B78: 1 | C78: N.J | D78: 1 | E78: 5 | F78: 0 | G78: 0 | H78: 0 | I78: 0 | J78: 0 | K78: 0 | L78: 0 | M78: 0 | N78: 1 | O78: 0 | P78: 6 | Q78: 6 | S78: 75 | T78: 139 | U78: 39 | V78: 3 | W78: 3 | X78: 1 | Z78: =AVERAGE(T74:T78) -> 135 | AA78: =AVERAGE(U74:U78) -> 39 | AB78: =AVERAGE(V74:V78) -> 2.8 | AC78: =AVERAGE(W74:W78) -> 3 | AD78: =AVERAGE(X74:X78) -> 1
A79: 2014-10-10 | B79: 11 | C79: NSH | D79: 1 | E79: 2 | F79: 1 | G79: 0 | H79: 0 | I79: 0 | J79: 0 | K79: 0 | L79: 0 | M79: 0 | N79: 0 | O79: 0 | P79: 3 | Q79: 3 | S79: 76 | T79: 140 | U79: 39 | V79: 3 | W79: 3 | X79: 1 | Z79: =AVERAGE(T75:T79) -> 137 | AA79: =AVERAGE(U75:U79) -> 39 | AB79: =AVERAGE(V75:V79) -> 3 | AC79: =AVERAGE(W75:W79) -> 3 | AD79: =AVERAGE(X75:X79) -> 1
A80: 2014-10-10 | B80: 4 | C80: NYI | D80: 1 | E80: 3 | F80: 1 | G80: 1 | H80: 0 | I80: 0 | J80: 0 | K80: 0 | L80: 0 | M80: 0 | N80: 0 | O80: 0 | P80: 5 | Q80: 5 | Z80: =AVERAGE(T76:T80) -> 138.25 | AA80: =AVERAGE(U76:U80) -> 39 | AB80: =AVERAGE(V76:V80) -> 3 | AC80: =AVERAGE(W76:W80) -> 3 | AD80: =AVERAGE(X76:X80) -> 1
A81: 2014-10-10 | B81: 12 | C81: NYR | D81: 1 | E81: 3 | F81: 0 | G81: 0 | H81: 0 | I81: 0 | J81: 0 | K81: 0 | L81: 0 | M81: 0 | N81: 0 | O81: 0 | P81: 3 | Q81: 3 | Z81: =AVERAGE(T77:T81) -> 139 | AA81: =AVERAGE(U77:U81) -> 39 | AB81: =AVERAGE(V77:V81) -> 3 | AC81: =AVERAGE(W77:W81) -> 3 | AD81: =AVERAGE(X77:X81) -> 1
A82: 2014-10-10 | B82: 25 | C82: OTT | D82: 1 | E82: 1 | F82: 1 | G82: 0 | H82: 0 | I82: 0 | J82: 0 | K82: 0 | L82: 0 | M82: 0 | N82: 0 | O82: 0 | P82: 2 | Q82: 2 | Z82: =AVERAGE(T78:T82) -> 139.5 | AA82: =AVERAGE(U78:U82) -> 39 | AB82: =AVERAGE(V78:V82) -> 3 | AC82: =AVERAGE(W78:W82) -> 3 | AD82: =AVERAGE(X78:X82) -> 1
A83: 2014-10-10 | B83: 17 | C83: PHI | D83: 2 | E83: 3 | F83: 2 | G83: 0 | H83: 0 | I83: 0 | J83: 0 | K83: 0 | L83: 0 | M83: 0 | N83: 0 | O83: 0 | P83: 5 | Q83: 2.5 | Z83: =AVERAGE(T79:T83) -> 140 | AA83: =AVERAGE(U79:U83) -> 39 | AB83: =AVERAGE(V79:V83) -> 3 | AC83: =AVERAGE(W79:W83) -> 3 | AD83: =AVERAGE(X79:X83) -> 1
A84: 2014-10-10 | B84: 2 | C84: PIT | D84: 1 | E84: 4 | F84: 1 | G84: 0 | H84: 0 | I84: 0 | J84: 0 | K84: 0 | L84: 0 | M84: 1 | N84: 0 | O84: 0 | P84: 6 | Q84: 6 | Z84: =AVERAGE(T80:T84) ->  | AA84: =AVERAGE(U80:U84) ->  | AB84: =AVERAGE(V80:V84) ->  | AC84: =AVERAGE(W80:W84) ->  | AD84: =AVERAGE(X80:X84) -> 
A85: 2014-10-10 | B85: 8 | C85: S.J | D85: 1 | E85: 3 | F85: 1 | G85: 0 | H85: 0 | I85: 0 | J85: 0 | K85: 0 | L85: 0 | M85: 0 | N85: 0 | O85: 0 | P85: 4 | Q85: 4
A86: 2014-10-10 | B86: 21 | C86: STL | D86: 1 | E86: 2 | F86: 0 | G86: 0 | H86: 0 | I86: 0 | J86: 0 | K86: 0 | L86: 0 | M86: 0 | N86: 0 | O86: 0 | P86: 2 | Q86: 2
A87: 2014-10-10 | B87: 14 | C87: T.B | D87: 1 | E87: 0 | F87: 1 | G87: 1 | H87: 0 | I87: 1 | J87: 0 | K87: 0 | L87: 0 | M87: 0 | N87: 0 | O87: 0 | P87: 3 | Q87: 3
A88: 2014-10-10 | B88: 13 | C88: TOR | D88: 1 | E88: 2 | F88: 1 | G88: 0 | H88: 0 | I88: 0 | J88: 0 | K88: 0 | L88: 0 | M88: 0 | N88: 0 | O88: 0 | P88: 3 | Q88: 3
A89: 2014-10-10 | B89: 6 | C89: VAN | D89: 1 | E89: 2 | F89: 1 | G89: 0 | H89: 0 | I89: 0 | J89: 0 | K89: 0 | L89: 0 | M89: 0 | N89: 1 | O89: 0 | P89: 4 | Q89: 4
A90: 2014-10-10 | B90: 3 | C90: WPG | D90: 1 | E90: 5 | F90: 0 | G90: 0 | H90: 0 | I90: 0 | J90: 0 | K90: 0 | L90: 0 | M90: 1 | N90: 0 | O90: 0 | P90: 6 | Q90: 6
A91: 2014-10-10 | B91: 27 | C91: WSH | D91: 1 | E91: 1 | F91: 0 | G91: 0 | H91: 0 | I91: 0 | J91: 0 | K91: 0 | L91: 0 | M91: 0 | N91: 0 | O91: 0 | P91: 1 | Q91: 1
A92: 2014-10-11 | B92: 8 | C92: ANA | D92: 2 | E92: 4 | F92: 3 | G92: 0 | H92: 0 | I92: 0 | J92: 0 | K92: 0 | L92: 0 | M92: 0 | N92: 0 | O92: 0 | P92: 7 | Q92: 3.5
A93: 2014-10-11 | B93: 18 | C93: ARI | D93: 2 | E93: 3 | F93: 1 | G93: 0 | H93: 0 | I93: 1 | J93: 0 | K93: 0 | L93: 0 | M93: 0 | N93: 0 | O93: 0 | P93: 5 | Q93: 2.5
A94: 2014-10-11 | B94: 29 | C94: BOS | D94: 3 | E94: 2 | F94: 1 | G94: 0 | H94: 0 | I94: 0 | J94: 0 | K94: 0 | L94: 0 | M94: 0 | N94: 0 | O94: 0 | P94: 3 | Q94: 1
A95: 2014-10-11 | B95: 26 | C95: BUF | D95: 2 | E95: 2 | F95: 0 | G95: 0 | H95: 0 | I95: 0 | J95: 0 | K95: 0 | L95: 0 | M95: 1 | N95: 0 | O95: 0 | P95: 3 | Q95: 1.5
A96: 2014-10-11 | B96: 11 | C96: CAR | D96: 2 | E96: 2 | F96: 4 | G96: 0 | H96: 0 | I96: 0 | J96: 0 | K96: 0 | L96: 0 | M96: 0 | N96: 0 | O96: 0 | P96: 6 | Q96: 3
A97: 2014-10-11 | B97: 7 | C97: CBJ | D97: 2 | E97: 6 | F97: 1 | G97: 0 | H97: 0 | I97: 0 | J97: 0 | K97: 0 | L97: 0 | M97: 0 | N97: 1 | O97: 0 | P97: 8 | Q97: 4
A98: 2014-10-11 | B98: 17 | C98: CGY | D98: 3 | E98: 6 | F98: 2 | G98: 0 | H98: 0 | I98: 0 | J98: 0 | K98: 0 | L98: 0 | M98: 0 | N98: 0 | O98: 0 | P98: 8 | Q98: 2.67
A99: 2014-10-11 | B99: 4 | C99: CHI | D99: 2 | E99: 5 | F99: 2 | G99: 0 | H99: 0 | I99: 0 | J99: 0 | K99: 0 | L99: 0 | M99: 1 | N99: 0 | O99: 0 | P99: 8 | Q99: 4
A100: 2014-10-11 | B100: 30 | C100: COL | D100: 2 | E100: 0 | F100: 0 | G100: 0 | H100: 0 | I100: 0 | J100: 0 | K100: 0 | L100: 0 | M100: 0 | N100: 0 | O100: 0 | P100: 0 | Q100: 0
A101: 2014-10-11 | B101: 27 | C101: DAL | D101: 2 | E101: 2 | F101: 1 | G101: 0 | H101: 0 | I101: 0 | J101: 0 | K101: 0 | L101: 0 | M101: 0 | N101: 0 | O101: 0 | P101: 3 | Q101: 1.5
A102: 2014-10-11 | B102: 24 | C102: DET | D102: 2 | E102: 3 | F102: 1 | G102: 0 | H102: 0 | I102: 0 | J102: 0 | K102: 0 | L102: 0 | M102: 0 | N102: 0 | O102: 0 | P102: 4 | Q102: 2
A103: 2014-10-11 | B103: 12 | C103: EDM | D103: 2 | E103: 2 | F103: 2 | G103: 1 | H103: 0 | I103: 0 | J103: 0 | K103: 0 | L103: 0 | M103: 1 | N103: 0 | O103: 0 | P103: 6 | Q103: 3
A104: 2014-10-11 | B104: 25 | C104: FLA | D104: 2 | E104: 2 | F104: 1 | G104: 0 | H104: 0 | I104: 0 | J104: 0 | K104: 0 | L104: 0 | M104: 0 | N104: 0 | O104: 0 | P104: 3 | Q104: 1.5
A105: 2014-10-11 | B105: 28 | C105: L.A | D105: 2 | E105: 2 | F105: 0 | G105: 0 | H105: 0 | I105: 0 | J105: 0 | K105: 0 | L105: 0 | M105: 0 | N105: 0 | O105: 0 | P105: 2 | Q105: 1
A106: 2014-10-11 | B106: 6 | C106: MIN | D106: 2 | E106: 6 | F106: 0 | G106: 0 | H106: 1 | I106: 0 | J106: 0 | K106: 0 | L106: 0 | M106: 0 | N106: 1 | O106: 0 | P106: 8 | Q106: 4
A107: 2014-10-11 | B107: 15 | C107: MTL | D107: 3 | E107: 8 | F107: 0 | G107: 0 | H107: 0 | I107: 0 | J107: 0 | K107: 0 | L107: 0 | M107: 0 | N107: 0 | O107: 0 | P107: 8 | Q107: 2.67
A108: 2014-10-11 | B108: 1 | C108: N.J | D108: 2 | E108: 8 | F108: 2 | G108: 0 | H108: 0 | I108: 0 | J108: 0 | K108: 0 | L108: 0 | M108: 0 | N108: 1 | O108: 0 | P108: 11 | Q108: 5.5
A109: 2014-10-11 | B109: 10 | C109: NSH | D109: 2 | E109: 4 | F109: 1 | G109: 0 | H109: 1 | I109: 0 | J109: 0 | K109: 0 | L109: 0 | M109: 0 | N109: 1 | O109: 0 | P109: 7 | Q109: 3.5
A110: 2014-10-11 | B110: 3 | C110: NYI | D110: 2 | E110: 5 | F110: 3 | G110: 1 | H110: 0 | I110: 0 | J110: 0 | K110: 0 | L110: 0 | M110: 0 | N110: 0 | O110: 0 | P110: 9 | Q110: 4.5
A111: 2014-10-11 | B111: 20 | C111: NYR | D111: 2 | E111: 5 | F111: 0 | G111: 0 | H111: 0 | I111: 0 | J111: 0 | K111: 0 | L111: 0 | M111: 0 | N111: 0 | O111: 0 | P111: 5 | Q111: 2.5
A112: 2014-10-11 | B112: 23 | C112: OTT | D112: 2 | E112: 3 | F112: 1 | G112: 0 | H112: 0 | I112: 0 | J112: 0 | K112: 0 | L112: 0 | M112: 0 | N112: 0 | O112: 0 | P112: 4 | Q112: 2
A113: 2014-10-11 | B113: 16 | C113: PHI | D113: 3 | E113: 5 | F113: 3 | G113: 0 | H113: 0 | I113: 0 | J113: 0 | K113: 0 | L113: 0 | M113: 0 | N113: 0 | O113: 0 | P113: 8 | Q113: 2.67
A114: 2014-10-11 | B114: 2 | C114: PIT | D114: 2 | E114: 6 | F114: 3 | G114: 1 | H114: 0 | I114: 0 | J114: 0 | K114: 0 | L114: 0 | M114: 1 | N114: 0 | O114: 0 | P114: 11 | Q114: 5.5
A115: 2014-10-11 | B115: 9 | C115: S.J | D115: 2 | E115: 6 | F115: 1 | G115: 0 | H115: 0 | I115: 0 | J115: 0 | K115: 0 | L115: 0 | M115: 0 | N115: 0 | O115: 0 | P115: 7 | Q115: 3.5
A116: 2014-10-11 | B116: 14 | C116: STL | D116: 2 | E116: 4 | F116: 2 | G116: 0 | H116: 0 | I116: 0 | J116: 0 | K116: 0 | L116: 0 | M116: 0 | N116: 0 | O116: 0 | P116: 6 | Q116: 3
A117: 2014-10-11 | B117: 21 | C117: T.B | D117: 2 | E117: 1 | F117: 2 | G117: 1 | H117: 0 | I117: 1 | J117: 0 | K117: 0 | L117: 0 | M117: 0 | N117: 0 | O117: 0 | P117: 5 | Q117: 2.5
A118: 2014-10-11 | B118: 22 | C118: TOR | D118: 2 | E118: 2 | F118: 3 | G118: 0 | H118: 0 | I118: 0 | J118: 0 | K118: 0 | L118: 0 | M118: 0 | N118: 0 | O118: 0 | P118: 5 | Q118: 2.5
A119: 2014-10-11 | B119: 5 | C119: VAN | D119: 2 | E119: 4 | F119: 3 | G119: 0 | H119: 0 | I119: 0 | J119: 0 | K119: 0 | L119: 0 | M119: 0 | N119: 1 | O119: 0 | P119: 8 | Q119: 4
A120: 2014-10-11 | B120: 13 | C120: WPG | D120: 2 | E120: 5 | F120: 0 | G120: 0 | H120: 0 | I120: 0 | J120: 0 | K120: 0 | L120: 0 | M120: 1 | N120: 0 | O120: 0 | P120: 6 | Q120: 3
A121: 2014-10-11 | B121: 19 | C121: WSH | D121: 2 | E121: 3 | F121: 2 | G121: 0 | H121: 0 | I121: 0 | J121: 0 | K121: 0 | L121: 0 | M121: 0 | N121: 0 | O121: 0 | P121: 5 | Q121: 2.5
A122: 2014-10-12 | B122: 11 | C122: ANA | D122: 2 | E122: 4 | F122: 3 | G122: 0 | H122: 0 | I122: 0 | J122: 0 | K122: 0 | L122: 0 | M122: 0 | N122: 0 | O122: 0 | P122: 7 | Q122: 3.5
A123: 2014-10-12 | B123: 19 | C123: ARI | D123: 2 | E123: 3 | F123: 1 | G123: 0 | H123: 0 | I123: 1 | J123: 0 | K123: 0 | L123: 0 | M123: 0 | N123: 0 | O123: 0 | P123: 5 | Q123: 2.5
A124: 2014-10-12 | B124: 29 | C124: BOS | D124: 3 | E124: 2 | F124: 1 | G124: 0 | H124: 0 | I124: 0 | J124: 0 | K124: 0 | L124: 0 | M124: 0 | N124: 0 | O124: 0 | P124: 3 | Q124: 1
A125: 2014-10-12 | B125: 28 | C125: BUF | D125: 2 | E125: 2 | F125: 0 | G125: 0 | H125: 0 | I125: 0 | J125: 0 | K125: 0 | L125: 0 | M125: 1 | N125: 0 | O125: 0 | P125: 3 | Q125: 1.5
A126: 2014-10-12 | B126: 13 | C126: CAR | D126: 2 | E126: 2 | F126: 4 | G126: 0 | H126: 0 | I126: 0 | J126: 0 | K126: 0 | L126: 0 | M126: 0 | N126: 0 | O126: 0 | P126: 6 | Q126: 3
A127: 2014-10-12 | B127: 7 | C127: CBJ | D127: 2 | E127: 6 | F127: 1 | G127: 0 | H127: 0 | I127: 0 | J127: 0 | K127: 0 | L127: 0 | M127: 0 | N127: 1 | O127: 0 | P127: 8 | Q127: 4
A128: 2014-10-12 | B128: 17 | C128: CGY | D128: 3 | E128: 6 | F128: 2 | G128: 0 | H128: 0 | I128: 0 | J128: 0 | K128: 0 | L128: 0 | M128: 0 | N128: 0 | O128: 0 | P128: 8 | Q128: 2.67
A129: 2014-10-12 | B129: 4 | C129: CHI | D129: 2 | E129: 5 | F129: 2 | G129: 0 | H129: 0 | I129: 0 | J129: 0 | K129: 0 | L129: 0 | M129: 1 | N129: 0 | O129: 0 | P129: 8 | Q129: 4
A130: 2014-10-12 | B130: 30 | C130: COL | D130: 2 | E130: 0 | F130: 0 | G130: 0 | H130: 0 | I130: 0 | J130: 0 | K130: 0 | L130: 0 | M130: 0 | N130: 0 | O130: 0 | P130: 0 | Q130: 0
A131: 2014-10-12 | B131: 26 | C131: DAL | D131: 2 | E131: 2 | F131: 1 | G131: 0 | H131: 0 | I131: 0 | J131: 0 | K131: 0 | L131: 0 | M131: 0 | N131: 0 | O131: 0 | P131: 3 | Q131: 1.5
A132: 2014-10-12 | B132: 25 | C132: DET | D132: 2 | E132: 3 | F132: 1 | G132: 0 | H132: 0 | I132: 0 | J132: 0 | K132: 0 | L132: 0 | M132: 0 | N132: 0 | O132: 0 | P132: 4 | Q132: 2
A133: 2014-10-12 | B133: 12 | C133: EDM | D133: 2 | E133: 2 | F133: 2 | G133: 1 | H133: 0 | I133: 0 | J133: 0 | K133: 0 | L133: 0 | M133: 1 | N133: 0 | O133: 0 | P133: 6 | Q133: 3
A134: 2014-10-12 | B134: 27 | C134: FLA | D134: 2 | E134: 2 | F134: 1 | G134: 0 | H134: 0 | I134: 0 | J134: 0 | K134: 0 | L134: 0 | M134: 0 | N134: 0 | O134: 0 | P134: 3 | Q134: 1.5
A135: 2014-10-12 | B135: 24 | C135: L.A | D135: 3 | E135: 6 | F135: 0 | G135: 0 | H135: 0 | I135: 0 | J135: 0 | K135: 0 | L135: 0 | M135: 0 | N135: 0 | O135: 0 | P135: 6 | Q135: 2
A136: 2014-10-12 | B136: 6 | C136: MIN | D136: 2 | E136: 6 | F136: 0 | G136: 0 | H136: 1 | I136: 0 | J136: 0 | K136: 0 | L136: 0 | M136: 0 | N136: 1 | O136: 0 | P136: 8 | Q136: 4
A137: 2014-10-12 | B137: 18 | C137: MTL | D137: 3 | E137: 8 | F137: 0 | G137: 0 | H137: 0 | I137: 0 | J137: 0 | K137: 0 | L137: 0 | M137: 0 | N137: 0 | O137: 0 | P137: 8 | Q137: 2.67
A138: 2014-10-12 | B138: 1 | C138: N.J | D138: 2 | E138: 8 | F138: 2 | G138: 0 | H138: 0 | I138: 0 | J138: 0 | K138: 0 | L138: 0 | M138: 0 | N138: 1 | O138: 0 | P138: 11 | Q138: 5.5
A139: 2014-10-12 | B139: 10 | C139: NSH | D139: 2 | E139: 4 | F139: 1 | G139: 0 | H139: 1 | I139: 0 | J139: 0 | K139: 0 | L139: 0 | M139: 0 | N139: 1 | O139: 0 | P139: 7 | Q139: 3.5
A140: 2014-10-12 | B140: 3 | C140: NYI | D140: 2 | E140: 5 | F140: 3 | G140: 1 | H140: 0 | I140: 0 | J140: 0 | K140: 0 | L140: 0 | M140: 0 | N140: 0 | O140: 0 | P140: 9 | Q140: 4.5
A141: 2014-10-12 | B141: 16 | C141: NYR | D141: 3 | E141: 8 | F141: 0 | G141: 0 | H141: 0 | I141: 0 | J141: 0 | K141: 0 | L141: 0 | M141: 0 | N141: 0 | O141: 0 | P141: 8 | Q141: 2.67
A142: 2014-10-12 | B142: 23 | C142: OTT | D142: 2 | E142: 3 | F142: 1 | G142: 0 | H142: 0 | I142: 0 | J142: 0 | K142: 0 | L142: 0 | M142: 0 | N142: 0 | O142: 0 | P142: 4 | Q142: 2
A143: 2014-10-12 | B143: 15 | C143: PHI | D143: 3 | E143: 5 | F143: 3 | G143: 0 | H143: 0 | I143: 0 | J143: 0 | K143: 0 | L143: 0 | M143: 0 | N143: 0 | O143: 0 | P143: 8 | Q143: 2.67
A144: 2014-10-12 | B144: 2 | C144: PIT | D144: 2 | E144: 6 | F144: 3 | G144: 1 | H144: 0 | I144: 0 | J144: 0 | K144: 0 | L144: 0 | M144: 1 | N144: 0 | O144: 0 | P144: 11 | Q144: 5.5
A145: 2014-10-12 | B145: 9 | C145: S.J | D145: 2 | E145: 6 | F145: 1 | G145: 0 | H145: 0 | I145: 0 | J145: 0 | K145: 0 | L145: 0 | M145: 0 | N145: 0 | O145: 0 | P145: 7 | Q145: 3.5
A146: 2014-10-12 | B146: 14 | C146: STL | D146: 2 | E146: 4 | F146: 2 | G146: 0 | H146: 0 | I146: 0 | J146: 0 | K146: 0 | L146: 0 | M146: 0 | N146: 0 | O146: 0 | P146: 6 | Q146: 3
A147: 2014-10-12 | B147: 21 | C147: T.B | D147: 2 | E147: 1 | F147: 2 | G147: 1 | H147: 0 | I147: 1 | J147: 0 | K147: 0 | L147: 0 | M147: 0 | N147: 0 | O147: 0 | P147: 5 | Q147: 2.5
A148: 2014-10-12 | B148: 8 | C148: TOR | D148: 3 | E148: 5 | F148: 5 | G148: 0 | H148: 0 | I148: 0 | J148: 0 | K148: 0 | L148: 0 | M148: 1 | N148: 0 | O148: 0 | P148: 11 | Q148: 3.67
A149: 2014-10-12 | B149: 5 | C149: VAN | D149: 2 | E149: 4 | F149: 3 | G149: 0 | H149: 0 | I149: 0 | J149: 0 | K149: 0 | L149: 0 | M149: 0 | N149: 1 | O149: 0 | P149: 8 | Q149: 4
A150: 2014-10-12 | B150: 22 | C150: WPG | D150: 3 | E150: 6 | F150: 0 | G150: 0 | H150: 0 | I150: 0 | J150: 0 | K150: 0 | L150: 0 | M150: 1 | N150: 0 | O150: 0 | P150: 7 | Q150: 2.33
A151: 2014-10-12 | B151: 20 | C151: WSH | D151: 2 | E151: 3 | F151: 2 | G151: 0 | H151: 0 | I151: 0 | J151: 0 | K151: 0 | L151: 0 | M151: 0 | N151: 0 | O151: 0 | P151: 5 | Q151: 2.5
A152: 2014-10-13 | B152: 9 | C152: ANA | D152: 3 | E152: 7 | F152: 4 | G152: 0 | H152: 0 | I152: 0 | J152: 0 | K152: 0 | L152: 0 | M152: 0 | N152: 0 | O152: 1 | P152: 12 | Q152: 4
A153: 2014-10-13 | B153: 19 | C153: ARI | D153: 2 | E153: 3 | F153: 1 | G153: 0 | H153: 0 | I153: 1 | J153: 0 | K153: 0 | L153: 0 | M153: 0 | N153: 0 | O153: 0 | P153: 5 | Q153: 2.5
A154: 2014-10-13 | B154: 29 | C154: BOS | D154: 4 | E154: 2 | F154: 2 | G154: 0 | H154: 0 | I154: 0 | J154: 0 | K154: 0 | L154: 0 | M154: 0 | N154: 0 | O154: 0 | P154: 4 | Q154: 1
A155: 2014-10-13 | B155: 27 | C155: BUF | D155: 3 | E155: 3 | F155: 0 | G155: 0 | H155: 0 | I155: 0 | J155: 0 | K155: 0 | L155: 0 | M155: 1 | N155: 0 | O155: 0 | P155: 4 | Q155: 1.33
A156: 2014-10-13 | B156: 13 | C156: CAR | D156: 2 | E156: 2 | F156: 4 | G156: 0 | H156: 0 | I156: 0 | J156: 0 | K156: 0 | L156: 0 | M156: 0 | N156: 0 | O156: 0 | P156: 6 | Q156: 3
A157: 2014-10-13 | B157: 7 | C157: CBJ | D157: 2 | E157: 6 | F157: 1 | G157: 0 | H157: 0 | I157: 0 | J157: 0 | K157: 0 | L157: 0 | M157: 0 | N157: 1 | O157: 0 | P157: 8 | Q157: 4
A158: 2014-10-13 | B158: 18 | C158: CGY | D158: 3 | E158: 6 | F158: 2 | G158: 0 | H158: 0 | I158: 0 | J158: 0 | K158: 0 | L158: 0 | M158: 0 | N158: 0 | O158: 0 | P158: 8 | Q158: 2.67
A159: 2014-10-13 | B159: 4 | C159: CHI | D159: 2 | E159: 5 | F159: 2 | G159: 0 | H159: 0 | I159: 0 | J159: 0 | K159: 0 | L159: 0 | M159: 1 | N159: 0 | O159: 0 | P159: 8 | Q159: 4
A160: 2014-10-13 | B160: 30 | C160: COL | D160: 3 | E160: 2 | F160: 0 | G160: 0 | H160: 0 | I160: 0 | J160: 0 | K160: 0 | L160: 0 | M160: 0 | N160: 0 | O160: 0 | P160: 2 | Q160: 0.67
A161: 2014-10-13 | B161: 26 | C161: DAL | D161: 2 | E161: 2 | F161: 1 | G161: 0 | H161: 0 | I161: 0 | J161: 0 | K161: 0 | L161: 0 | M161: 0 | N161: 0 | O161: 0 | P161: 3 | Q161: 1.5
A162: 2014-10-13 | B162: 24 | C162: DET | D162: 2 | E162: 3 | F162: 1 | G162: 0 | H162: 0 | I162: 0 | J162: 0 | K162: 0 | L162: 0 | M162: 0 | N162: 0 | O162: 0 | P162: 4 | Q162: 2
A163: 2014-10-13 | B163: 14 | C163: EDM | D163: 2 | E163: 2 | F163: 2 | G163: 1 | H163: 0 | I163: 0 | J163: 0 | K163: 0 | L163: 0 | M163: 1 | N163: 0 | O163: 0 | P163: 6 | Q163: 3
A164: 2014-10-13 | B164: 28 | C164: FLA | D164: 3 | E164: 2 | F164: 1 | G164: 0 | H164: 0 | I164: 0 | J164: 0 | K164: 0 | L164: 0 | M164: 0 | N164: 0 | O164: 0 | P164: 3 | Q164: 1
A165: 2014-10-13 | B165: 23 | C165: L.A | D165: 3 | E165: 6 | F165: 0 | G165: 0 | H165: 0 | I165: 0 | J165: 0 | K165: 0 | L165: 0 | M165: 0 | N165: 0 | O165: 0 | P165: 6 | Q165: 2
A166: 2014-10-13 | B166: 6 | C166: MIN | D166: 2 | E166: 6 | F166: 0 | G166: 0 | H166: 1 | I166: 0 | J166: 0 | K166: 0 | L166: 0 | M166: 0 | N166: 1 | O166: 0 | P166: 8 | Q166: 4
A167: 2014-10-13 | B167: 22 | C167: MTL | D167: 4 | E167: 9 | F167: 0 | G167: 0 | H167: 0 | I167: 0 | J167: 0 | K167: 0 | L167: 0 | M167: 0 | N167: 0 | O167: 0 | P167: 9 | Q167: 2.25
A168: 2014-10-13 | B168: 1 | C168: N.J | D168: 2 | E168: 8 | F168: 2 | G168: 0 | H168: 0 | I168: 0 | J168: 0 | K168: 0 | L168: 0 | M168: 0 | N168: 1 | O168: 0 | P168: 11 | Q168: 5.5
A169: 2014-10-13 | B169: 12 | C169: NSH | D169: 2 | E169: 4 | F169: 1 | G169: 0 | H169: 1 | I169: 0 | J169: 0 | K169: 0 | L169: 0 | M169: 0 | N169: 1 | O169: 0 | P169: 7 | Q169: 3.5
A170: 2014-10-13 | B170: 3 | C170: NYI | D170: 2 | E170: 5 | F170: 3 | G170: 1 | H170: 0 | I170: 0 | J170: 0 | K170: 0 | L170: 0 | M170: 0 | N170: 0 | O170: 0 | P170: 9 | Q170: 4.5
A171: 2014-10-13 | B171: 17 | C171: NYR | D171: 3 | E171: 8 | F171: 0 | G171: 0 | H171: 0 | I171: 0 | J171: 0 | K171: 0 | L171: 0 | M171: 0 | N171: 0 | O171: 0 | P171: 8 | Q171: 2.67
A172: 2014-10-13 | B172: 25 | C172: OTT | D172: 3 | E172: 3 | F172: 2 | G172: 0 | H172: 0 | I172: 0 | J172: 0 | K172: 0 | L172: 0 | M172: 0 | N172: 0 | O172: 0 | P172: 5 | Q172: 1.67
A173: 2014-10-13 | B173: 16 | C173: PHI | D173: 3 | E173: 5 | F173: 3 | G173: 0 | H173: 0 | I173: 0 | J173: 0 | K173: 0 | L173: 0 | M173: 0 | N173: 0 | O173: 0 | P173: 8 | Q173: 2.67
A174: 2014-10-13 | B174: 2 | C174: PIT | D174: 2 | E174: 6 | F174: 3 | G174: 1 | H174: 0 | I174: 0 | J174: 0 | K174: 0 | L174: 0 | M174: 1 | N174: 0 | O174: 0 | P174: 11 | Q174: 5.5
A175: 2014-10-13 | B175: 11 | C175: S.J | D175: 2 | E175: 6 | F175: 1 | G175: 0 | H175: 0 | I175: 0 | J175: 0 | K175: 0 | L175: 0 | M175: 0 | N175: 0 | O175: 0 | P175: 7 | Q175: 3.5
A176: 2014-10-13 | B176: 15 | C176: STL | D176: 2 | E176: 4 | F176: 2 | G176: 0 | H176: 0 | I176: 0 | J176: 0 | K176: 0 | L176: 0 | M176: 0 | N176: 0 | O176: 0 | P176: 6 | Q176: 3
A177: 2014-10-13 | B177: 5 | C177: T.B | D177: 3 | E177: 5 | F177: 4 | G177: 1 | H177: 1 | I177: 1 | J177: 0 | K177: 0 | L177: 0 | M177: 0 | N177: 0 | O177: 0 | P177: 12 | Q177: 4
A178: 2014-10-13 | B178: 10 | C178: TOR | D178: 3 | E178: 5 | F178: 5 | G178: 0 | H178: 0 | I178: 0 | J178: 0 | K178: 0 | L178: 0 | M178: 1 | N178: 0 | O178: 0 | P178: 11 | Q178: 3.67
A179: 2014-10-13 | B179: 8 | C179: VAN | D179: 2 | E179: 4 | F179: 3 | G179: 0 | H179: 0 | I179: 0 | J179: 0 | K179: 0 | L179: 0 | M179: 0 | N179: 1 | O179: 0 | P179: 8 | Q179: 4
A180: 2014-10-13 | B180: 21 | C180: WPG | D180: 3 | E180: 6 | F180: 0 | G180: 0 | H180: 0 | I180: 0 | J180: 0 | K180: 0 | L180: 0 | M180: 1 | N180: 0 | O180: 0 | P180: 7 | Q180: 2.33
A181: 2014-10-13 | B181: 20 | C181: WSH | D181: 2 | E181: 3 | F181: 2 | G181: 0 | H181: 0 | I181: 0 | J181: 0 | K181: 0 | L181: 0 | M181: 0 | N181: 0 | O181: 0 | P181: 5 | Q181: 2.5
A182: 2014-10-14 | B182: 8 | C182: ANA | D182: 4 | E182: 10 | F182: 4 | G182: 0 | H182: 0 | I182: 0 | J182: 0 | K182: 0 | L182: 0 | M182: 0 | N182: 0 | O182: 1 | P182: 15 | Q182: 3.75
A183: 2014-10-14 | B183: 20 | C183: ARI | D183: 2 | E183: 3 | F183: 1 | G183: 0 | H183: 0 | I183: 1 | J183: 0 | K183: 0 | L183: 0 | M183: 0 | N183: 0 | O183: 0 | P183: 5 | Q183: 2.5
A184: 2014-10-14 | B184: 28 | C184: BOS | D184: 4 | E184: 2 | F184: 2 | G184: 0 | H184: 0 | I184: 0 | J184: 0 | K184: 0 | L184: 0 | M184: 0 | N184: 0 | O184: 0 | P184: 4 | Q184: 1
A185: 2014-10-14 | B185: 26 | C185: BUF | D185: 4 | E185: 6 | F185: 0 | G185: 0 | H185: 0 | I185: 0 | J185: 0 | K185: 0 | L185: 0 | M185: 1 | N185: 0 | O185: 0 | P185: 7 | Q185: 1.75
A186: 2014-10-14 | B186: 14 | C186: CAR | D186: 3 | E186: 5 | F186: 4 | G186: 0 | H186: 0 | I186: 0 | J186: 0 | K186: 0 | L186: 0 | M186: 0 | N186: 0 | O186: 0 | P186: 9 | Q186: 3
A187: 2014-10-14 | B187: 10 | C187: CBJ | D187: 3 | E187: 7 | F187: 2 | G187: 0 | H187: 0 | I187: 0 | J187: 0 | K187: 0 | L187: 0 | M187: 0 | N187: 1 | O187: 0 | P187: 10 | Q187: 3.33
A188: 2014-10-14 | B188: 19 | C188: CGY | D188: 4 | E188: 7 | F188: 3 | G188: 0 | H188: 0 | I188: 0 | J188: 0 | K188: 0 | L188: 0 | M188: 0 | N188: 0 | O188: 0 | P188: 10 | Q188: 2.5
A189: 2014-10-14 | B189: 5 | C189: CHI | D189: 2 | E189: 5 | F189: 2 | G189: 0 | H189: 0 | I189: 0 | J189: 0 | K189: 0 | L189: 0 | M189: 1 | N189: 0 | O189: 0 | P189: 8 | Q189: 4
A190: 2014-10-14 | B190: 30 | C190: COL | D190: 4 | E190: 4 | F190: 0 | G190: 0 | H190: 0 | I190: 0 | J190: 0 | K190: 0 | L190: 0 | M190: 0 | N190: 0 | O190: 0 | P190: 4 | Q190: 1
A191: 2014-10-14 | B191: 23 | C191: DAL | D191: 3 | E191: 5 | F191: 1 | G191: 0 | H191: 0 | I191: 0 | J191: 0 | K191: 0 | L191: 0 | M191: 0 | N191: 1 | O191: 0 | P191: 7 | Q191: 2.33
A192: 2014-10-14 | B192: 25 | C192: DET | D192: 2 | E192: 3 | F192: 1 | G192: 0 | H192: 0 | I192: 0 | J192: 0 | K192: 0 | L192: 0 | M192: 0 | N192: 0 | O192: 0 | P192: 4 | Q192: 2
A193: 2014-10-14 | B193: 21 | C193: EDM | D193: 3 | E193: 3 | F193: 2 | G193: 1 | H193: 0 | I193: 0 | J193: 0 | K193: 0 | L193: 0 | M193: 1 | N193: 0 | O193: 0 | P193: 7 | Q193: 2.33
A194: 2014-10-14 | B194: 29 | C194: FLA | D194: 3 | E194: 2 | F194: 1 | G194: 0 | H194: 0 | I194: 0 | J194: 0 | K194: 0 | L194: 0 | M194: 0 | N194: 0 | O194: 0 | P194: 3 | Q194: 1
A195: 2014-10-14 | B195: 13 | C195: L.A | D195: 4 | E195: 10 | F195: 1 | G195: 0 | H195: 0 | I195: 0 | J195: 0 | K195: 0 | L195: 0 | M195: 1 | N195: 0 | O195: 0 | P195: 12 | Q195: 3
A196: 2014-10-14 | B196: 6 | C196: MIN | D196: 2 | E196: 6 | F196: 0 | G196: 0 | H196: 1 | I196: 0 | J196: 0 | K196: 0 | L196: 0 | M196: 0 | N196: 1 | O196: 0 | P196: 8 | Q196: 4
A197: 2014-10-14 | B197: 24 | C197: MTL | D197: 4 | E197: 9 | F197: 0 | G197: 0 | H197: 0 | I197: 0 | J197: 0 | K197: 0 | L197: 0 | M197: 0 | N197: 0 | O197: 0 | P197: 9 | Q197: 2.25
A198: 2014-10-14 | B198: 3 | C198: N.J | D198: 3 | E198: 9 | F198: 3 | G198: 0 | H198: 0 | I198: 0 | J198: 0 | K198: 0 | L198: 0 | M198: 0 | N198: 1 | O198: 0 | P198: 13 | Q198: 4.33
A199: 2014-10-14 | B199: 15 | C199: NSH | D199: 3 | E199: 6 | F199: 1 | G199: 0 | H199: 1 | I199: 0 | J199: 0 | K199: 0 | L199: 0 | M199: 0 | N199: 1 | O199: 0 | P199: 9 | Q199: 3
A200: 2014-10-14 | B200: 2 | C200: NYI | D200: 3 | E200: 10 | F200: 4 | G200: 1 | H200: 0 | I200: 0 | J200: 0 | K200: 0 | L200: 0 | M200: 0 | N200: 0 | O200: 0 | P200: 15 | Q200: 5
... 4871 more rows

Sheet GA
A1: Date | B1: Rk | C1: Team | D1: GP | E1: 5 on 5 | F1: 5 on 4 | G1: 5 on 3 | H1: 4 on 4 | I1: 4 on 3 | J1: 3 on 3 | K1: 3 on 4 | L1: 3 on 5 | M1: 4 on 5 | N1: EN | O1: PS | P1: Total | Q1: GA/G | S1: Team | T1: L.A
A2: 2014-10-08 | B2: 1 | C2: N.J | D2: 0 | E2: 0 | F2: 0 | G2: 0 | H2: 0 | I2: 0 | J2: 0 | K2: 0 | L2: 0 | M2: 0 | N2: 0 | O2: 0 | P2: 0 | Q2: 0
A3: 2014-10-08 | B3: 2 | C3: DET | D3: 0 | E3: 0 | F3: 0 | G3: 0 | H3: 0 | I3: 0 | J3: 0 | K3: 0 | L3: 0 | M3: 0 | N3: 0 | O3: 0 | P3: 0 | Q3: 0 | T3: 5v5 | U3: 4v5 | V3: 3v4 | W3: 3v5 | Y3: 5v5 | Z3: 4v5 | AA3: 3v4 | AB3: 3v5
A4: 2014-10-08 | B4: 3 | C4: NSH | D4: 0 | E4: 0 | F4: 0 | G4: 0 | H4: 0 | I4: 0 | J4: 0 | K4: 0 | L4: 0 | M4: 0 | N4: 0 | O4: 0 | P4: 0 | Q4: 0 | S4: 1 | T4: 3 | U4: 1 | V4: 0 | W4: 0
A5: 2014-10-08 | B5: 4 | C5: STL | D5: 0 | E5: 0 | F5: 0 | G5: 0 | H5: 0 | I5: 0 | J5: 0 | K5: 0 | L5: 0 | M5: 0 | N5: 0 | O5: 0 | P5: 0 | Q5: 0 | S5: 2 | T5: 4 | U5: 2 | V5: 1 | W5: 0
A6: 2014-10-08 | B6: 5 | C6: COL | D6: 0 | E6: 0 | F6: 0 | G6: 0 | H6: 0 | I6: 0 | J6: 0 | K6: 0 | L6: 0 | M6: 0 | N6: 0 | O6: 0 | P6: 0 | Q6: 0 | S6: 3 | T6: 5 | U6: 2 | V6: 1 | W6: 0
A7: 2014-10-08 | B7: 6 | C7: EDM | D7: 0 | E7: 0 | F7: 0 | G7: 0 | H7: 0 | I7: 0 | J7: 0 | K7: 0 | L7: 0 | M7: 0 | N7: 0 | O7: 0 | P7: 0 | Q7: 0 | S7: 4 | T7: 6 | U7: 2 | V7: 1 | W7: 0
A8: 2014-10-08 | B8: 7 | C8: ANA | D8: 0 | E8: 0 | F8: 0 | G8: 0 | H8: 0 | I8: 0 | J8: 0 | K8: 0 | L8: 0 | M8: 0 | N8: 0 | O8: 0 | P8: 0 | Q8: 0 | S8: 5 | T8: 6 | U8: 2 | V8: 1 | W8: 0 | Y8: =AVERAGE(T4:T8) -> 4.8 | Z8: =AVERAGE(U4:U8) -> 1.8 | AA8: =AVERAGE(V4:V8) -> 0.8 | AB8: =AVERAGE(W4:W8) -> 0
A9: 2014-10-08 | B9: 8 | C9: DAL | D9: 0 | E9: 0 | F9: 0 | G9: 0 | H9: 0 | I9: 0 | J9: 0 | K9: 0 | L9: 0 | M9: 0 | N9: 0 | O9: 0 | P9: 0 | Q9: 0 | S9: 6 | T9: 7 | U9: 2 | V9: 1 | W9: 0 | Y9: =AVERAGE(T5:T9) -> 5.6 | Z9: =AVERAGE(U5:U9) -> 2 | AA9: =AVERAGE(V5:V9) -> 1 | AB9: =AVERAGE(W5:W9) -> 0
A10: 2014-10-08 | B10: 9 | C10: S.J | D10: 1 | E10: 0 | F10: 0 | G10: 0 | H10: 0 | I10: 0 | J10: 0 | K10: 0 | L10: 0 | M10: 0 | N10: 0 | O10: 0 | P10: 0 | Q10: 0 | S10: 7 | T10: 7 | U10: 2 | V10: 1 | W10: 0 | Y10: =AVERAGE(T6:T10) -> 6.2 | Z10: =AVERAGE(U6:U10) -> 2 | AA10: =AVERAGE(V6:V10) -> 1 | AB10: =AVERAGE(W6:W10) -> 0
A11: 2014-10-08 | B11: 10 | C11: CBJ | D11: 0 | E11: 0 | F11: 0 | G11: 0 | H11: 0 | I11: 0 | J11: 0 | K11: 0 | L11: 0 | M11: 0 | N11: 0 | O11: 0 | P11: 0 | Q11: 0 | S11: 8 | T11: 8 | U11: 3 | V11: 1 | W11: 0 | Y11: =AVERAGE(T7:T11) -> 6.8 | Z11: =AVERAGE(U7:U11) -> 2.2 | AA11: =AVERAGE(V7:V11) -> 1 | AB11: =AVERAGE(W7:W11) -> 0
A12: 2014-10-08 | B12: 11 | C12: MIN | D12: 0 | E12: 0 | F12: 0 | G12: 0 | H12: 0 | I12: 0 | J12: 0 | K12: 0 | L12: 0 | M12: 0 | N12: 0 | O12: 0 | P12: 0 | Q12: 0 | S12: 9 | T12: 10 | U12: 3 | V12: 1 | W12: 0 | Y12: =AVERAGE(T8:T12) -> 7.6 | Z12: =AVERAGE(U8:U12) -> 2.4 | AA12: =AVERAGE(V8:V12) -> 1 | AB12: =AVERAGE(W8:W12) -> 0
A13: 2014-10-08 | B13: 12 | C13: WPG | D13: 0 | E13: 0 | F13: 0 | G13: 0 | H13: 0 | I13: 0 | J13: 0 | K13: 0 | L13: 0 | M13: 0 | N13: 0 | O13: 0 | P13: 0 | Q13: 0 | S13: 10 | T13: 11 | U13: 4 | V13: 1 | W13: 1 | Y13: =AVERAGE(T9:T13) -> 8.6 | Z13: =AVERAGE(U9:U13) -> 2.8 | AA13: =AVERAGE(V9:V13) -> 1 | AB13: =AVERAGE(W9:W13) -> 0.2
A14: 2014-10-08 | B14: 13 | C14: CHI | D14: 0 | E14: 0 | F14: 0 | G14: 0 | H14: 0 | I14: 0 | J14: 0 | K14: 0 | L14: 0 | M14: 0 | N14: 0 | O14: 0 | P14: 0 | Q14: 0 | S14: 11 | T14: 13 | U14: 6 | V14: 1 | W14: 1 | Y14: =AVERAGE(T10:T14) -> 9.8 | Z14: =AVERAGE(U10:U14) -> 3.6 | AA14: =AVERAGE(V10:V14) -> 1 | AB14: =AVERAGE(W10:W14) -> 0.4
A15: 2014-10-08 | B15: 14 | C15: WSH | D15: 0 | E15: 0 | F15: 0 | G15: 0 | H15: 0 | I15: 0 | J15: 0 | K15: 0 | L15: 0 | M15: 0 | N15: 0 | O15: 0 | P15: 0 | Q15: 0 | S15: 12 | T15: 15 | U15: 7 | V15: 1 | W15: 1 | Y15: =AVERAGE(T11:T15) -> 11.4 | Z15: =AVERAGE(U11:U15) -> 4.6 | AA15: =AVERAGE(V11:V15) -> 1 | AB15: =AVERAGE(W11:W15) -> 0.6
A16: 2014-10-08 | B16: 15 | C16: T.B | D16: 0 | E16: 0 | F16: 0 | G16: 0 | H16: 0 | I16: 0 | J16: 0 | K16: 0 | L16: 0 | M16: 0 | N16: 0 | O16: 0 | P16: 0 | Q16: 0 | S16: 13 | T16: 16 | U16: 7 | V16: 1 | W16: 1 | Y16: =AVERAGE(T12:T16) -> 13 | Z16: =AVERAGE(U12:U16) -> 5.4 | AA16: =AVERAGE(V12:V16) -> 1 | AB16: =AVERAGE(W12:W16) -> 0.8
A17: 2014-10-08 | B17: 16 | C17: NYI | D17: 0 | E17: 0 | F17: 0 | G17: 0 | H17: 0 | I17: 0 | J17: 0 | K17: 0 | L17: 0 | M17: 0 | N17: 0 | O17: 0 | P17: 0 | Q17: 0 | S17: 14 | T17: 16 | U17: 8 | V17: 1 | W17: 1 | Y17: =AVERAGE(T13:T17) -> 14.2 | Z17: =AVERAGE(U13:U17) -> 6.4 | AA17: =AVERAGE(V13:V17) -> 1 | AB17: =AVERAGE(W13:W17) -> 1
A18: 2014-10-08 | B18: 17 | C18: NYR | D18: 0 | E18: 0 | F18: 0 | G18: 0 | H18: 0 | I18: 0 | J18: 0 | K18: 0 | L18: 0 | M18: 0 | N18: 0 | O18: 0 | P18: 0 | Q18: 0 | S18: 15 | T18: 17 | U18: 8 | V18: 1 | W18: 1 | Y18: =AVERAGE(T14:T18) -> 15.4 | Z18: =AVERAGE(U14:U18) -> 7.2 | AA18: =AVERAGE(V14:V18) -> 1 | AB18: =AVERAGE(W14:W18) -> 1
A19: 2014-10-08 | B19: 18 | C19: PIT | D19: 0 | E19: 0 | F19: 0 | G19: 0 | H19: 0 | I19: 0 | J19: 0 | K19: 0 | L19: 0 | M19: 0 | N19: 0 | O19: 0 | P19: 0 | Q19: 0 | S19: 16 | T19: 22 | U19: 8 | V19: 1 | W19: 1 | Y19: =AVERAGE(T15:T19) -> 17.2 | Z19: =AVERAGE(U15:U19) -> 7.6 | AA19: =AVERAGE(V15:V19) -> 1 | AB19: =AVERAGE(W15:W19) -> 1
A20: 2014-10-08 | B20: 19 | C20: BUF | D20: 0 | E20: 0 | F20: 0 | G20: 0 | H20: 0 | I20: 0 | J20: 0 | K20: 0 | L20: 0 | M20: 0 | N20: 0 | O20: 0 | P20: 0 | Q20: 0 | S20: 17 | T20: 24 | U20: 8 | V20: 1 | W20: 1 | Y20: =AVERAGE(T16:T20) -> 19 | Z20: =AVERAGE(U16:U20) -> 7.8 | AA20: =AVERAGE(V16:V20) -> 1 | AB20: =AVERAGE(W16:W20) -> 1
A21: 2014-10-08 | B21: 20 | C21: OTT | D21: 0 | E21: 0 | F21: 0 | G21: 0 | H21: 0 | I21: 0 | J21: 0 | K21: 0 | L21: 0 | M21: 0 | N21: 0 | O21: 0 | P21: 0 | Q21: 0 | S21: 18 | T21: 26 | U21: 8 | V21: 1 | W21: 1 | Y21: =AVERAGE(T17:T21) -> 21 | Z21: =AVERAGE(U17:U21) -> 8 | AA21: =AVERAGE(V17:V21) -> 1 | AB21: =AVERAGE(W17:W21) -> 1
A22: 2014-10-08 | B22: 21 | C22: ARI | D22: 0 | E22: 0 | F22: 0 | G22: 0 | H22: 0 | I22: 0 | J22: 0 | K22: 0 | L22: 0 | M22: 0 | N22: 0 | O22: 0 | P22: 0 | Q22: 0 | S22: 19 | T22: 27 | U22: 9 | V22: 1 | W22: 1 | Y22: =AVERAGE(T18:T22) -> 23.2 | Z22: =AVERAGE(U18:U22) -> 8.2 | AA22: =AVERAGE(V18:V22) -> 1 | AB22: =AVERAGE(W18:W22) -> 1
A23: 2014-10-08 | B23: 22 | C23: FLA | D23: 0 | E23: 0 | F23: 0 | G23: 0 | H23: 0 | I23: 0 | J23: 0 | K23: 0 | L23: 0 | M23: 0 | N23: 0 | O23: 0 | P23: 0 | Q23: 0 | S23: 20 | T23: 28 | U23: 10 | V23: 1 | W23: 1 | Y23: =AVERAGE(T19:T23) -> 25.4 | Z23: =AVERAGE(U19:U23) -> 8.6 | AA23: =AVERAGE(V19:V23) -> 1 | AB23: =AVERAGE(W19:W23) -> 1
A24: 2014-10-08 | B24: 23 | C24: CAR | D24: 0 | E24: 0 | F24: 0 | G24: 0 | H24: 0 | I24: 0 | J24: 0 | K24: 0 | L24: 0 | M24: 0 | N24: 0 | O24: 0 | P24: 0 | Q24: 0 | S24: 21 | T24: 31 | U24: 12 | V24: 1 | W24: 1 | Y24: =AVERAGE(T20:T24) -> 27.2 | Z24: =AVERAGE(U20:U24) -> 9.4 | AA24: =AVERAGE(V20:V24) -> 1 | AB24: =AVERAGE(W20:W24) -> 1
A25: 2014-10-08 | B25: 24 | C25: BOS | D25: 1 | E25: 1 | F25: 0 | G25: 0 | H25: 0 | I25: 0 | J25: 0 | K25: 0 | L25: 0 | M25: 0 | N25: 0 | O25: 0 | P25: 1 | Q25: 1 | S25: 22 | T25: 34 | U25: 12 | V25: 1 | W25: 1 | Y25: =AVERAGE(T21:T25) -> 29.2 | Z25: =AVERAGE(U21:U25) -> 10.2 | AA25: =AVERAGE(V21:V25) -> 1 | AB25: =AVERAGE(W21:W25) -> 1
A26: 2014-10-08 | B26: 25 | C26: VAN | D26: 1 | E26: 2 | F26: 0 | G26: 0 | H26: 0 | I26: 0 | J26: 0 | K26: 0 | L26: 0 | M26: 0 | N26: 0 | O26: 0 | P26: 2 | Q26: 2 | S26: 23 | T26: 34 | U26: 12 | V26: 1 | W26: 1 | Y26: =AVERAGE(T22:T26) -> 30.8 | Z26: =AVERAGE(U22:U26) -> 11 | AA26: =AVERAGE(V22:V26) -> 1 | AB26: =AVERAGE(W22:W26) -> 1
A27: 2014-10-08 | B27: 26 | C27: PHI | D27: 1 | E27: 1 | F27: 0 | G27: 0 | H27: 0 | I27: 0 | J27: 0 | K27: 0 | L27: 0 | M27: 1 | N27: 0 | O27: 0 | P27: 2 | Q27: 2 | S27: 24 | T27: 37 | U27: 12 | V27: 1 | W27: 1 | Y27: =AVERAGE(T23:T27) -> 32.8 | Z27: =AVERAGE(U23:U27) -> 11.6 | AA27: =AVERAGE(V23:V27) -> 1 | AB27: =AVERAGE(W23:W27) -> 1
A28: 2014-10-08 | B28: 27 | C28: MTL | D28: 1 | E28: 2 | F28: 0 | G28: 0 | H28: 0 | I28: 0 | J28: 0 | K28: 0 | L28: 0 | M28: 1 | N28: 0 | O28: 0 | P28: 3 | Q28: 3 | S28: 25 | T28: 37 | U28: 12 | V28: 1 | W28: 1 | Y28: =AVERAGE(T24:T28) -> 34.6 | Z28: =AVERAGE(U24:U28) -> 12 | AA28: =AVERAGE(V24:V28) -> 1 | AB28: =AVERAGE(W24:W28) -> 1
A29: 2014-10-08 | B29: 28 | C29: L.A | D29: 1 | E29: 3 | F29: 0 | G29: 0 | H29: 0 | I29: 0 | J29: 0 | K29: 0 | L29: 0 | M29: 1 | N29: 0 | O29: 0 | P29: 4 | Q29: 4 | S29: 26 | T29: 37 | U29: 12 | V29: 1 | W29: 1 | Y29: =AVERAGE(T25:T29) -> 35.8 | Z29: =AVERAGE(U25:U29) -> 12 | AA29: =AVERAGE(V25:V29) -> 1 | AB29: =AVERAGE(W25:W29) -> 1
A30: 2014-10-08 | B30: 29 | C30: CGY | D30: 1 | E30: 2 | F30: 0 | G30: 0 | H30: 0 | I30: 0 | J30: 0 | K30: 0 | L30: 0 | M30: 1 | N30: 1 | O30: 0 | P30: 4 | Q30: 4 | S30: 27 | T30: 38 | U30: 13 | V30: 1 | W30: 1 | Y30: =AVERAGE(T26:T30) -> 36.6 | Z30: =AVERAGE(U26:U30) -> 12.2 | AA30: =AVERAGE(V26:V30) -> 1 | AB30: =AVERAGE(W26:W30) -> 1
A31: 2014-10-08 | B31: 30 | C31: TOR | D31: 1 | E31: 4 | F31: 0 | G31: 0 | H31: 0 | I31: 0 | J31: 0 | K31: 0 | L31: 0 | M31: 0 | N31: 0 | O31: 0 | P31: 4 | Q31: 4 | S31: 28 | T31: 38 | U31: 14 | V31: 1 | W31: 1 | Y31: =AVERAGE(T27:T31) -> 37.4 | Z31: =AVERAGE(U27:U31) -> 12.6 | AA31: =AVERAGE(V27:V31) -> 1 | AB31: =AVERAGE(W27:W31) -> 1
A32: 2014-10-09 | B32: 1 | C32: S.J | D32: 1 | E32: 0 | F32: 0 | G32: 0 | H32: 0 | I32: 0 | J32: 0 | K32: 0 | L32: 0 | M32: 0 | N32: 0 | O32: 0 | P32: 0 | Q32: 0 | S32: 29 | T32: 40 | U32: 14 | V32: 1 | W32: 1 | Y32: =AVERAGE(T28:T32) -> 38 | Z32: =AVERAGE(U28:U32) -> 13 | AA32: =AVERAGE(V28:V32) -> 1 | AB32: =AVERAGE(W28:W32) -> 1
A33: 2014-10-09 | B33: 2 | C33: NYI | D33: 0 | E33: 0 | F33: 0 | G33: 0 | H33: 0 | I33: 0 | J33: 0 | K33: 0 | L33: 0 | M33: 0 | N33: 0 | O33: 0 | P33: 0 | Q33: 0 | S33: 30 | T33: 44 | U33: 16 | V33: 1 | W33: 1 | Y33: =AVERAGE(T29:T33) -> 39.4 | Z33: =AVERAGE(U29:U33) -> 13.8 | AA33: =AVERAGE(V29:V33) -> 1 | AB33: =AVERAGE(W29:W33) -> 1
A34: 2014-10-09 | B34: 3 | C34: CAR | D34: 0 | E34: 0 | F34: 0 | G34: 0 | H34: 0 | I34: 0 | J34: 0 | K34: 0 | L34: 0 | M34: 0 | N34: 0 | O34: 0 | P34: 0 | Q34: 0 | S34: 31 | T34: 46 | U34: 17 | V34: 1 | W34: 1 | Y34: =AVERAGE(T30:T34) -> 41.2 | Z34: =AVERAGE(U30:U34) -> 14.8 | AA34: =AVERAGE(V30:V34) -> 1 | AB34: =AVERAGE(W30:W34) -> 1
A35: 2014-10-09 | B35: 4 | C35: MIN | D35: 1 | E35: 0 | F35: 0 | G35: 0 | H35: 0 | I35: 0 | J35: 0 | K35: 0 | L35: 0 | M35: 0 | N35: 0 | O35: 0 | P35: 0 | Q35: 0 | S35: 32 | T35: 48 | U35: 18 | V35: 1 | W35: 2 | Y35: =AVERAGE(T31:T35) -> 43.2 | Z35: =AVERAGE(U31:U35) -> 15.8 | AA35: =AVERAGE(V31:V35) -> 1 | AB35: =AVERAGE(W31:W35) -> 1.2
A36: 2014-10-09 | B36: 5 | C36: CBJ | D36: 1 | E36: 1 | F36: 0 | G36: 0 | H36: 0 | I36: 0 | J36: 0 | K36: 0 | L36: 0 | M36: 0 | N36: 0 | O36: 0 | P36: 1 | Q36: 1 | S36: 33 | T36: 50 | U36: 20 | V36: 1 | W36: 2 | Y36: =AVERAGE(T32:T36) -> 45.6 | Z36: =AVERAGE(U32:U36) -> 17 | AA36: =AVERAGE(V32:V36) -> 1 | AB36: =AVERAGE(W32:W36) -> 1.4
A37: 2014-10-09 | B37: 6 | C37: WSH | D37: 1 | E37: 1 | F37: 0 | G37: 0 | H37: 0 | I37: 0 | J37: 0 | K37: 0 | L37: 0 | M37: 0 | N37: 0 | O37: 0 | P37: 1 | Q37: 1 | S37: 34 | T37: 52 | U37: 20 | V37: 1 | W37: 2 | Y37: =AVERAGE(T33:T37) -> 48 | Z37: =AVERAGE(U33:U37) -> 18.2 | AA37: =AVERAGE(V33:V37) -> 1 | AB37: =AVERAGE(W33:W37) -> 1.6
A38: 2014-10-09 | B38: 7 | C38: DET | D38: 1 | E38: 1 | F38: 0 | G38: 0 | H38: 0 | I38: 0 | J38: 0 | K38: 0 | L38: 0 | M38: 0 | N38: 0 | O38: 0 | P38: 1 | Q38: 1 | S38: 35 | T38: 54 | U38: 21 | V38: 1 | W38: 2 | Y38: =AVERAGE(T34:T38) -> 50 | Z38: =AVERAGE(U34:U38) -> 19.2 | AA38: =AVERAGE(V34:V38) -> 1 | AB38: =AVERAGE(W34:W38) -> 1.8
A39: 2014-10-09 | B39: 8 | C39: BOS | D39: 2 | E39: 2 | F39: 0 | G39: 0 | H39: 0 | I39: 0 | J39: 0 | K39: 0 | L39: 0 | M39: 1 | N39: 0 | O39: 0 | P39: 3 | Q39: 1.5 | S39: 36 | T39: 55 | U39: 21 | V39: 1 | W39: 2 | Y39: =AVERAGE(T35:T39) -> 51.8 | Z39: =AVERAGE(U35:U39) -> 20 | AA39: =AVERAGE(V35:V39) -> 1 | AB39: =AVERAGE(W35:W39) -> 2
A40: 2014-10-09 | B40: 9 | C40: CHI | D40: 1 | E40: 1 | F40: 0 | G40: 0 | H40: 0 | I40: 0 | J40: 0 | K40: 0 | L40: 0 | M40: 1 | N40: 0 | O40: 0 | P40: 2 | Q40: 2 | S40: 37 | T40: 57 | U40: 21 | V40: 1 | W40: 2 | Y40: =AVERAGE(T36:T40) -> 53.6 | Z40: =AVERAGE(U36:U40) -> 20.6 | AA40: =AVERAGE(V36:V40) -> 1 | AB40: =AVERAGE(W36:W40) -> 2
A41: 2014-10-09 | B41: 10 | C41: NSH | D41: 1 | E41: 1 | F41: 0 | G41: 0 | H41: 0 | I41: 0 | J41: 0 | K41: 0 | L41: 0 | M41: 1 | N41: 0 | O41: 0 | P41: 2 | Q41: 2 | S41: 38 | T41: 59 | U41: 21 | V41: 1 | W41: 2 | Y41: =AVERAGE(T37:T41) -> 55.4 | Z41: =AVERAGE(U37:U41) -> 20.8 | AA41: =AVERAGE(V37:V41) -> 1 | AB41: =AVERAGE(W37:W41) -> 2
A42: 2014-10-09 | B42: 11 | C42: DAL | D42: 1 | E42: 1 | F42: 0 | G42: 0 | H42: 0 | I42: 0 | J42: 0 | K42: 0 | L42: 0 | M42: 1 | N42: 0 | O42: 0 | P42: 2 | Q42: 2 | S42: 39 | T42: 60 | U42: 22 | V42: 1 | W42: 2 | Y42: =AVERAGE(T38:T42) -> 57 | Z42: =AVERAGE(U38:U42) -> 21.2 | AA42: =AVERAGE(V38:V42) -> 1 | AB42: =AVERAGE(W38:W42) -> 2
A43: 2014-10-09 | B43: 12 | C43: T.B | D43: 1 | E43: 2 | F43: 0 | G43: 0 | H43: 0 | I43: 0 | J43: 0 | K43: 0 | L43: 0 | M43: 0 | N43: 0 | O43: 0 | P43: 2 | Q43: 2 | S43: 40 | T43: 65 | U43: 23 | V43: 1 | W43: 2 | Y43: =AVERAGE(T39:T43) -> 59.2 | Z43: =AVERAGE(U39:U43) -> 21.6 | AA43: =AVERAGE(V39:V43) -> 1 | AB43: =AVERAGE(W39:W43) -> 2
A44: 2014-10-09 | B44: 13 | C44: VAN | D44: 1 | E44: 2 | F44: 0 | G44: 0 | H44: 0 | I44: 0 | J44: 0 | K44: 0 | L44: 0 | M44: 0 | N44: 0 | O44: 0 | P44: 2 | Q44: 2 | S44: 41 | T44: 67 | U44: 25 | V44: 1 | W44: 2 | Y44: =AVERAGE(T40:T44) -> 61.6 | Z44: =AVERAGE(U40:U44) -> 22.4 | AA44: =AVERAGE(V40:V44) -> 1 | AB44: =AVERAGE(W40:W44) -> 2
A45: 2014-10-09 | B45: 14 | C45: NYR | D45: 1 | E45: 2 | F45: 0 | G45: 0 | H45: 0 | I45: 0 | J45: 0 | K45: 0 | L45: 0 | M45: 0 | N45: 0 | O45: 0 | P45: 2 | Q45: 2 | S45: 42 | T45: 70 | U45: 26 | V45: 1 | W45: 2 | Y45: =AVERAGE(T41:T45) -> 64.2 | Z45: =AVERAGE(U41:U45) -> 23.4 | AA45: =AVERAGE(V41:V45) -> 1 | AB45: =AVERAGE(W41:W45) -> 2
A46: 2014-10-09 | B46: 15 | C46: MTL | D46: 2 | E46: 3 | F46: 0 | G46: 0 | H46: 0 | I46: 0 | J46: 0 | K46: 0 | L46: 0 | M46: 1 | N46: 0 | O46: 0 | P46: 4 | Q46: 2 | S46: 43 | T46: 70 | U46: 26 | V46: 1 | W46: 2 | Y46: =AVERAGE(T42:T46) -> 66.4 | Z46: =AVERAGE(U42:U46) -> 24.4 | AA46: =AVERAGE(V42:V46) -> 1 | AB46: =AVERAGE(W42:W46) -> 2
A47: 2014-10-09 | B47: 16 | C47: WPG | D47: 1 | E47: 2 | F47: 0 | G47: 0 | H47: 0 | I47: 0 | J47: 0 | K47: 0 | L47: 0 | M47: 0 | N47: 0 | O47: 0 | P47: 2 | Q47: 2 | S47: 44 | T47: 73 | U47: 28 | V47: 1 | W47: 2 | Y47: =AVERAGE(T43:T47) -> 69 | Z47: =AVERAGE(U43:U47) -> 25.6 | AA47: =AVERAGE(V43:V47) -> 1 | AB47: =AVERAGE(W43:W47) -> 2
A48: 2014-10-09 | B48: 17 | C48: CGY | D48: 2 | E48: 2 | F48: 0 | G48: 0 | H48: 0 | I48: 0 | J48: 0 | K48: 0 | L48: 1 | M48: 2 | N48: 1 | O48: 0 | P48: 6 | Q48: 3 | S48: 45 | T48: 74 | U48: 29 | V48: 1 | W48: 2 | Y48: =AVERAGE(T44:T48) -> 70.8 | Z48: =AVERAGE(U44:U48) -> 26.8 | AA48: =AVERAGE(V44:V48) -> 1 | AB48: =AVERAGE(W44:W48) -> 2
A49: 2014-10-09 | B49: 18 | C49: STL | D49: 1 | E49: 3 | F49: 0 | G49: 0 | H49: 0 | I49: 0 | J49: 0 | K49: 0 | L49: 0 | M49: 0 | N49: 0 | O49: 0 | P49: 3 | Q49: 3 | S49: 46 | T49: 75 | U49: 29 | V49: 1 | W49: 2 | Y49: =AVERAGE(T45:T49) -> 72.4 | Z49: =AVERAGE(U45:U49) -> 27.6 | AA49: =AVERAGE(V45:V49) -> 1 | AB49: =AVERAGE(W45:W49) -> 2
A50: 2014-10-09 | B50: 19 | C50: BUF | D50: 1 | E50: 2 | F50: 0 | G50: 0 | H50: 0 | I50: 0 | J50: 0 | K50: 0 | L50: 0 | M50: 1 | N50: 0 | O50: 0 | P50: 3 | Q50: 3 | S50: 47 | T50: 76 | U50: 31 | V50: 1 | W50: 2 | Y50: =AVERAGE(T46:T50) -> 73.6 | Z50: =AVERAGE(U46:U50) -> 28.6 | AA50: =AVERAGE(V46:V50) -> 1 | AB50: =AVERAGE(W46:W50) -> 2
A51: 2014-10-09 | B51: 20 | C51: OTT | D51: 1 | E51: 2 | F51: 0 | G51: 0 | H51: 0 | I51: 0 | J51: 0 | K51: 0 | L51: 0 | M51: 1 | N51: 0 | O51: 0 | P51: 3 | Q51: 3 | S51: 48 | T51: 78 | U51: 32 | V51: 1 | W51: 2 | Y51: =AVERAGE(T47:T51) -> 75.2 | Z51: =AVERAGE(U47:U51) -> 29.8 | AA51: =AVERAGE(V47:V51) -> 1 | AB51: =AVERAGE(W47:W51) -> 2
A52: 2014-10-09 | B52: 21 | C52: FLA | D52: 1 | E52: 0 | F52: 0 | G52: 0 | H52: 0 | I52: 0 | J52: 0 | K52: 1 | L52: 1 | M52: 1 | N52: 0 | O52: 0 | P52: 3 | Q52: 3 | S52: 49 | T52: 80 | U52: 32 | V52: 1 | W52: 2 | Y52: =AVERAGE(T48:T52) -> 76.6 | Z52: =AVERAGE(U48:U52) -> 30.6 | AA52: =AVERAGE(V48:V52) -> 1 | AB52: =AVERAGE(W48:W52) -> 2
A53: 2014-10-09 | B53: 22 | C53: L.A | D53: 1 | E53: 3 | F53: 0 | G53: 0 | H53: 0 | I53: 0 | J53: 0 | K53: 0 | L53: 0 | M53: 1 | N53: 0 | O53: 0 | P53: 4 | Q53: 4 | S53: 50 | T53: 83 | U53: 33 | V53: 1 | W53: 2 | Y53: =AVERAGE(T49:T53) -> 78.4 | Z53: =AVERAGE(U49:U53) -> 31.4 | AA53: =AVERAGE(V49:V53) -> 1 | AB53: =AVERAGE(W49:W53) -> 2
A54: 2014-10-09 | B54: 23 | C54: N.J | D54: 1 | E54: 2 | F54: 0 | G54: 0 | H54: 0 | I54: 0 | J54: 0 | K54: 0 | L54: 0 | M54: 2 | N54: 0 | O54: 0 | P54: 4 | Q54: 4 | S54: 51 | T54: 86 | U54: 33 | V54: 1 | W54: 2 | Y54: =AVERAGE(T50:T54) -> 80.6 | Z54: =AVERAGE(U50:U54) -> 32.2 | AA54: =AVERAGE(V50:V54) -> 1 | AB54: =AVERAGE(W50:W54) -> 2
A55: 2014-10-09 | B55: 24 | C55: TOR | D55: 1 | E55: 4 | F55: 0 | G55: 0 | H55: 0 | I55: 0 | J55: 0 | K55: 0 | L55: 0 | M55: 0 | N55: 0 | O55: 0 | P55: 4 | Q55: 4 | S55: 52 | T55: 88 | U55: 33 | V55: 1 | W55: 2 | Y55: =AVERAGE(T51:T55) -> 83 | Z55: =AVERAGE(U51:U55) -> 32.6 | AA55: =AVERAGE(V51:V55) -> 1 | AB55: =AVERAGE(W51:W55) -> 2
A56: 2014-10-09 | B56: 25 | C56: PIT | D56: 1 | E56: 1 | F56: 0 | G56: 0 | H56: 0 | I56: 0 | J56: 0 | K56: 0 | L56: 0 | M56: 3 | N56: 0 | O56: 0 | P56: 4 | Q56: 4 | S56: 53 | T56: 91 | U56: 33 | V56: 1 | W56: 2 | Y56: =AVERAGE(T52:T56) -> 85.6 | Z56: =AVERAGE(U52:U56) -> 32.8 | AA56: =AVERAGE(V52:V56) -> 1 | AB56: =AVERAGE(W52:W56) -> 2
A57: 2014-10-09 | B57: 26 | C57: PHI | D57: 2 | E57: 6 | F57: 0 | G57: 0 | H57: 0 | I57: 0 | J57: 0 | K57: 0 | L57: 0 | M57: 1 | N57: 1 | O57: 0 | P57: 8 | Q57: 4 | S57: 54 | T57: 93 | U57: 34 | V57: 1 | W57: 2 | Y57: =AVERAGE(T53:T57) -> 88.2 | Z57: =AVERAGE(U53:U57) -> 33.2 | AA57: =AVERAGE(V53:V57) -> 1 | AB57: =AVERAGE(W53:W57) -> 2
A58: 2014-10-09 | B58: 27 | C58: EDM | D58: 1 | E58: 4 | F58: 0 | G58: 0 | H58: 0 | I58: 0 | J58: 0 | K58: 0 | L58: 0 | M58: 1 | N58: 0 | O58: 0 | P58: 5 | Q58: 5 | S58: 55 | T58: 93 | U58: 34 | V58: 1 | W58: 2 | Y58: =AVERAGE(T54:T58) -> 90.2 | Z58: =AVERAGE(U54:U58) -> 33.4 | AA58: =AVERAGE(V54:V58) -> 1 | AB58: =AVERAGE(W54:W58) -> 2
A59: 2014-10-09 | B59: 28 | C59: COL | D59: 1 | E59: 4 | F59: 0 | G59: 0 | H59: 1 | I59: 0 | J59: 0 | K59: 0 | L59: 0 | M59: 0 | N59: 0 | O59: 0 | P59: 5 | Q59: 5 | S59: 56 | T59: 95 | U59: 34 | V59: 1 | W59: 2 | Y59: =AVERAGE(T55:T59) -> 92 | Z59: =AVERAGE(U55:U59) -> 33.6 | AA59: =AVERAGE(V55:V59) -> 1 | AB59: =AVERAGE(W55:W59) -> 2
A60: 2014-10-09 | B60: 29 | C60: ANA | D60: 1 | E60: 4 | F60: 1 | G60: 0 | H60: 0 | I60: 0 | J60: 0 | K60: 0 | L60: 0 | M60: 1 | N60: 0 | O60: 0 | P60: 6 | Q60: 6 | S60: 57 | T60: 96 | U60: 34 | V60: 1 | W60: 2 | Y60: =AVERAGE(T56:T60) -> 93.6 | Z60: =AVERAGE(U56:U60) -> 33.8 | AA60: =AVERAGE(V56:V60) -> 1 | AB60: =AVERAGE(W56:W60) -> 2
A61: 2014-10-09 | B61: 30 | C61: ARI | D61: 1 | E61: 5 | F61: 1 | G61: 0 | H61: 0 | I61: 0 | J61: 0 | K61: 0 | L61: 0 | M61: 0 | N61: 0 | O61: 0 | P61: 6 | Q61: 6 | S61: 58 | T61: 97 | U61: 34 | V61: 1 | W61: 2 | Y61: =AVERAGE(T57:T61) -> 94.8 | Z61: =AVERAGE(U57:U61) -> 34 | AA61: =AVERAGE(V57:V61) -> 1 | AB61: =AVERAGE(W57:W61) -> 2
A62: 2014-10-10 | B62: 1 | C62: S.J | D62: 1 | E62: 0 | F62: 0 | G62: 0 | H62: 0 | I62: 0 | J62: 0 | K62: 0 | L62: 0 | M62: 0 | N62: 0 | O62: 0 | P62: 0 | Q62: 0 | S62: 59 | T62: 97 | U62: 34 | V62: 1 | W62: 2 | Y62: =AVERAGE(T58:T62) -> 95.6 | Z62: =AVERAGE(U58:U62) -> 34 | AA62: =AVERAGE(V58:V62) -> 1 | AB62: =AVERAGE(W58:W62) -> 2
A63: 2014-10-10 | B63: 2 | C63: MIN | D63: 1 | E63: 0 | F63: 0 | G63: 0 | H63: 0 | I63: 0 | J63: 0 | K63: 0 | L63: 0 | M63: 0 | N63: 0 | O63: 0 | P63: 0 | Q63: 0 | S63: 60 | T63: 98 | U63: 34 | V63: 1 | W63: 2 | Y63: =AVERAGE(T59:T63) -> 96.6 | Z63: =AVERAGE(U59:U63) -> 34 | AA63: =AVERAGE(V59:V63) -> 1 | AB63: =AVERAGE(W59:W63) -> 2
A64: 2014-10-10 | B64: 3 | C64: WSH | D64: 1 | E64: 1 | F64: 0 | G64: 0 | H64: 0 | I64: 0 | J64: 0 | K64: 0 | L64: 0 | M64: 0 | N64: 0 | O64: 0 | P64: 1 | Q64: 1 | S64: 61 | T64: 101 | U64: 34 | V64: 1 | W64: 2 | Y64: =AVERAGE(T60:T64) -> 97.8 | Z64: =AVERAGE(U60:U64) -> 34 | AA64: =AVERAGE(V60:V64) -> 1 | AB64: =AVERAGE(W60:W64) -> 2
A65: 2014-10-10 | B65: 4 | C65: DET | D65: 1 | E65: 1 | F65: 0 | G65: 0 | H65: 0 | I65: 0 | J65: 0 | K65: 0 | L65: 0 | M65: 0 | N65: 0 | O65: 0 | P65: 1 | Q65: 1 | S65: 62 | T65: 104 | U65: 34 | V65: 1 | W65: 2 | Y65: =AVERAGE(T61:T65) -> 99.4 | Z65: =AVERAGE(U61:U65) -> 34 | AA65: =AVERAGE(V61:V65) -> 1 | AB65: =AVERAGE(W61:W65) -> 2
A66: 2014-10-10 | B66: 5 | C66: CBJ | D66: 1 | E66: 1 | F66: 0 | G66: 0 | H66: 0 | I66: 0 | J66: 0 | K66: 0 | L66: 0 | M66: 0 | N66: 0 | O66: 0 | P66: 1 | Q66: 1 | S66: 63 | T66: 105 | U66: 35 | V66: 1 | W66: 2 | Y66: =AVERAGE(T62:T66) -> 101 | Z66: =AVERAGE(U62:U66) -> 34.2 | AA66: =AVERAGE(V62:V66) -> 1 | AB66: =AVERAGE(W62:W66) -> 2
A67: 2014-10-10 | B67: 6 | C67: BOS | D67: 2 | E67: 2 | F67: 0 | G67: 0 | H67: 0 | I67: 0 | J67: 0 | K67: 0 | L67: 0 | M67: 1 | N67: 0 | O67: 0 | P67: 3 | Q67: 1.5 | S67: 64 | T67: 108 | U67: 35 | V67: 1 | W67: 2 | Y67: =AVERAGE(T63:T67) -> 103.2 | Z67: =AVERAGE(U63:U67) -> 34.4 | AA67: =AVERAGE(V63:V67) -> 1 | AB67: =AVERAGE(W63:W67) -> 2
A68: 2014-10-10 | B68: 7 | C68: DAL | D68: 1 | E68: 1 | F68: 0 | G68: 0 | H68: 0 | I68: 0 | J68: 0 | K68: 0 | L68: 0 | M68: 1 | N68: 0 | O68: 0 | P68: 2 | Q68: 2 | S68: 65 | T68: 108 | U68: 35 | V68: 1 | W68: 2 | Y68: =AVERAGE(T64:T68) -> 105.2 | Z68: =AVERAGE(U64:U68) -> 34.6 | AA68: =AVERAGE(V64:V68) -> 1 | AB68: =AVERAGE(W64:W68) -> 2
A69: 2014-10-10 | B69: 8 | C69: NSH | D69: 1 | E69: 1 | F69: 0 | G69: 0 | H69: 0 | I69: 0 | J69: 0 | K69: 0 | L69: 0 | M69: 1 | N69: 0 | O69: 0 | P69: 2 | Q69: 2 | S69: 66 | T69: 110 | U69: 35 | V69: 1 | W69: 2 | Y69: =AVERAGE(T65:T69) -> 107 | Z69: =AVERAGE(U65:U69) -> 34.8 | AA69: =AVERAGE(V65:V69) -> 1 | AB69: =AVERAGE(W65:W69) -> 2
A70: 2014-10-10 | B70: 9 | C70: CHI | D70: 1 | E70: 1 | F70: 0 | G70: 0 | H70: 0 | I70: 0 | J70: 0 | K70: 0 | L70: 0 | M70: 1 | N70: 0 | O70: 0 | P70: 2 | Q70: 2 | S70: 67 | T70: 110 | U70: 35 | V70: 1 | W70: 2 | Y70: =AVERAGE(T66:T70) -> 108.2 | Z70: =AVERAGE(U66:U70) -> 35 | AA70: =AVERAGE(V66:V70) -> 1 | AB70: =AVERAGE(W66:W70) -> 2
A71: 2014-10-10 | B71: 10 | C71: VAN | D71: 1 | E71: 2 | F71: 0 | G71: 0 | H71: 0 | I71: 0 | J71: 0 | K71: 0 | L71: 0 | M71: 0 | N71: 0 | O71: 0 | P71: 2 | Q71: 2 | S71: 68 | T71: 111 | U71: 36 | V71: 1 | W71: 2 | Y71: =AVERAGE(T67:T71) -> 109.4 | Z71: =AVERAGE(U67:U71) -> 35.2 | AA71: =AVERAGE(V67:V71) -> 1 | AB71: =AVERAGE(W67:W71) -> 2
A72: 2014-10-10 | B72: 11 | C72: T.B | D72: 1 | E72: 2 | F72: 0 | G72: 0 | H72: 0 | I72: 0 | J72: 0 | K72: 0 | L72: 0 | M72: 0 | N72: 0 | O72: 0 | P72: 2 | Q72: 2 | S72: 69 | T72: 111 | U72: 36 | V72: 1 | W72: 2 | Y72: =AVERAGE(T68:T72) -> 110 | Z72: =AVERAGE(U68:U72) -> 35.4 | AA72: =AVERAGE(V68:V72) -> 1 | AB72: =AVERAGE(W68:W72) -> 2
A73: 2014-10-10 | B73: 12 | C73: MTL | D73: 2 | E73: 3 | F73: 0 | G73: 0 | H73: 0 | I73: 0 | J73: 0 | K73: 0 | L73: 0 | M73: 1 | N73: 0 | O73: 0 | P73: 4 | Q73: 2 | S73: 70 | T73: 113 | U73: 36 | V73: 1 | W73: 2 | Y73: =AVERAGE(T69:T73) -> 111 | Z73: =AVERAGE(U69:U73) -> 35.6 | AA73: =AVERAGE(V69:V73) -> 1 | AB73: =AVERAGE(W69:W73) -> 2
A74: 2014-10-10 | B74: 13 | C74: NYR | D74: 1 | E74: 2 | F74: 0 | G74: 0 | H74: 0 | I74: 0 | J74: 0 | K74: 0 | L74: 0 | M74: 0 | N74: 0 | O74: 0 | P74: 2 | Q74: 2 | S74: 71 | T74: 114 | U74: 36 | V74: 1 | W74: 3 | Y74: =AVERAGE(T70:T74) -> 111.8 | Z74: =AVERAGE(U70:U74) -> 35.8 | AA74: =AVERAGE(V70:V74) -> 1 | AB74: =AVERAGE(W70:W74) -> 2.2
A75: 2014-10-10 | B75: 14 | C75: WPG | D75: 1 | E75: 2 | F75: 0 | G75: 0 | H75: 0 | I75: 0 | J75: 0 | K75: 0 | L75: 0 | M75: 0 | N75: 0 | O75: 0 | P75: 2 | Q75: 2 | S75: 72 | T75: 115 | U75: 36 | V75: 1 | W75: 3 | Y75: =AVERAGE(T71:T75) -> 112.8 | Z75: =AVERAGE(U71:U75) -> 36 | AA75: =AVERAGE(V71:V75) -> 1 | AB75: =AVERAGE(W71:W75) -> 2.4
A76: 2014-10-10 | B76: 15 | C76: BUF | D76: 1 | E76: 2 | F76: 0 | G76: 0 | H76: 0 | I76: 0 | J76: 0 | K76: 0 | L76: 0 | M76: 1 | N76: 0 | O76: 0 | P76: 3 | Q76: 3 | S76: 73 | T76: 117 | U76: 36 | V76: 1 | W76: 3 | Y76: =AVERAGE(T72:T76) -> 114 | Z76: =AVERAGE(U72:U76) -> 36 | AA76: =AVERAGE(V72:V76) -> 1 | AB76: =AVERAGE(W72:W76) -> 2.6
A77: 2014-10-10 | B77: 16 | C77: CGY | D77: 2 | E77: 2 | F77: 0 | G77: 0 | H77: 0 | I77: 0 | J77: 0 | K77: 0 | L77: 1 | M77: 2 | N77: 1 | O77: 0 | P77: 6 | Q77: 3 | S77: 74 | T77: 118 | U77: 37 | V77: 1 | W77: 3 | Y77: =AVERAGE(T73:T77) -> 115.4 | Z77: =AVERAGE(U73:U77) -> 36.2 | AA77: =AVERAGE(V73:V77) -> 1 | AB77: =AVERAGE(W73:W77) -> 2.8
A78: 2014-10-10 | B78: 17 | C78: STL | D78: 1 | E78: 3 | F78: 0 | G78: 0 | H78: 0 | I78: 0 | J78: 0 | K78: 0 | L78: 0 | M78: 0 | N78: 0 | O78: 0 | P78: 3 | Q78: 3 | S78: 75 | T78: 120 | U78: 38 | V78: 1 | W78: 3 | Y78: =AVERAGE(T74:T78) -> 116.8 | Z78: =AVERAGE(U74:U78) -> 36.6 | AA78: =AVERAGE(V74:V78) -> 1 | AB78: =AVERAGE(W74:W78) -> 3
A79: 2014-10-10 | B79: 18 | C79: FLA | D79: 1 | E79: 0 | F79: 0 | G79: 0 | H79: 0 | I79: 0 | J79: 0 | K79: 1 | L79: 1 | M79: 1 | N79: 0 | O79: 0 | P79: 3 | Q79: 3 | S79: 76 | T79: 123 | U79: 39 | V79: 1 | W79: 3 | Y79: =AVERAGE(T75:T79) -> 118.6 | Z79: =AVERAGE(U75:U79) -> 37.2 | AA79: =AVERAGE(V75:V79) -> 1 | AB79: =AVERAGE(W75:W79) -> 3
A80: 2014-10-10 | B80: 19 | C80: OTT | D80: 1 | E80: 2 | F80: 0 | G80: 0 | H80: 0 | I80: 0 | J80: 0 | K80: 0 | L80: 0 | M80: 1 | N80: 0 | O80: 0 | P80: 3 | Q80: 3 | Y80: =AVERAGE(T76:T80) -> 119.5 | Z80: =AVERAGE(U76:U80) -> 37.5 | AA80: =AVERAGE(V76:V80) -> 1 | AB80: =AVERAGE(W76:W80) -> 3
A81: 2014-10-10 | B81: 20 | C81: NYI | D81: 1 | E81: 1 | F81: 0 | G81: 0 | H81: 0 | I81: 0 | J81: 0 | K81: 0 | L81: 0 | M81: 2 | N81: 0 | O81: 0 | P81: 3 | Q81: 3 | Y81: =AVERAGE(T77:T81) -> 120.3333333 | Z81: =AVERAGE(U77:U81) -> 38 | AA81: =AVERAGE(V77:V81) -> 1 | AB81: =AVERAGE(W77:W81) -> 3
A82: 2014-10-10 | B82: 21 | C82: L.A | D82: 1 | E82: 3 | F82: 0 | G82: 0 | H82: 0 | I82: 0 | J82: 0 | K82: 0 | L82: 0 | M82: 1 | N82: 0 | O82: 0 | P82: 4 | Q82: 4 | Y82: =AVERAGE(T78:T82) -> 121.5 | Z82: =AVERAGE(U78:U82) -> 38.5 | AA82: =AVERAGE(V78:V82) -> 1 | AB82: =AVERAGE(W78:W82) -> 3
A83: 2014-10-10 | B83: 22 | C83: N.J | D83: 1 | E83: 2 | F83: 0 | G83: 0 | H83: 0 | I83: 0 | J83: 0 | K83: 0 | L83: 0 | M83: 2 | N83: 0 | O83: 0 | P83: 4 | Q83: 4 | Y83: =AVERAGE(T79:T83) -> 123 | Z83: =AVERAGE(U79:U83) -> 39 | AA83: =AVERAGE(V79:V83) -> 1 | AB83: =AVERAGE(W79:W83) -> 3
A84: 2014-10-10 | B84: 23 | C84: TOR | D84: 1 | E84: 4 | F84: 0 | G84: 0 | H84: 0 | I84: 0 | J84: 0 | K84: 0 | L84: 0 | M84: 0 | N84: 0 | O84: 0 | P84: 4 | Q84: 4 | Y84: =AVERAGE(T80:T84) ->  | Z84: =AVERAGE(U80:U84) ->  | AA84: =AVERAGE(V80:V84) ->  | AB84: =AVERAGE(W80:W84) -> 
A85: 2014-10-10 | B85: 24 | C85: PIT | D85: 1 | E85: 1 | F85: 0 | G85: 0 | H85: 0 | I85: 0 | J85: 0 | K85: 0 | L85: 0 | M85: 3 | N85: 0 | O85: 0 | P85: 4 | Q85: 4
A86: 2014-10-10 | B86: 25 | C86: PHI | D86: 2 | E86: 6 | F86: 0 | G86: 0 | H86: 0 | I86: 0 | J86: 0 | K86: 0 | L86: 0 | M86: 1 | N86: 1 | O86: 0 | P86: 8 | Q86: 4
A87: 2014-10-10 | B87: 26 | C87: EDM | D87: 1 | E87: 4 | F87: 0 | G87: 0 | H87: 0 | I87: 0 | J87: 0 | K87: 0 | L87: 0 | M87: 1 | N87: 0 | O87: 0 | P87: 5 | Q87: 5
A88: 2014-10-10 | B88: 27 | C88: COL | D88: 1 | E88: 4 | F88: 0 | G88: 0 | H88: 1 | I88: 0 | J88: 0 | K88: 0 | L88: 0 | M88: 0 | N88: 0 | O88: 0 | P88: 5 | Q88: 5
A89: 2014-10-10 | B89: 28 | C89: CAR | D89: 1 | E89: 3 | F89: 0 | G89: 0 | H89: 0 | I89: 0 | J89: 0 | K89: 0 | L89: 1 | M89: 1 | N89: 0 | O89: 0 | P89: 5 | Q89: 5
A90: 2014-10-10 | B90: 29 | C90: ANA | D90: 1 | E90: 4 | F90: 1 | G90: 0 | H90: 0 | I90: 0 | J90: 0 | K90: 0 | L90: 0 | M90: 1 | N90: 0 | O90: 0 | P90: 6 | Q90: 6
A91: 2014-10-10 | B91: 30 | C91: ARI | D91: 1 | E91: 5 | F91: 1 | G91: 0 | H91: 0 | I91: 0 | J91: 0 | K91: 0 | L91: 0 | M91: 0 | N91: 0 | O91: 0 | P91: 6 | Q91: 6
A92: 2014-10-11 | B92: 1 | C92: MIN | D92: 2 | E92: 0 | F92: 0 | G92: 0 | H92: 0 | I92: 0 | J92: 0 | K92: 0 | L92: 0 | M92: 0 | N92: 0 | O92: 0 | P92: 0 | Q92: 0
A93: 2014-10-11 | B93: 2 | C93: S.J | D93: 2 | E93: 0 | F93: 0 | G93: 0 | H93: 0 | I93: 0 | J93: 0 | K93: 0 | L93: 0 | M93: 0 | N93: 0 | O93: 0 | P93: 0 | Q93: 0
A94: 2014-10-11 | B94: 3 | C94: WSH | D94: 2 | E94: 1 | F94: 0 | G94: 0 | H94: 0 | I94: 0 | J94: 0 | K94: 0 | L94: 0 | M94: 0 | N94: 0 | O94: 0 | P94: 1 | Q94: 0.5
A95: 2014-10-11 | B95: 4 | C95: CBJ | D95: 2 | E95: 3 | F95: 0 | G95: 0 | H95: 0 | I95: 0 | J95: 0 | K95: 0 | L95: 0 | M95: 0 | N95: 0 | O95: 0 | P95: 3 | Q95: 1.5
A96: 2014-10-11 | B96: 5 | C96: NSH | D96: 2 | E96: 2 | F96: 0 | G96: 0 | H96: 0 | I96: 0 | J96: 0 | K96: 0 | L96: 0 | M96: 1 | N96: 0 | O96: 0 | P96: 3 | Q96: 1.5
A97: 2014-10-11 | B97: 6 | C97: DET | D97: 2 | E97: 4 | F97: 0 | G97: 0 | H97: 0 | I97: 0 | J97: 0 | K97: 0 | L97: 0 | M97: 0 | N97: 0 | O97: 0 | P97: 4 | Q97: 2
A98: 2014-10-11 | B98: 7 | C98: CHI | D98: 2 | E98: 2 | F98: 1 | G98: 0 | H98: 0 | I98: 0 | J98: 0 | K98: 0 | L98: 0 | M98: 1 | N98: 0 | O98: 0 | P98: 4 | Q98: 2
A99: 2014-10-11 | B99: 8 | C99: STL | D99: 2 | E99: 3 | F99: 0 | G99: 0 | H99: 0 | I99: 0 | J99: 0 | K99: 0 | L99: 0 | M99: 1 | N99: 0 | O99: 0 | P99: 4 | Q99: 2
A100: 2014-10-11 | B100: 9 | C100: T.B | D100: 2 | E100: 4 | F100: 0 | G100: 0 | H100: 0 | I100: 0 | J100: 0 | K100: 0 | L100: 0 | M100: 0 | N100: 0 | O100: 0 | P100: 4 | Q100: 2
A101: 2014-10-11 | B101: 10 | C101: MTL | D101: 3 | E101: 5 | F101: 0 | G101: 0 | H101: 0 | I101: 0 | J101: 0 | K101: 0 | L101: 0 | M101: 2 | N101: 0 | O101: 0 | P101: 7 | Q101: 2.33
A102: 2014-10-11 | B102: 11 | C102: BOS | D102: 3 | E102: 4 | F102: 0 | G102: 0 | H102: 0 | I102: 0 | J102: 0 | K102: 0 | L102: 0 | M102: 3 | N102: 0 | O102: 0 | P102: 7 | Q102: 2.33
A103: 2014-10-11 | B103: 12 | C103: N.J | D103: 2 | E103: 2 | F103: 0 | G103: 0 | H103: 0 | I103: 0 | J103: 0 | K103: 0 | L103: 0 | M103: 3 | N103: 0 | O103: 0 | P103: 5 | Q103: 2.5
A104: 2014-10-11 | B104: 13 | C104: WPG | D104: 2 | E104: 5 | F104: 0 | G104: 0 | H104: 0 | I104: 0 | J104: 0 | K104: 0 | L104: 0 | M104: 0 | N104: 0 | O104: 0 | P104: 5 | Q104: 2.5
A105: 2014-10-11 | B105: 14 | C105: OTT | D105: 2 | E105: 3 | F105: 0 | G105: 0 | H105: 0 | I105: 0 | J105: 0 | K105: 0 | L105: 0 | M105: 2 | N105: 0 | O105: 0 | P105: 5 | Q105: 2.5
A106: 2014-10-11 | B106: 15 | C106: VAN | D106: 2 | E106: 4 | F106: 1 | G106: 0 | H106: 0 | I106: 0 | J106: 0 | K106: 0 | L106: 0 | M106: 1 | N106: 0 | O106: 0 | P106: 6 | Q106: 3
A107: 2014-10-11 | B107: 16 | C107: NYI | D107: 2 | E107: 2 | F107: 0 | G107: 0 | H107: 0 | I107: 0 | J107: 0 | K107: 0 | L107: 0 | M107: 4 | N107: 0 | O107: 0 | P107: 6 | Q107: 3
A108: 2014-10-11 | B108: 17 | C108: PIT | D108: 2 | E108: 1 | F108: 0 | G108: 0 | H108: 0 | I108: 0 | J108: 0 | K108: 0 | L108: 0 | M108: 5 | N108: 0 | O108: 0 | P108: 6 | Q108: 3
A109: 2014-10-11 | B109: 18 | C109: DAL | D109: 2 | E109: 3 | F109: 0 | G109: 0 | H109: 1 | I109: 0 | J109: 0 | K109: 0 | L109: 0 | M109: 1 | N109: 1 | O109: 0 | P109: 6 | Q109: 3
A110: 2014-10-11 | B110: 19 | C110: CGY | D110: 3 | E110: 4 | F110: 0 | G110: 0 | H110: 0 | I110: 0 | J110: 0 | K110: 0 | L110: 1 | M110: 4 | N110: 1 | O110: 0 | P110: 10 | Q110: 3.33
A111: 2014-10-11 | B111: 20 | C111: NYR | D111: 2 | E111: 6 | F111: 0 | G111: 0 | H111: 0 | I111: 0 | J111: 0 | K111: 0 | L111: 0 | M111: 0 | N111: 1 | O111: 0 | P111: 7 | Q111: 3.5
A112: 2014-10-11 | B112: 21 | C112: L.A | D112: 2 | E112: 4 | F112: 0 | G112: 0 | H112: 0 | I112: 0 | J112: 0 | K112: 1 | L112: 0 | M112: 2 | N112: 0 | O112: 0 | P112: 7 | Q112: 3.5
A113: 2014-10-11 | B113: 22 | C113: PHI | D113: 3 | E113: 9 | F113: 0 | G113: 0 | H113: 0 | I113: 0 | J113: 0 | K113: 0 | L113: 0 | M113: 1 | N113: 1 | O113: 0 | P113: 11 | Q113: 3.67
A114: 2014-10-11 | B114: 23 | C114: ANA | D114: 2 | E114: 6 | F114: 1 | G114: 0 | H114: 0 | I114: 0 | J114: 0 | K114: 0 | L114: 0 | M114: 1 | N114: 0 | O114: 0 | P114: 8 | Q114: 4
A115: 2014-10-11 | B115: 24 | C115: FLA | D115: 2 | E115: 3 | F115: 0 | G115: 0 | H115: 0 | I115: 0 | J115: 0 | K115: 1 | L115: 1 | M115: 3 | N115: 0 | O115: 0 | P115: 8 | Q115: 4
A116: 2014-10-11 | B116: 25 | C116: COL | D116: 2 | E116: 6 | F116: 0 | G116: 0 | H116: 1 | I116: 0 | J116: 0 | K116: 0 | L116: 0 | M116: 0 | N116: 1 | O116: 0 | P116: 8 | Q116: 4
A117: 2014-10-11 | B117: 26 | C117: ARI | D117: 2 | E117: 7 | F117: 1 | G117: 0 | H117: 0 | I117: 0 | J117: 0 | K117: 0 | L117: 0 | M117: 0 | N117: 0 | O117: 0 | P117: 8 | Q117: 4
A118: 2014-10-11 | B118: 27 | C118: EDM | D118: 2 | E118: 6 | F118: 0 | G118: 0 | H118: 0 | I118: 0 | J118: 0 | K118: 0 | L118: 0 | M118: 3 | N118: 0 | O118: 0 | P118: 9 | Q118: 4.5
A119: 2014-10-11 | B119: 28 | C119: BUF | D119: 2 | E119: 6 | F119: 1 | G119: 0 | H119: 0 | I119: 0 | J119: 0 | K119: 0 | L119: 0 | M119: 2 | N119: 0 | O119: 0 | P119: 9 | Q119: 4.5
A120: 2014-10-11 | B120: 29 | C120: TOR | D120: 2 | E120: 6 | F120: 0 | G120: 0 | H120: 0 | I120: 0 | J120: 0 | K120: 0 | L120: 1 | M120: 2 | N120: 0 | O120: 0 | P120: 9 | Q120: 4.5
A121: 2014-10-11 | B121: 30 | C121: CAR | D121: 2 | E121: 5 | F121: 0 | G121: 0 | H121: 0 | I121: 0 | J121: 0 | K121: 0 | L121: 1 | M121: 3 | N121: 0 | O121: 0 | P121: 9 | Q121: 4.5
A122: 2014-10-12 | B122: 1 | C122: MIN | D122: 2 | E122: 0 | F122: 0 | G122: 0 | H122: 0 | I122: 0 | J122: 0 | K122: 0 | L122: 0 | M122: 0 | N122: 0 | O122: 0 | P122: 0 | Q122: 0
A123: 2014-10-12 | B123: 2 | C123: S.J | D123: 2 | E123: 0 | F123: 0 | G123: 0 | H123: 0 | I123: 0 | J123: 0 | K123: 0 | L123: 0 | M123: 0 | N123: 0 | O123: 0 | P123: 0 | Q123: 0
A124: 2014-10-12 | B124: 3 | C124: WSH | D124: 2 | E124: 1 | F124: 0 | G124: 0 | H124: 0 | I124: 0 | J124: 0 | K124: 0 | L124: 0 | M124: 0 | N124: 0 | O124: 0 | P124: 1 | Q124: 0.5
A125: 2014-10-12 | B125: 4 | C125: NSH | D125: 2 | E125: 2 | F125: 0 | G125: 0 | H125: 0 | I125: 0 | J125: 0 | K125: 0 | L125: 0 | M125: 1 | N125: 0 | O125: 0 | P125: 3 | Q125: 1.5
A126: 2014-10-12 | B126: 5 | C126: CBJ | D126: 2 | E126: 3 | F126: 0 | G126: 0 | H126: 0 | I126: 0 | J126: 0 | K126: 0 | L126: 0 | M126: 0 | N126: 0 | O126: 0 | P126: 3 | Q126: 1.5
A127: 2014-10-12 | B127: 6 | C127: CHI | D127: 2 | E127: 2 | F127: 1 | G127: 0 | H127: 0 | I127: 0 | J127: 0 | K127: 0 | L127: 0 | M127: 1 | N127: 0 | O127: 0 | P127: 4 | Q127: 2
A128: 2014-10-12 | B128: 7 | C128: DET | D128: 2 | E128: 4 | F128: 0 | G128: 0 | H128: 0 | I128: 0 | J128: 0 | K128: 0 | L128: 0 | M128: 0 | N128: 0 | O128: 0 | P128: 4 | Q128: 2
A129: 2014-10-12 | B129: 8 | C129: STL | D129: 2 | E129: 3 | F129: 0 | G129: 0 | H129: 0 | I129: 0 | J129: 0 | K129: 0 | L129: 0 | M129: 1 | N129: 0 | O129: 0 | P129: 4 | Q129: 2
A130: 2014-10-12 | B130: 9 | C130: T.B | D130: 2 | E130: 4 | F130: 0 | G130: 0 | H130: 0 | I130: 0 | J130: 0 | K130: 0 | L130: 0 | M130: 0 | N130: 0 | O130: 0 | P130: 4 | Q130: 2
A131: 2014-10-12 | B131: 10 | C131: MTL | D131: 3 | E131: 5 | F131: 0 | G131: 0 | H131: 0 | I131: 0 | J131: 0 | K131: 0 | L131: 0 | M131: 2 | N131: 0 | O131: 0 | P131: 7 | Q131: 2.33
A132: 2014-10-12 | B132: 11 | C132: BOS | D132: 3 | E132: 4 | F132: 0 | G132: 0 | H132: 0 | I132: 0 | J132: 0 | K132: 0 | L132: 0 | M132: 3 | N132: 0 | O132: 0 | P132: 7 | Q132: 2.33
A133: 2014-10-12 | B133: 12 | C133: N.J | D133: 2 | E133: 2 | F133: 0 | G133: 0 | H133: 0 | I133: 0 | J133: 0 | K133: 0 | L133: 0 | M133: 3 | N133: 0 | O133: 0 | P133: 5 | Q133: 2.5
A134: 2014-10-12 | B134: 13 | C134: OTT | D134: 2 | E134: 3 | F134: 0 | G134: 0 | H134: 0 | I134: 0 | J134: 0 | K134: 0 | L134: 0 | M134: 2 | N134: 0 | O134: 0 | P134: 5 | Q134: 2.5
A135: 2014-10-12 | B135: 14 | C135: L.A | D135: 3 | E135: 5 | F135: 0 | G135: 0 | H135: 0 | I135: 0 | J135: 0 | K135: 1 | L135: 0 | M135: 2 | N135: 0 | O135: 0 | P135: 8 | Q135: 2.67
A136: 2014-10-12 | B136: 15 | C136: VAN | D136: 2 | E136: 4 | F136: 1 | G136: 0 | H136: 0 | I136: 0 | J136: 0 | K136: 0 | L136: 0 | M136: 1 | N136: 0 | O136: 0 | P136: 6 | Q136: 3
A137: 2014-10-12 | B137: 16 | C137: DAL | D137: 2 | E137: 3 | F137: 0 | G137: 0 | H137: 1 | I137: 0 | J137: 0 | K137: 0 | L137: 0 | M137: 1 | N137: 1 | O137: 0 | P137: 6 | Q137: 3
A138: 2014-10-12 | B138: 17 | C138: PIT | D138: 2 | E138: 1 | F138: 0 | G138: 0 | H138: 0 | I138: 0 | J138: 0 | K138: 0 | L138: 0 | M138: 5 | N138: 0 | O138: 0 | P138: 6 | Q138: 3
A139: 2014-10-12 | B139: 18 | C139: NYI | D139: 2 | E139: 2 | F139: 0 | G139: 0 | H139: 0 | I139: 0 | J139: 0 | K139: 0 | L139: 0 | M139: 4 | N139: 0 | O139: 0 | P139: 6 | Q139: 3
A140: 2014-10-12 | B140: 19 | C140: WPG | D140: 3 | E140: 9 | F140: 0 | G140: 0 | H140: 0 | I140: 0 | J140: 0 | K140: 0 | L140: 0 | M140: 0 | N140: 0 | O140: 0 | P140: 9 | Q140: 3
A141: 2014-10-12 | B141: 20 | C141: CGY | D141: 3 | E141: 4 | F141: 0 | G141: 0 | H141: 0 | I141: 0 | J141: 0 | K141: 0 | L141: 1 | M141: 4 | N141: 1 | O141: 0 | P141: 10 | Q141: 3.33
A142: 2014-10-12 | B142: 21 | C142: PHI | D142: 3 | E142: 9 | F142: 0 | G142: 0 | H142: 0 | I142: 0 | J142: 0 | K142: 0 | L142: 0 | M142: 1 | N142: 1 | O142: 0 | P142: 11 | Q142: 3.67
A143: 2014-10-12 | B143: 22 | C143: ANA | D143: 2 | E143: 6 | F143: 1 | G143: 0 | H143: 0 | I143: 0 | J143: 0 | K143: 0 | L143: 0 | M143: 1 | N143: 0 | O143: 0 | P143: 8 | Q143: 4
A144: 2014-10-12 | B144: 23 | C144: FLA | D144: 2 | E144: 3 | F144: 0 | G144: 0 | H144: 0 | I144: 0 | J144: 0 | K144: 1 | L144: 1 | M144: 3 | N144: 0 | O144: 0 | P144: 8 | Q144: 4
A145: 2014-10-12 | B145: 24 | C145: COL | D145: 2 | E145: 6 | F145: 0 | G145: 0 | H145: 1 | I145: 0 | J145: 0 | K145: 0 | L145: 0 | M145: 0 | N145: 1 | O145: 0 | P145: 8 | Q145: 4
A146: 2014-10-12 | B146: 25 | C146: TOR | D146: 3 | E146: 9 | F146: 0 | G146: 0 | H146: 0 | I146: 0 | J146: 0 | K146: 0 | L146: 1 | M146: 2 | N146: 0 | O146: 0 | P146: 12 | Q146: 4
A147: 2014-10-12 | B147: 26 | C147: ARI | D147: 2 | E147: 7 | F147: 1 | G147: 0 | H147: 0 | I147: 0 | J147: 0 | K147: 0 | L147: 0 | M147: 0 | N147: 0 | O147: 0 | P147: 8 | Q147: 4
A148: 2014-10-12 | B148: 27 | C148: NYR | D148: 3 | E148: 9 | F148: 1 | G148: 0 | H148: 0 | I148: 0 | J148: 0 | K148: 0 | L148: 0 | M148: 2 | N148: 1 | O148: 0 | P148: 13 | Q148: 4.33
A149: 2014-10-12 | B149: 28 | C149: EDM | D149: 2 | E149: 6 | F149: 0 | G149: 0 | H149: 0 | I149: 0 | J149: 0 | K149: 0 | L149: 0 | M149: 3 | N149: 0 | O149: 0 | P149: 9 | Q149: 4.5
A150: 2014-10-12 | B150: 29 | C150: BUF | D150: 2 | E150: 6 | F150: 1 | G150: 0 | H150: 0 | I150: 0 | J150: 0 | K150: 0 | L150: 0 | M150: 2 | N150: 0 | O150: 0 | P150: 9 | Q150: 4.5
A151: 2014-10-12 | B151: 30 | C151: CAR | D151: 2 | E151: 5 | F151: 0 | G151: 0 | H151: 0 | I151: 0 | J151: 0 | K151: 0 | L151: 1 | M151: 3 | N151: 0 | O151: 0 | P151: 9 | Q151: 4.5
A152: 2014-10-13 | B152: 1 | C152: MIN | D152: 2 | E152: 0 | F152: 0 | G152: 0 | H152: 0 | I152: 0 | J152: 0 | K152: 0 | L152: 0 | M152: 0 | N152: 0 | O152: 0 | P152: 0 | Q152: 0
A153: 2014-10-13 | B153: 2 | C153: S.J | D153: 2 | E153: 0 | F153: 0 | G153: 0 | H153: 0 | I153: 0 | J153: 0 | K153: 0 | L153: 0 | M153: 0 | N153: 0 | O153: 0 | P153: 0 | Q153: 0
A154: 2014-10-13 | B154: 3 | C154: WSH | D154: 2 | E154: 1 | F154: 0 | G154: 0 | H154: 0 | I154: 0 | J154: 0 | K154: 0 | L154: 0 | M154: 0 | N154: 0 | O154: 0 | P154: 1 | Q154: 0.5
A155: 2014-10-13 | B155: 4 | C155: NSH | D155: 2 | E155: 2 | F155: 0 | G155: 0 | H155: 0 | I155: 0 | J155: 0 | K155: 0 | L155: 0 | M155: 1 | N155: 0 | O155: 0 | P155: 3 | Q155: 1.5
A156: 2014-10-13 | B156: 5 | C156: CBJ | D156: 2 | E156: 3 | F156: 0 | G156: 0 | H156: 0 | I156: 0 | J156: 0 | K156: 0 | L156: 0 | M156: 0 | N156: 0 | O156: 0 | P156: 3 | Q156: 1.5
A157: 2014-10-13 | B157: 6 | C157: OTT | D157: 3 | E157: 3 | F157: 0 | G157: 0 | H157: 0 | I157: 0 | J157: 0 | K157: 0 | L157: 0 | M157: 2 | N157: 0 | O157: 0 | P157: 5 | Q157: 1.67
A158: 2014-10-13 | B158: 7 | C158: T.B | D158: 3 | E158: 5 | F158: 0 | G158: 0 | H158: 0 | I158: 0 | J158: 0 | K158: 0 | L158: 0 | M158: 0 | N158: 0 | O158: 0 | P158: 5 | Q158: 1.67
A159: 2014-10-13 | B159: 8 | C159: CHI | D159: 2 | E159: 2 | F159: 1 | G159: 0 | H159: 0 | I159: 0 | J159: 0 | K159: 0 | L159: 0 | M159: 1 | N159: 0 | O159: 0 | P159: 4 | Q159: 2
A160: 2014-10-13 | B160: 9 | C160: STL | D160: 2 | E160: 3 | F160: 0 | G160: 0 | H160: 0 | I160: 0 | J160: 0 | K160: 0 | L160: 0 | M160: 1 | N160: 0 | O160: 0 | P160: 4 | Q160: 2
A161: 2014-10-13 | B161: 10 | C161: DET | D161: 2 | E161: 4 | F161: 0 | G161: 0 | H161: 0 | I161: 0 | J161: 0 | K161: 0 | L161: 0 | M161: 0 | N161: 0 | O161: 0 | P161: 4 | Q161: 2
A162: 2014-10-13 | B162: 11 | C162: BOS | D162: 4 | E162: 6 | F162: 0 | G162: 0 | H162: 0 | I162: 0 | J162: 0 | K162: 0 | L162: 0 | M162: 3 | N162: 0 | O162: 0 | P162: 9 | Q162: 2.25
A163: 2014-10-13 | B163: 12 | C163: N.J | D163: 2 | E163: 2 | F163: 0 | G163: 0 | H163: 0 | I163: 0 | J163: 0 | K163: 0 | L163: 0 | M163: 3 | N163: 0 | O163: 0 | P163: 5 | Q163: 2.5
A164: 2014-10-13 | B164: 13 | C164: L.A | D164: 3 | E164: 5 | F164: 0 | G164: 0 | H164: 0 | I164: 0 | J164: 0 | K164: 1 | L164: 0 | M164: 2 | N164: 0 | O164: 0 | P164: 8 | Q164: 2.67
A165: 2014-10-13 | B165: 14 | C165: FLA | D165: 3 | E165: 3 | F165: 0 | G165: 0 | H165: 0 | I165: 0 | J165: 0 | K165: 1 | L165: 1 | M165: 4 | N165: 0 | O165: 0 | P165: 9 | Q165: 3
A166: 2014-10-13 | B166: 15 | C166: WPG | D166: 3 | E166: 9 | F166: 0 | G166: 0 | H166: 0 | I166: 0 | J166: 0 | K166: 0 | L166: 0 | M166: 0 | N166: 0 | O166: 0 | P166: 9 | Q166: 3
A167: 2014-10-13 | B167: 16 | C167: NYI | D167: 2 | E167: 2 | F167: 0 | G167: 0 | H167: 0 | I167: 0 | J167: 0 | K167: 0 | L167: 0 | M167: 4 | N167: 0 | O167: 0 | P167: 6 | Q167: 3
A168: 2014-10-13 | B168: 17 | C168: DAL | D168: 2 | E168: 3 | F168: 0 | G168: 0 | H168: 1 | I168: 0 | J168: 0 | K168: 0 | L168: 0 | M168: 1 | N168: 1 | O168: 0 | P168: 6 | Q168: 3
A169: 2014-10-13 | B169: 18 | C169: ANA | D169: 3 | E169: 7 | F169: 1 | G169: 0 | H169: 0 | I169: 0 | J169: 0 | K169: 0 | L169: 0 | M169: 1 | N169: 0 | O169: 0 | P169: 9 | Q169: 3
A170: 2014-10-13 | B170: 19 | C170: VAN | D170: 2 | E170: 4 | F170: 1 | G170: 0 | H170: 0 | I170: 0 | J170: 0 | K170: 0 | L170: 0 | M170: 1 | N170: 0 | O170: 0 | P170: 6 | Q170: 3
A171: 2014-10-13 | B171: 20 | C171: COL | D171: 3 | E171: 6 | F171: 0 | G171: 0 | H171: 1 | I171: 0 | J171: 0 | K171: 0 | L171: 0 | M171: 1 | N171: 1 | O171: 0 | P171: 9 | Q171: 3
A172: 2014-10-13 | B172: 21 | C172: PIT | D172: 2 | E172: 1 | F172: 0 | G172: 0 | H172: 0 | I172: 0 | J172: 0 | K172: 0 | L172: 0 | M172: 5 | N172: 0 | O172: 0 | P172: 6 | Q172: 3
A173: 2014-10-13 | B173: 22 | C173: CGY | D173: 3 | E173: 4 | F173: 0 | G173: 0 | H173: 0 | I173: 0 | J173: 0 | K173: 0 | L173: 1 | M173: 4 | N173: 1 | O173: 0 | P173: 10 | Q173: 3.33
A174: 2014-10-13 | B174: 23 | C174: MTL | D174: 4 | E174: 9 | F174: 0 | G174: 0 | H174: 1 | I174: 0 | J174: 0 | K174: 0 | L174: 0 | M174: 4 | N174: 0 | O174: 0 | P174: 14 | Q174: 3.5
A175: 2014-10-13 | B175: 24 | C175: PHI | D175: 3 | E175: 9 | F175: 0 | G175: 0 | H175: 0 | I175: 0 | J175: 0 | K175: 0 | L175: 0 | M175: 1 | N175: 1 | O175: 0 | P175: 11 | Q175: 3.67
A176: 2014-10-13 | B176: 25 | C176: TOR | D176: 3 | E176: 9 | F176: 0 | G176: 0 | H176: 0 | I176: 0 | J176: 0 | K176: 0 | L176: 1 | M176: 2 | N176: 0 | O176: 0 | P176: 12 | Q176: 4
A177: 2014-10-13 | B177: 26 | C177: ARI | D177: 2 | E177: 7 | F177: 1 | G177: 0 | H177: 0 | I177: 0 | J177: 0 | K177: 0 | L177: 0 | M177: 0 | N177: 0 | O177: 0 | P177: 8 | Q177: 4
A178: 2014-10-13 | B178: 27 | C178: NYR | D178: 3 | E178: 9 | F178: 1 | G178: 0 | H178: 0 | I178: 0 | J178: 0 | K178: 0 | L178: 0 | M178: 2 | N178: 1 | O178: 0 | P178: 13 | Q178: 4.33
A179: 2014-10-13 | B179: 28 | C179: CAR | D179: 2 | E179: 5 | F179: 0 | G179: 0 | H179: 0 | I179: 0 | J179: 0 | K179: 0 | L179: 1 | M179: 3 | N179: 0 | O179: 0 | P179: 9 | Q179: 4.5
A180: 2014-10-13 | B180: 29 | C180: EDM | D180: 2 | E180: 6 | F180: 0 | G180: 0 | H180: 0 | I180: 0 | J180: 0 | K180: 0 | L180: 0 | M180: 3 | N180: 0 | O180: 0 | P180: 9 | Q180: 4.5
A181: 2014-10-13 | B181: 30 | C181: BUF | D181: 3 | E181: 9 | F181: 1 | G181: 0 | H181: 0 | I181: 0 | J181: 0 | K181: 0 | L181: 0 | M181: 3 | N181: 0 | O181: 1 | P181: 14 | Q181: 4.67
A182: 2014-10-14 | B182: 1 | C182: MIN | D182: 2 | E182: 0 | F182: 0 | G182: 0 | H182: 0 | I182: 0 | J182: 0 | K182: 0 | L182: 0 | M182: 0 | N182: 0 | O182: 0 | P182: 0 | Q182: 0
A183: 2014-10-14 | B183: 2 | C183: S.J | D183: 3 | E183: 3 | F183: 0 | G183: 0 | H183: 0 | I183: 0 | J183: 0 | K183: 0 | L183: 0 | M183: 2 | N183: 0 | O183: 0 | P183: 5 | Q183: 1.67
A184: 2014-10-14 | B184: 3 | C184: OTT | D184: 3 | E184: 3 | F184: 0 | G184: 0 | H184: 0 | I184: 0 | J184: 0 | K184: 0 | L184: 0 | M184: 2 | N184: 0 | O184: 0 | P184: 5 | Q184: 1.67
A185: 2014-10-14 | B185: 4 | C185: NSH | D185: 3 | E185: 3 | F185: 0 | G185: 0 | H185: 0 | I185: 0 | J185: 0 | K185: 0 | L185: 0 | M185: 2 | N185: 0 | O185: 0 | P185: 5 | Q185: 1.67
A186: 2014-10-14 | B186: 5 | C186: T.B | D186: 4 | E186: 6 | F186: 0 | G186: 0 | H186: 0 | I186: 0 | J186: 0 | K186: 0 | L186: 0 | M186: 1 | N186: 0 | O186: 0 | P186: 7 | Q186: 1.75
A187: 2014-10-14 | B187: 6 | C187: WSH | D187: 3 | E187: 5 | F187: 0 | G187: 0 | H187: 0 | I187: 0 | J187: 0 | K187: 0 | L187: 0 | M187: 1 | N187: 0 | O187: 0 | P187: 6 | Q187: 2
A188: 2014-10-14 | B188: 7 | C188: CHI | D188: 2 | E188: 2 | F188: 1 | G188: 0 | H188: 0 | I188: 0 | J188: 0 | K188: 0 | L188: 0 | M188: 1 | N188: 0 | O188: 0 | P188: 4 | Q188: 2
A189: 2014-10-14 | B189: 8 | C189: DET | D189: 2 | E189: 4 | F189: 0 | G189: 0 | H189: 0 | I189: 0 | J189: 0 | K189: 0 | L189: 0 | M189: 0 | N189: 0 | O189: 0 | P189: 4 | Q189: 2
A190: 2014-10-14 | B190: 9 | C190: STL | D190: 2 | E190: 3 | F190: 0 | G190: 0 | H190: 0 | I190: 0 | J190: 0 | K190: 0 | L190: 0 | M190: 1 | N190: 0 | O190: 0 | P190: 4 | Q190: 2
A191: 2014-10-14 | B191: 10 | C191: N.J | D191: 3 | E191: 3 | F191: 0 | G191: 0 | H191: 0 | I191: 0 | J191: 0 | K191: 0 | L191: 0 | M191: 3 | N191: 0 | O191: 0 | P191: 6 | Q191: 2
A192: 2014-10-14 | B192: 11 | C192: L.A | D192: 4 | E192: 6 | F192: 0 | G192: 0 | H192: 0 | I192: 0 | J192: 0 | K192: 1 | L192: 0 | M192: 2 | N192: 0 | O192: 0 | P192: 9 | Q192: 2.25
A193: 2014-10-14 | B193: 12 | C193: BOS | D193: 4 | E193: 6 | F193: 0 | G193: 0 | H193: 0 | I193: 0 | J193: 0 | K193: 0 | L193: 0 | M193: 3 | N193: 0 | O193: 0 | P193: 9 | Q193: 2.25
A194: 2014-10-14 | B194: 13 | C194: CBJ | D194: 3 | E194: 6 | F194: 0 | G194: 0 | H194: 0 | I194: 0 | J194: 0 | K194: 0 | L194: 0 | M194: 0 | N194: 1 | O194: 0 | P194: 7 | Q194: 2.33
A195: 2014-10-14 | B195: 14 | C195: DAL | D195: 3 | E195: 4 | F195: 0 | G195: 0 | H195: 1 | I195: 0 | J195: 0 | K195: 0 | L195: 0 | M195: 2 | N195: 1 | O195: 0 | P195: 8 | Q195: 2.67
A196: 2014-10-14 | B196: 15 | C196: ANA | D196: 4 | E196: 8 | F196: 1 | G196: 0 | H196: 0 | I196: 0 | J196: 0 | K196: 0 | L196: 1 | M196: 2 | N196: 0 | O196: 0 | P196: 12 | Q196: 3
A197: 2014-10-14 | B197: 16 | C197: VAN | D197: 2 | E197: 4 | F197: 1 | G197: 0 | H197: 0 | I197: 0 | J197: 0 | K197: 0 | L197: 0 | M197: 1 | N197: 0 | O197: 0 | P197: 6 | Q197: 3
A198: 2014-10-14 | B198: 17 | C198: NYI | D198: 3 | E198: 5 | F198: 0 | G198: 0 | H198: 0 | I198: 0 | J198: 0 | K198: 0 | L198: 0 | M198: 4 | N198: 0 | O198: 0 | P198: 9 | Q198: 3
A199: 2014-10-14 | B199: 18 | C199: COL | D199: 4 | E199: 8 | F199: 0 | G199: 0 | H199: 2 | I199: 0 | J199: 0 | K199: 0 | L199: 0 | M199: 1 | N199: 1 | O199: 0 | P199: 12 | Q199: 3
A200: 2014-10-14 | B200: 19 | C200: CGY | D200: 4 | E200: 6 | F200: 0 | G200: 0 | H200: 0 | I200: 0 | J200: 0 | K200: 0 | L200: 1 | M200: 4 | N200: 1 | O200: 0 | P200: 12 | Q200: 3
... 4871 more rows
